Workbook

Sheet Cover
M2: Example and Worksheet Checklist
G3: Statistical Measurement Methods in Excel: Basic
N4: The Mathless Table
N5: Simple Bayes
N6: The Beta Distribution
N7: The Rule of Succession
N8: Catch and Recatch
N9: Estimating a Distribution and Mean
F13: Hubbard Decision Research
F14: 2S410 Canterbury Ct
F15: Glen Ellyn, IL 60137
F16: www.hubbardresearch.com

Sheet Simple Bayes
A1: The Urn of Mystery: A Simple Bayesian Example
C2: Bayesian methods work out the probability of something given a "prior" probability and new data. The charts below show the simplest example of a Bayesian inference. Consider two urns, A and B. Each urn contains a large number of red and green marbles but the proporations of colors are different between the urns. You know the proportion of marbles in each urn but you don't know which urn is which. You try to determine the probability you are drawing from urn A by the color of a single randomly drawn marble. Urn A can be thought of as a hypothesis H being true and the draw of a red marble can be thought of as specific observed data D. You have a prior for H of P(H) and you would like to know the probability of H given additional data D, written P(H|D). This simple example applies to many practical situations by itself (medical tests, quality control, etc.) and it is also the basis of more elaborate methods shown in some of the other worksheets in this file.
A5: "It Depends" - If I knew this, I would change this probability.
A6: If we knew which urn we drew from, we would know the probability of drawing a red marble. This is a Conditional Probability. The probability of drawing Red given we are drawing from urn A, can be written as P(R|A). | D6: Urn A | I6: Urn B
D7: P(R|A)= | E7: 0.95 | I7: P(R|B)= | J7: =1/6^3 -> 0.00462962963
D8: P(G|A)= | E8: =1-E7 -> 0.05 | I8: P(G|B)= | J8: =1-J7 -> 0.9953703704
G9: =E7 -> 0.95 | L9: =J7 -> 0.00462962963 | O9: p-value
G10: =1-G9 -> 0.05 | L10: =1-L9 -> 0.9953703704 | O10: P(observe|fluke)
O11: P(True|observe)
A12: "To Be or Not To Be" - What is my current uncertainty?
A13: The probability we are drawing from urn A or B is written P(A) and P(B) respectively. This is the "prior" probability, or "What do I know now?" These are mutually exclusive and colletively exhaustive, so they follow the Compliment Rule: P(A)+P(~A)=1. | G13: Which Urn?
G14: P(A)= | H14: =10^-6 -> 1e-06 | K14: B | L14: =H15 -> 0.999999
G15: P(B)= | H15: =1-H14 -> 0.999999 | K15: A | L15: =H14 -> 1e-06
G16: Change Yellow Cells!
G17: Blue Cells Are Computed Output!
A19: "What might I see if I look?" What's the chance of a particular observation?
A20: The chance of drawing a red marble, without knowing which urn you draw from, is the probability weighted average of drawing red from each urn. This is the Law of Total Probability: P(R )=P(R|A)P(A)+P(R|B)P(B) | G20: Total Probability
G21: P(R )= | H21: =H14*E7+H15*J7 -> 0.004630575
G22: P(G )= | H22: =1-H21 -> 0.995369425 | K22: =H21 -> 0.004630575
K23: =1-K22 -> 0.995369425
A26: What did I learn?
A27: New information (even one draw) updates my prior to a posterior probability. This is computed using the priors, the conditionals, and the total probabilities with Bayes Rule: P(A|R)=P(A)P(R|A)/P(R ) | D27: If Red is drawn | I27: If Green is drawn
D28: P(A|R)= | E28: =H14*E7/H21 -> 0.0002051581067 | I28: P(A|G)= | J28: =H14*E8/H22 -> 5.023260585e-08
D29: P(B|R)= | E29: =1-E28 -> 0.9997948419 | I29: P(B|G)= | J29: =1-J28 -> 0.9999999498
F30: B | G30: =E29 -> 0.9997948419 | K30: B | L30: =J29 -> 0.9999999498
F31: A | G31: =1-G30 -> 0.0002051581067 | K31: A | L31: =1-L30 -> 5.023260585e-08

Sheet BetaDistPopProportion Ws
A1: Worksheet: The Beta Distribution
A2: This spreadsheet computes how uncertainty about an estimate of a "population proportion" (e.g., "what percentage of customers want X?"). It uses a method called a beta distribution, which allows for establishing a "prior" uncertainty which is updated with new data. Enter values in the yellow "prior" fields to set the initial estimate. Enter "hits" and "misses" from a random sample in the yellow "Observations" fields. This distribution is confirmed using the probability of seeing that outcome from a Binomial distribution.
B5: Prior | C5: w/Data
A6: alpha | B6: 1 | C6: =B6+C15 -> 3
A7: beta | B7: 1 | C7: =B7+C16 -> 5
A9: P5 | B9: =_xlfn.BETA.INV(0.05,B6,B7) -> 0.05 | C9: =_xlfn.BETA.INV(0.05,C6,C7) -> 0.1287563928
A10: Median | B10: =_xlfn.BETA.INV(0.5,B6,B7) -> 0.5 | C10: =_xlfn.BETA.INV(0.5,C6,C7) -> 0.3641160864
A11: Mean | B11: =B6/(B6+B7) -> 0.5 | C11: =C6/(C6+C7) -> 0.375
A12: P95 | B12: =_xlfn.BETA.INV(0.95,B6,B7) -> 0.95 | C12: =_xlfn.BETA.INV(0.95,C6,C7) -> 0.6587385638
A14: Observations
A15: "Hits" | C15: 2
A16: "Misses" | C16: 4
A17: Total Observations | C17: =C16+C15 -> 6
A19: Calcs for Chart Boundaries
A20: =A21 -> 0.05 | B20: 0
A21: =B9 -> 0.05 | B21: =VLOOKUP(A21,D$31:E$1029,2) -> 0.001
A22: =A23 -> 0.95 | B22: 0
A23: =B12 -> 0.95 | B23: =VLOOKUP(A23,D$31:E$1029,2) -> 0.001
A24: =A25 -> 0.1287563928 | B24: 0
A25: =C9 -> 0.1287563928 | B25: =VLOOKUP(A25,D$31:F$1029,3) -> 0.0009946609742
A26: =A27 -> 0.6587385638 | B26: 0
A27: =C12 -> 0.6587385638 | B27: =VLOOKUP(A27,D$31:F$1029,3) -> 0.0006219366701
D29: Chart Distribution Calculations | G29: Prob. of sample result if the hypothetical proportion was the actual proportion | H29: Bayesian Inversion: Prob. that actual proportion is equal to hypothetical proportion
D30: Population Proportion | E30: Prior | F30: w/Data
D31: 0.001 | E31: =_xlfn.BETA.DIST(D31+D$31/2,B$6,B$7,1)-_xlfn.BETA.DIST(D31-D$31/2,B$6,B$7,1) -> 0.001 | F31: =_xlfn.BETA.DIST(D31+D$31/2,C$6,C$7,1)-_xlfn.BETA.DIST(D31-D$31/2,C$6,C$7,1) -> 1.132259521e-07 | G31: =BINOMDIST(C$15,C$15+C$16,D31,0) -> 1.494008994e-05 | H31: =(G31*E31/SUMPRODUCT($G$31:$G$1029,$E$31:$E$1029)) -> 1.045806296e-07
D32: =D31+D$31 -> 0.002 | E32: 0.001 | F32: 4.251913316e-07 | G32: 5.952143808e-05 | H32: =(G32*E32/SUMPRODUCT($G$31:$G$1029,$E$31:$E$1029)) -> 4.166500666e-07
D33: 0.003 | E33: 0.001 | F33: =_xlfn.BETA.DIST(D33+D$31/2,C$6,C$7,1)-_xlfn.BETA.DIST(D33-D$31/2,C$6,C$7,1) -> 9.421487614e-07 | G33: 0.0001333872754 | H33: 9.33710928e-07
D34: 0.004 | E34: 0.001 | F34: 1.661615876e-06 | G34: 0.0002361829786 | H34: 1.65328085e-06
D35: 0.005 | E35: 0.001 | F35: 2.581125278e-06 | G35: 0.0003675560627 | H35: 2.572892439e-06
D36: 0.006 | E36: 0.001 | F36: 3.698224491e-06 | G36: =BINOMDIST(C$15,C$15+C$16,D36,0) -> 0.0005271561741 | H36: 3.690093219e-06
D37: 0.007 | E37: 0.001 | F37: 5.010475906e-06 | G37: 0.0007146350833 | H37: 5.002445583e-06
D38: 0.008 | E38: 0.001 | F38: 6.515456734e-06 | G38: 0.0009296466779 | H38: 6.507526745e-06
D39: 0.009 | E39: 0.001 | F39: 8.210758954e-06 | G39: 0.001171846955 | H39: 8.202928685e-06
D40: 0.01 | E40: 0.001 | F40: 1.009398926e-05 | G40: 0.001440894015 | H40: 1.008625811e-05
D41: 0.011 | E41: 0.001 | F41: 1.216276903e-05 | G41: 0.001736448054 | H41: 1.215513637e-05
D42: 0.012 | E42: 0.001 | F42: 1.441473425e-05 | G42: 0.002058171355 | H42: 1.440719948e-05
D43: 0.013 | E43: 0.001 | F43: 1.684753547e-05 | G43: 0.002405728285 | H43: 1.684009799e-05
D44: 0.014 | E44: 0.001 | F44: 1.945883778e-05 | G44: 0.002778785284 | H44: 1.945149698e-05
D45: 0.015 | E45: 0.001 | F45: 2.224632072e-05 | G45: 0.003177010858 | H45: 2.223907601e-05
D46: 0.016 | E46: 0.001 | F46: 2.520767826e-05 | G46: 0.003600075577 | H46: 2.520052904e-05
D47: 0.017 | E47: 0.001 | F47: 2.834061876e-05 | G47: 0.004047652061 | H47: 2.833356442e-05
D48: 0.018 | E48: 0.001 | F48: 3.164286487e-05 | G48: 0.004519414976 | H48: 3.163590483e-05
D49: 0.019 | E49: 0.001 | F49: 3.511215355e-05 | G49: 0.00501504103 | H49: 3.510528721e-05
D50: 0.02 | E50: 0.001 | F50: 3.874623595e-05 | G50: 0.00553420896 | H50: 3.873946272e-05
D51: 0.021 | E51: 0.001 | F51: 4.254287742e-05 | G51: 0.00607659953 | H51: 4.253619671e-05
D52: 0.022 | E52: 0.001 | F52: 4.649985743e-05 | G52: 0.006641895523 | H52: 4.649326866e-05
D53: 0.023 | E53: 0.001 | F53: 5.061496953e-05 | G53: 0.00722978173 | H53: 5.060847211e-05
D54: 0.024 | E54: 0.001 | F54: 5.48860213e-05 | G54: 0.007839944949 | H54: 5.487961464e-05
D55: 0.025 | E55: 0.001 | F55: 5.931083429e-05 | G55: 0.008472073975 | H55: 5.930451782e-05
D56: 0.026 | E56: 0.001 | F56: 6.388724399e-05 | G56: 0.009125859591 | H56: 6.388101714e-05
D57: 0.027 | E57: 0.001 | F57: 6.861309979e-05 | G57: 0.009800994567 | H57: 6.860696197e-05
D58: 0.028 | E58: 0.001 | F58: 7.348626489e-05 | G58: 0.01049717365 | H58: 7.348021552e-05
D59: 0.029 | E59: 0.001 | F59: 7.850461628e-05 | G59: 0.01121409354 | H59: 7.84986548e-05
D60: 0.03 | E60: 0.001 | F60: 8.366604471e-05 | G60: 0.01195145294 | H60: 8.366017055e-05
D61: 0.031 | E61: 0.001 | F61: 8.896845459e-05 | G61: 0.01270895245 | H61: 8.896266717e-05
D62: 0.032 | E62: 0.001 | F62: 9.4409764e-05 | G62: 0.01348629468 | H62: 9.440406276e-05
D63: 0.033 | E63: 0.001 | F63: 9.998790459e-05 | G63: 0.01428318414 | H63: 9.998228897e-05
D64: 0.034 | E64: 0.001 | F64: 0.0001057008216 | G64: 0.01509932729 | H64: 0.000105695291
D65: 0.035 | E65: 0.001 | F65: 0.0001115464737 | G65: 0.01593443251 | H65: 0.0001115410276
D66: 0.036 | E66: 0.001 | F66: 0.000117522833 | G66: 0.01678821012 | H66: 0.0001175174708
D67: 0.037 | E67: 0.001 | F67: 0.0001236278851 | G67: 0.01766037234 | H67: 0.0001236226064
D68: 0.038 | E68: 0.001 | F68: 0.000129859629 | G68: 0.01855063329 | H68: 0.0001298544331
D69: 0.039 | E69: 0.001 | F69: 0.0001362160768 | G69: 0.01945870902 | H69: 0.0001362109631
D70: 0.04 | E70: 0.001 | F70: 0.000142695254 | G70: 0.02038431744 | H70: 0.0001426902221
D71: 0.041 | E71: 0.001 | F71: 0.0001492951994 | G71: 0.02132717837 | H71: 0.0001492902486
D72: 0.042 | E72: 0.001 | F72: 0.0001560139647 | G72: 0.0222870135 | H72: 0.0001560090945
D73: 0.043 | E73: 0.001 | F73: 0.0001628496149 | G73: 0.0232635464 | H73: 0.0001628448248
D74: 0.044 | E74: 0.001 | F74: 0.0001698002281 | G74: 0.02425650251 | H74: 0.0001697955176
D75: 0.045 | E75: 0.001 | F75: 0.0001768638954 | G75: 0.02526560912 | H75: 0.0001768592638
D76: 0.046 | E76: 0.001 | F76: 0.0001840387207 | G76: 0.02629059538 | H76: 0.0001840341676
D77: 0.047 | E77: 0.001 | F77: 0.0001913228211 | G77: 0.02733119228 | H77: 0.0001913183459
D78: 0.048 | E78: 0.001 | F78: 0.0001987143264 | G78: 0.02838713266 | H78: 0.0001987099286
D79: 0.049 | E79: 0.001 | F79: 0.0002062113793 | G79: 0.02945815119 | H79: 0.0002062070584
D80: 0.05 | E80: 0.001 | F80: 0.0002138121352 | G80: 0.03054398438 | H80: 0.0002138078906
D81: 0.051 | E81: 0.001 | F81: 0.0002215147624 | G81: 0.03164437052 | H81: 0.0002215105936
D82: 0.052 | E82: 0.001 | F82: 0.0002293174418 | G82: 0.03275904976 | H82: 0.0002293133483
D83: 0.053 | E83: 0.001 | F83: 0.000237218367 | G83: 0.03388776403 | H83: 0.0002372143482
D84: 0.054 | E84: 0.001 | F84: 0.000245215744 | G84: 0.03503025706 | H84: 0.0002452117994
D85: 0.055 | E85: 0.001 | F85: 0.0002533077916 | G85: 0.0361862744 | H85: 0.0002533039208
D86: 0.056 | E86: 0.001 | F86: 0.0002614927411 | G86: 0.03735556335 | H86: 0.0002614889434
D87: 0.057 | E87: 0.001 | F87: 0.0002697688361 | G87: 0.03853787301 | H87: 0.0002697651111
D88: 0.058 | E88: 0.001 | F88: 0.0002781343327 | G88: 0.03973295426 | H88: 0.0002781306799
D89: 0.059 | E89: 0.001 | F89: 0.0002865874994 | G89: 0.04094055974 | H89: 0.0002865839182
D90: 0.06 | E90: 0.001 | F90: 0.000295126617 | G90: 0.04216044384 | H90: 0.0002951231069
D91: 0.061 | E91: 0.001 | F91: 0.0003037499785 | G91: 0.04339236272 | H91: 0.000303746539
D92: 0.062 | E92: 0.001 | F92: 0.0003124558893 | G92: 0.04463607427 | H92: 0.0003124525199
D93: 0.063 | E93: 0.001 | F93: 0.0003212426668 | G93: 0.04589133815 | H93: 0.0003212393671
D94: 0.064 | E94: 0.001 | F94: 0.0003301086408 | G94: 0.04715791572 | H94: 0.0003301054101
D95: 0.065 | E95: =_xlfn.BETA.DIST(D95+D$31/2,B$6,B$7,1)-_xlfn.BETA.DIST(D95-D$31/2,B$6,B$7,1) -> 0.001 | F95: =_xlfn.BETA.DIST(D95+D$31/2,C$6,C$7,1)-_xlfn.BETA.DIST(D95-D$31/2,C$6,C$7,1) -> 0.0003390521528 | G95: =BINOMDIST(C$15,C$15+C$16,D95,0) -> 0.0484355701 | H95: 0.0003390489907
D96: =D95+D$31 -> 0.066 | E96: 0.001 | F96: 0.0003480715567 | G96: 0.04972406609 | H96: =(G96*E96/SUMPRODUCT($G$31:$G$1029,$E$31:$E$1029)) -> 0.0003480684627
D97: 0.067 | E97: 0.001 | F97: 0.0003571652182 | G97: 0.05102317026 | H97: 0.0003571621918
D98: 0.068 | E98: 0.001 | F98: 0.0003663315152 | G98: 0.05233265084 | H98: 0.0003663285559
D99: 0.069 | E99: 0.001 | F99: 0.0003755688372 | G99: 0.05365227778 | H99: 0.0003755659445
D100: 0.07 | E100: 0.001 | F100: 0.0003848755858 | G100: 0.05498182274 | H100: 0.0003848727591
D101: 0.071 | E101: 0.001 | F101: 0.0003942501742 | G101: 0.05632105903 | H101: 0.0003942474132
D102: 0.072 | E102: 0.001 | F102: 0.0004036910277 | G102: 0.05766976169 | H102: 0.0004036883319
D103: 0.073 | E103: 0.001 | F103: 0.0004131965831 | G103: 0.05902770741 | H103: 0.0004131939519
D104: 0.074 | E104: 0.001 | F104: 0.0004227652888 | G104: 0.06039467454 | H104: 0.0004227627218
D105: 0.075 | E105: 0.001 | F105: 0.0004323956052 | G105: 0.06177044312 | H105: 0.0004323931018
D106: 0.076 | E106: 0.001 | F106: 0.0004420860039 | G106: 0.06315479482 | H106: 0.0004420835637
D107: 0.077 | E107: 0.001 | F107: 0.0004518349683 | G107: 0.06454751298 | H107: 0.0004518325908
D108: 0.078 | E108: 0.001 | F108: 0.0004616409932 | G108: 0.06594838257 | H108: 0.000461638678
D109: 0.079 | E109: 0.001 | F109: 0.000471502585 | G109: 0.06735719022 | H109: 0.0004715003315
D110: 0.08 | E110: 0.001 | F110: 0.0004814182613 | G110: 0.06877372416 | H110: 0.0004814160691
D111: 0.081 | E111: 0.001 | F111: 0.0004913865512 | G111: 0.07019777427 | H111: 0.0004913844199
D112: 0.082 | E112: 0.001 | F112: 0.0005014059953 | G112: 0.07162913203 | H112: 0.0005014039242
D113: 0.083 | E113: 0.001 | F113: 0.000511475145 | G113: 0.07306759056 | H113: 0.0005114731339
D114: 0.084 | E114: 0.001 | F114: 0.0005215925635 | G114: 0.07451294455 | H114: 0.0005215906118
D115: 0.085 | E115: 0.001 | F115: 0.0005317568249 | G115: 0.07596499031 | H115: 0.0005317549321
D116: 0.086 | E116: 0.001 | F116: 0.0005419665145 | G116: 0.07742352574 | H116: 0.0005419646802
D117: 0.087 | E117: 0.001 | F117: 0.0005522202286 | G117: 0.07888835033 | H117: 0.0005522184523
D118: 0.088 | E118: 0.001 | F118: 0.0005625165748 | G118: 0.08035926515 | H118: 0.0005625148561
D119: 0.089 | E119: 0.001 | F119: 0.0005728541715 | G119: 0.08183607284 | H119: 0.0005728525099
D120: 0.09 | E120: 0.001 | F120: 0.0005832316483 | G120: 0.08331857762 | H120: 0.0005832300433
D121: 0.091 | E121: 0.001 | F121: 0.0005936476455 | G121: 0.08480658524 | H121: 0.0005936460967
D122: 0.092 | E122: 0.001 | F122: 0.0006041008144 | G122: 0.08629990305 | H122: 0.0006040993214
D123: 0.093 | E123: 0.001 | F123: 0.0006145898172 | G123: 0.08779833992 | H123: 0.0006145883795
D124: 0.094 | E124: 0.001 | F124: 0.0006251133268 | G124: 0.08930170627 | H124: 0.0006251119439
D125: 0.095 | E125: 0.001 | F125: 0.000635670027 | G125: 0.09080981407 | H125: 0.0006356686985
D126: 0.096 | E126: 0.001 | F126: 0.0006462586121 | G126: 0.09232247679 | H126: 0.0006462573375
D127: 0.097 | E127: 0.001 | F127: 0.0006568777872 | G127: 0.09383950945 | H127: 0.0006568765662
D128: 0.098 | E128: 0.001 | F128: 0.0006675262681 | G128: 0.0953607286 | H128: 0.0006675251002
D129: 0.099 | E129: 0.001 | F129: 0.0006782027812 | G129: 0.09688595226 | H129: 0.0006782016658
D130: 0.1 | E130: 0.001 | F130: 0.0006889060631 | G130: 0.098415 | H130: 0.000688905
D131: 0.101 | E131: 0.001 | F131: 0.0006996348614 | G131: 0.09994769286 | H131: 0.00069963385
D132: 0.102 | E132: 0.001 | F132: 0.0007103879338 | G132: 0.1014838534 | H132: 0.0007103869738
D133: 0.103 | E133: 0.001 | F133: 0.0007211640486 | G133: 0.1030233056 | H133: 0.0007211631394
D134: 0.104 | E134: 0.001 | F134: 0.0007319619843 | G134: 0.1045658751 | H134: 0.0007319611256
D135: 0.105 | E135: 0.001 | F135: 0.0007427805299 | G135: 0.1061113887 | H135: 0.0007427797212
D136: 0.106 | E136: 0.001 | F136: 0.0007536184846 | G136: 0.1076596751 | H136: 0.0007536177256
D137: 0.107 | E137: 0.001 | F137: 0.0007644746579 | G137: 0.109210564 | H137: 0.0007644739481
D138: 0.108 | E138: 0.001 | F138: 0.0007753478695 | G138: 0.1107638869 | H138: 0.0007753472084
D139: 0.109 | E139: 0.001 | F139: 0.0007862369491 | G139: 0.1123194766 | H139: 0.0007862363363
D140: 0.11 | E140: 0.001 | F140: 0.0007971407368 | G140: 0.1138771674 | H140: 0.0007971401719
D141: 0.111 | E141: 0.001 | F141: 0.0008080580825 | G141: 0.115436795 | H141: 0.0008080575651
D142: 0.112 | E142: 0.001 | F142: 0.0008189878463 | G142: 0.1169981966 | H142: 0.000818987376
D143: 0.113 | E143: 0.001 | F143: 0.0008299288982 | G143: 0.1185612107 | H143: 0.0008299284746
D144: 0.114 | E144: 0.001 | F144: 0.0008408801183 | G144: 0.1201256773 | H144: 0.000840879741
D145: 0.115 | E145: 0.001 | F145: 0.0008518403965 | G145: 0.1216914378 | H145: 0.0008518400649
D146: 0.116 | E146: 0.001 | F146: 0.0008628086324 | G146: 0.1232583352 | H146: 0.0008628083463
D147: 0.117 | E147: 0.001 | F147: 0.0008737837358 | G147: 0.1248262135 | H147: 0.0008737834947
D148: 0.118 | E148: 0.001 | F148: 0.0008847646259 | G148: 0.1263949185 | H148: 0.0008847644295
D149: 0.119 | E149: 0.001 | F149: 0.000895750232 | G149: 0.1279642971 | H149: 0.0008957500798
D150: 0.12 | E150: 0.001 | F150: 0.0009067394927 | G150: 0.1295341978 | H150: 0.0009067393843
D151: 0.121 | E151: 0.001 | F151: 0.0009177313567 | G151: 0.1311044702 | H151: 0.0009177312917
D152: 0.122 | E152: 0.001 | F152: 0.0009287247819 | G152: 0.1326749657 | H152: 0.0009287247599
D153: 0.123 | E153: 0.001 | F153: 0.0009397187361 | G153: 0.1342455367 | H153: 0.0009397187567
D154: 0.124 | E154: 0.001 | F154: 0.0009507121964 | G154: 0.135816037 | H154: 0.0009507122592
D155: 0.125 | E155: 0.001 | F155: 0.0009617041495 | G155: 0.137386322 | H155: 0.0009617042542
D156: 0.126 | E156: 0.001 | F156: 0.0009726935916 | G156: 0.1389562482 | H156: 0.0009726937377
D157: 0.127 | E157: 0.001 | F157: 0.0009836795282 | G157: 0.1405256736 | H157: 0.0009836797153
D158: 0.128 | E158: 0.001 | F158: 0.0009946609742 | G158: 0.1420944574 | H158: 0.0009946612021
D159: 0.129 | E159: =_xlfn.BETA.DIST(D159+D$31/2,B$6,B$7,1)-_xlfn.BETA.DIST(D159-D$31/2,B$6,B$7,1) -> 0.001 | F159: =_xlfn.BETA.DIST(D159+D$31/2,C$6,C$7,1)-_xlfn.BETA.DIST(D159-D$31/2,C$6,C$7,1) -> 0.001005636954 | G159: =BINOMDIST(C$15,C$15+C$16,D159,0) -> 0.1436624603 | H159: 0.001005637222
D160: =D159+D$31 -> 0.13 | E160: 0.001 | F160: 0.001016606501 | G160: 0.1452295441 | H160: =(G160*E160/SUMPRODUCT($G$31:$G$1029,$E$31:$E$1029)) -> 0.001016606809
D161: 0.131 | E161: 0.001 | F161: 0.001027568658 | G161: 0.1467955722 | H161: 0.001027569005
D162: 0.132 | E162: 0.001 | F162: 0.001038522477 | G162: 0.1483604091 | H162: 0.001038522864
D163: 0.133 | E163: 0.001 | F163: 0.001049467019 | G163: 0.1499239206 | H163: 0.001049467445
D164: 0.134 | E164: 0.001 | F164: 0.001060401355 | G164: 0.1514859741 | H164: 0.001060401819
D165: 0.135 | E165: 0.001 | F165: 0.001071324563 | G165: 0.1530464379 | H165: 0.001071325065
D166: 0.136 | E166: 0.001 | F166: 0.001082235733 | G166: 0.1546051818 | H166: 0.001082236272
D167: 0.137 | E167: 0.001 | F167: 0.001093133962 | G167: 0.1561620769 | H167: 0.001093134538
D168: 0.138 | E168: 0.001 | F168: 0.001104018355 | G168: 0.1577169955 | H168: 0.001104018968
D169: 0.139 | E169: 0.001 | F169: 0.001114888029 | G169: 0.1592698112 | H169: 0.001114888679
D170: 0.14 | E170: 0.001 | F170: 0.001125742107 | G170: 0.160820399 | H170: 0.001125742793
D171: 0.141 | E171: 0.001 | F171: 0.001136579723 | G171: 0.162368635 | H171: 0.001136580445
D172: 0.142 | E172: 0.001 | F172: 0.001147400019 | G172: 0.1639143966 | H172: 0.001147400776
D173: 0.143 | E173: 0.001 | F173: 0.001158202144 | G173: 0.1654575624 | H173: 0.001158202936
D174: 0.144 | E174: 0.001 | F174: 0.001168985259 | G174: 0.1669980123 | H174: 0.001168986086
D175: 0.145 | E175: 0.001 | F175: 0.001179748532 | G175: 0.1685356275 | H175: 0.001179749393
D176: 0.146 | E176: 0.001 | F176: 0.001190491138 | G176: 0.1700702904 | H176: 0.001190492033
D177: 0.147 | E177: 0.001 | F177: 0.001201212264 | G177: 0.1716018846 | H177: 0.001201213192
D178: 0.148 | E178: 0.001 | F178: 0.001211911103 | G178: 0.173130295 | H178: 0.001211912065
D179: 0.149 | E179: 0.001 | F179: 0.001222586857 | G179: 0.1746554074 | H179: 0.001222587852
D180: 0.15 | E180: 0.001 | F180: 0.001233238738 | G180: 0.1761771094 | H180: 0.001233239766
D181: 0.151 | E181: 0.001 | F181: 0.001243865965 | G181: 0.1776952892 | H181: 0.001243867025
D182: 0.152 | E182: 0.001 | F182: 0.001254467765 | G182: 0.1792098366 | H182: 0.001254468857
D183: 0.153 | E183: 0.001 | F183: 0.001265043375 | G183: 0.1807206425 | H183: 0.001265044498
D184: 0.154 | E184: 0.001 | F184: 0.001275592039 | G184: 0.1822275989 | H184: 0.001275593193
D185: 0.155 | E185: 0.001 | F185: 0.001286113009 | G185: 0.1837305991 | H185: 0.001286114194
D186: 0.156 | E186: 0.001 | F186: 0.001296605547 | G186: 0.1852295375 | H186: 0.001296606762
D187: 0.157 | E187: 0.001 | F187: 0.001307068922 | G187: 0.1867243096 | H187: 0.001307070167
D188: 0.158 | E188: 0.001 | F188: 0.001317502411 | G188: 0.1882148123 | H188: 0.001317503686
D189: 0.159 | E189: 0.001 | F189: 0.0013279053 | G189: 0.1897009435 | H189: 0.001327906604
D190: 0.16 | E190: 0.001 | F190: 0.001338276882 | G190: 0.1911826022 | H190: 0.001338278216
D191: 0.161 | E191: 0.001 | F191: 0.001348616459 | G191: 0.1926596888 | H191: 0.001348617822
D192: 0.162 | E192: 0.001 | F192: 0.001358923341 | G192: 0.1941321045 | H192: 0.001358924732
D193: 0.163 | E193: 0.001 | F193: 0.001369196845 | G193: 0.195599752 | H193: 0.001369198264
D194: 0.164 | E194: 0.001 | F194: 0.001379436297 | G194: 0.1970625349 | H194: 0.001379437744
D195: 0.165 | E195: 0.001 | F195: 0.001389641031 | G195: 0.1985203579 | H195: 0.001389642505
D196: 0.166 | E196: 0.001 | F196: 0.001399810388 | G196: 0.199973127 | H196: 0.001399811889
D197: 0.167 | E197: 0.001 | F197: 0.001409943716 | G197: 0.2014207492 | H197: 0.001409945244
D198: 0.168 | E198: 0.001 | F198: 0.001420040374 | G198: 0.2028631327 | H198: 0.001420041929
D199: 0.169 | E199: 0.001 | F199: 0.001430099726 | G199: 0.2043001867 | H199: 0.001430101307
D200: 0.17 | E200: 0.001 | F200: 0.001440121144 | G200: 0.2057318215 | H200: 0.001440122751
D201: 0.171 | E201: 0.001 | F201: 0.001450104009 | G201: 0.2071579487 | H201: 0.001450105641
D202: 0.172 | E202: 0.001 | F202: 0.001460047709 | G202: 0.2085784808 | H202: 0.001460049366
D203: 0.173 | E203: 0.001 | F203: 0.001469951638 | G203: 0.2099933315 | H203: 0.00146995332
D204: 0.174 | E204: 0.001 | F204: 0.001479815201 | G204: 0.2114024153 | H204: 0.001479816907
D205: 0.175 | E205: 0.001 | F205: 0.001489637807 | G205: 0.2128056482 | H205: 0.001489639537
D206: 0.176 | E206: 0.001 | F206: 0.001499418874 | G206: 0.214202947 | H206: 0.001499420629
... 823 more rows

Sheet Rule of Succession
A1: Laplace's Rule of Succession
Q23: =1/(12+2) -> 0.07142857143
A25: Other Handy "Naïve" Estimators
A52: Process for Estimating the Baseline

Sheet CatchRecatch Ws
A1: Worksheet: Computing a 90% Confidence with Catch/Recatch
A2: This shows the calculations for the estimation of the size of a population when you can't actually count or even see the entire population. Note the similarities to and differences from the 90% CI calculation on other worksheets.
A3: 90% Confidence Interval Calculations
A4: First sample size (i.e. the fish that were tagged) | B4: 20
A5: The second sample size | B5: 12
A6: Overlap between samples (i.e. the tagged fish that showed up in the second sample) - THIS APPROXIMATION IS ONLY VALID WHERE THIS VALUE >10 | B6: 5
C7: Beta Distribution
A11: Computing bounds for 90% CI for the percentage of tagged fish
A12: Upper bound | C12: =_xlfn.BETA.INV(0.95,B6+1,B5-B6+1) -> 0.645200719
A13: Lower bound | C13: =_xlfn.BETA.INV(0.05,B6+1,B5-B6+1) -> 0.2239553942
A14: Computing bounds for 90% CI for the total population of fish
A15: Upper bound | C15: =(B4-B6)/C13+B5 -> 78.97762317
A16: Lower bound | C16: =(B4-B6)/C12+B5 -> 35.24857918

Sheet Mathless Table
A1: The "Mathless Table"

Sheet EstimatingDistAndMean Ex
A1: Example Estimating a Population Distribution and Mean
A2: This worksheet computes a distribution for he estimate of the mean of several different population data sets. For each data set it will also compute an estimate of the underlying distribution. The graph on the right also shows how the 90% confidence interval for the mean narrows as more samples are taken. The user can also explore different groups of sample points by changing the scenario. Different populations can be selected from the drop down menu.
A4: Scenario | D4: Estimate of True Population Distribution and Its Mean | K4: 90% Confidence Interval for Estimate of Mean as Samples Increase
A5: Different scenarios will randomly changes the samples to show how different random samples could change the estimates. | D5: The chart below shows the "true" shape of the distribution for a population (dashed line). It also shows an estimate of that true shape (dark blue) and an estimate of the true mean (light blue) based on a random sample of values from the population (green diamonds) | K5: This chart shows how the estimate of the mean of a population improves with sample size. The true mean is shown as a dashed grey line. The estimate of the mean is shown with blue lines representing upper and lower bounds of the 90% confidence interval.
B6: 2402
A7: Number of Samples
A8: Enter number of samples or use slider bar below. For a given scenario, increasing the number of samples improves estimates.
B9: 8
A10: True, Hidden Distribution
A11: Population # | B11: 2
A12: Reveal Distribution? | B12: TRUE
A13: =IF(B12,OFFSET(W18,,B11-1),"") -> Beta
A16: Estimates Based on Samples
A17: Average of sample | B17: =AVERAGE(L26:L227) -> 65.9375
A18: Standard Deviation of Sample | B18: =_xlfn.STDEV.S(L26:L227) -> 14.29394852 | W18: Normal | X18: Beta | Y18: Uniform | Z18: lognormal | AA18: MLB Player Batting | AB18: book ratings w/>10 reviews | AC18: Book num of pages | AD18: NJ teacher salary | AE18: age of working adults | AF18: Work hours per month
A19: Error of the Estimate of the Mean | B19: =B18/B9^0.5 -> 5.053673964 | W19: 100.5 | X19: 66.9166667 | Y19: 50.25 | Z19: 43.86670894 | AA19: 261.2139177 | AB19: 4.637817596 | AC19: 354.7810768 | AD19: 73281.171 | AE19: 38.06941754 | AF19: 201.2740661
W21: 0 | X21: 0 | Y21: 0 | Z21: 0 | AA21: 140 | AB21: 0 | AC21: 0 | AD21: 0 | AE21: 0 | AF21: 90
A22: Increments for chart | B22: =OFFSET(W23,,B11-1) -> 0.5 | W22: 200 | X22: 100 | Y22: 100 | Z22: 200 | AA22: 400 | AB22: 8 | AC22: 1800 | AD22: 300000 | AE22: 98 | AF22: 310
B23: Distribution curves | I23: Sample Values | N23: Running Calculations for Chart Above | T23: True Mean Plot | W23: =(W22-W21)/200 -> 1 | X23: 0.5 | Y23: 0.5 | Z23: 1 | AA23: =(AA22-AA21)/200 -> 1.3 | AB23: =(AB22-AB21)/200 -> 0.04 | AC23: 9 | AD23: 1500 | AE23: 0.49 | AF23: 1.1
A24: True Population Cumulative Distribution | B24: True Population Distribution | C24: Horizontal axis values | D24: Estimated Distribution pdf | F24: Error of the Mean Estimate pdf | I24: Y-axis Value for Samples | J24: Sample Count | K24: Random Number | L24: For Calcs | M24: For Chart | O24: Running Average | T24: Mean | U24: Count | W24: =NORMDIST(C25,100,15,1) -> 1.308392469e-11 | X24: =IFERROR(BETADIST(C25,6,3,0,100),"") -> 0 | Y24: =C25/100 -> 0 | Z24: 0 | AA24: 1.561051409e-06 | AB24: 0.0001248510013 | AC24: 2.24927649e-11 | AD24: 0.0001431941569 | AE24: 1.880110674e-18 | AF24: 4.363697002e-05 | AT24: 1 | AU24: 2 | AV24: 3 | AW24: 4 | AX24: 5 | AY24: 6 | AZ24: 7 | BA24: 8 | BB24: 9 | BC24: 10 | BD24: 11 | BE24: 12 | BF24: 13 | BG24: 14 | BH24: 15 | BI24: 16 | BJ24: 17 | BK24: 18 | BL24: 19 | BM24: 20 | BN24: 21 | BO24: 22 | BP24: 23 | BQ24: 24 | BR24: 25 | BS24: 26 | BT24: 27 | BU24: 28 | BV24: 29 | BW24: 30
A25: =OFFSET(W24,,B$11-1) -> 0 | B25: =IF(B12,A25/1000,"") -> 0 | C25: =OFFSET(W21,,B$11-1) -> 0 | D25: =_xlfn.T.DIST((C25+B$22/2-B$17)/B$18,B$9-1,1)-_xlfn.T.DIST((C25-B$22/2-B$17)/B$18,B$9-1,1) -> 5.056123629e-05 | F25: =_xlfn.T.DIST((C25+B$22/2-B$17)/B$19,B$9-1,1)-_xlfn.T.DIST((C25-B$22/2-B$17)/B$19,B$9-1,1) -> 9.269802877e-08 | J25: 0 | K25: Not applicable | O25: =NA() ->  | P25: =NA() ->  | U25: 0 | W25: =NORMDIST(C26,100,15,1) -> 1.640947554e-11 | X25: =IFERROR(BETADIST(C26,6,3,0,100),"") -> 4.337582031e-13 | Y25: =C26/100 -> 0.005 | Z25: =_xlfn.LOGNORM.DIST(C26,(LN(120)+LN(10))/2,(LN(120)-LN(10))/3.29,1) -> 1.003888769e-08 | AA25: 3.280644506e-06 | AB25: 0.0003148691637 | AC25: 6.74782947e-11 | AD25: 0.0003069917895 | AE25: 3.969122535e-18 | AF25: 0.0001254562888
A26: =OFFSET(W25,,B$11-1) -> 4.337582031e-13 | B26: =IF(B$12,A26-A25,"") -> 4.337582031e-13 | C26: =C25+OFFSET(W$23,,B$11-1) -> 0.5 | D26: =_xlfn.T.DIST((C26+B$22/2-B$17)/B$18,B$9-1,1)-_xlfn.T.DIST((C26-B$22/2-B$17)/B$18,B$9-1,1) -> 5.29273788e-05 | F26: =_xlfn.T.DIST((C26+B$22/2-B$17)/B$19,B$9-1,1)-_xlfn.T.DIST((C26-B$22/2-B$17)/B$19,B$9-1,1) -> 9.828008215e-08 | I26: =IF(L26<>"",0,"") -> 0 | J26: =IF(B$9>J25,J25+1,"") -> 1 | K26: =IFERROR(( MOD(( MOD( MOD( 999999999999989, MOD( PM_Index*2499997 +$J26*1800451, 7450589 ) * 4658 + 7450581 ) * 383, 99991 ) * 7440893 + MOD( MOD( 999999999999989, MOD( PM_Index*2246527 +$J26*2399993, 7450987 ) * 7580 + 7560584 ) * 17669, 7440893 )) * 1343, 4294967296 ) + 0.5 ) / 4294967296,"") -> 0.9854336929 | L26: =IFERROR(VLOOKUP(K26,A$25:C$225,3),"") -> 93 | M26: =IF(L26="",NA(),L26) -> 93 | O26: =IF(K26="","",AVERAGE(L$26:L26)) -> 93 | P26: =NA() ->  | Q26: =NA() ->  | R26: =NA() ->  | S26: =NA() ->  | T26: =IF($B$12,OFFSET(W$19,,B$11-1),"") -> 66.9166667 | U26: 1 | W26: 2.055788909e-11 | X26: 2.75221e-11 | Y26: 0.01 | Z26: =_xlfn.LOGNORM.DIST(C27,(LN(120)+LN(10))/2,(LN(120)-LN(10))/3.29,1) -> 1.342144395e-06 | AA26: 5.174880915e-06 | AB26: 0.0004962405508 | AC26: 1.349565894e-10 | AD26: 0.0004883023766 | AE26: 8.147146256e-18 | AF26: 0.000266107594
A27: 2.75221e-11 | B27: =IF(B$12,A27-A26,"") -> 2.70883418e-11 | C27: 1 | D27: =_xlfn.T.DIST((C27+B$22/2-B$17)/B$18,B$9-1,1)-_xlfn.T.DIST((C27-B$22/2-B$17)/B$18,B$9-1,1) -> 5.541393622e-05 | F27: =_xlfn.T.DIST((C27+B$22/2-B$17)/B$19,B$9-1,1)-_xlfn.T.DIST((C27-B$22/2-B$17)/B$19,B$9-1,1) -> 1.042412602e-07 | I27: 0 | J27: 2 | K27: 0.4524318414 | L27: =IFERROR(VLOOKUP(K27,A$25:C$225,3),"") -> 66 | M27: =IF(L27="",NA(),L27) -> 66 | O27: =IF(K27="","",AVERAGE(L$26:L27)) -> 79.5 | P27: =IFERROR(_xlfn.STDEV.S(L$26:L27)/J27^0.5,"") -> 13.5 | Q27: =IFERROR(TINV(0.1,J27-1)*P27,"") -> 85.23564545 | R27: =IFERROR(O27+Q27,"") -> 164.7356454 | S27: =IFERROR(O27-Q27,"") -> -5.735645448 | T27: =IF($B$12,OFFSET(W$19,,B$11-1),"") -> 66.9166667 | U27: 2 | W27: 2.572702549e-11 | X27: 3.107900707e-10 | Y27: 0.015 | Z27: 1.613862642e-05 | AA27: 7.258533931e-06 | AB27: 0.00062678577 | AC27: 0.003540995842 | AD27: 0.0007128802629 | AE27: 1.441418184e-17 | AF27: 0.0004895522574
A28: 3.107900707e-10 | B28: =IF(B$12,A28-A27,"") -> 2.832679707e-10 | C28: 1.5 | D28: =_xlfn.T.DIST((C28+B$22/2-B$17)/B$18,B$9-1,1)-_xlfn.T.DIST((C28-B$22/2-B$17)/B$18,B$9-1,1) -> 5.802745375e-05 | F28: 1.106102434e-07 | I28: 0 | J28: 3 | K28: 0.3492761484 | L28: =IFERROR(VLOOKUP(K28,A$25:C$225,3),"") -> 61.5 | M28: 61.5 | O28: =IF(K28="","",AVERAGE(L$26:L28)) -> 73.5 | P28: =IFERROR(_xlfn.STDEV.S(L$26:L28)/J28^0.5,"") -> 9.836157786 | Q28: =IFERROR(TINV(0.1,J28-1)*P28,"") -> 28.7214389 | R28: =IFERROR(O28+Q28,"") -> 102.2214389 | S28: =IFERROR(O28-Q28,"") -> 44.7785611 | T28: 66.9166667 | U28: 3 | W28: =NORMDIST(C29,100,15,1) -> 3.216088292e-11 | X28: 1.7310976e-09 | Y28: 0.02 | Z28: 7.972021754e-05 | AA28: 9.555941544e-06 | AB28: 0.0007062939246 | AC28: 0.007683553512 | AD28: 0.0008869796335 | AE28: 2.277022928e-17 | AF28: 0.0008216997301
A29: 1.7310976e-09 | B29: 1.420307529e-09 | C29: 2 | D29: =_xlfn.T.DIST((C29+B$22/2-B$17)/B$18,B$9-1,1)-_xlfn.T.DIST((C29-B$22/2-B$17)/B$18,B$9-1,1) -> 6.077484966e-05 | F29: =_xlfn.T.DIST((C29+B$22/2-B$17)/B$19,B$9-1,1)-_xlfn.T.DIST((C29-B$22/2-B$17)/B$19,B$9-1,1) -> 1.17418104e-07 | I29: 0 | J29: 4 | K29: 0.7518377613 | L29: 78 | M29: 78 | O29: =IF(K29="","",AVERAGE(L$26:L29)) -> 74.625 | P29: =IFERROR(_xlfn.STDEV.S(L$26:L29)/J29^0.5,"") -> 7.045610336 | Q29: 16.58088174 | R29: 91.20588174 | S29: 58.04411826 | T29: 66.9166667 | U29: 4 | W29: 4.016000584e-11 | X29: 6.546173096e-09 | Y29: 0.025 | Z29: 0.0002502911851 | AA29: 1.210005806e-05 | AB29: 0.0007543784318 | AC29: 0.0123858336 | AD29: 0.001076531611 | AE29: 3.321528858e-17 | AF29: 0.001283589265
A30: 6.546173096e-09 | B30: 4.815075496e-09 | C30: 2.5 | D30: 6.36634371e-05 | F30: 1.246985246e-07 | I30: 0 | J30: 5 | K30: 0.2052709978 | L30: 54 | M30: 54 | O30: =IF(K30="","",AVERAGE(L$26:L30)) -> 70.5 | P30: =IFERROR(_xlfn.STDEV.S(L$26:L30)/J30^0.5,"") -> 6.841052551 | Q30: 14.5840759 | R30: 85.0840759 | S30: 55.9159241 | T30: 66.9166667 | U30: 5 | W30: 5.009415788e-11 | X30: 1.93760181e-08 | Y30: 0.03 | Z30: 0.0005996384382 | AA30: 1.512055328e-05 | AB30: 0.0007887546366 | AC30: 0.01758948906 | AD30: 0.001279475848 | AE30: 4.574935974e-17 | AF30: 0.001886519722
A31: 1.93760181e-08 | B31: 1.2829845e-08 | C31: 3 | D31: 6.670094721e-05 | F31: 1.324880377e-07 | I31: 0 | J31: 6 | K31: 0.2215879561 | L31: 55 | M31: 55 | O31: =IF(K31="","",AVERAGE(L$26:L31)) -> 67.91666667 | P31: =IFERROR(_xlfn.STDEV.S(L$26:L31)/J31^0.5,"") -> 6.154153972 | Q31: 12.40091795 | R31: 80.31758462 | S31: 55.51574872 | T31: 66.9166667 | U31: 6 | W31: 6.241773337e-11 | X31: 4.843044063e-08 | Y31: 0.035 | Z31: 0.001202847672 | AA31: 1.871270297e-05 | AB31: 0.0008184911082 | AC31: 0.02322551292 | AD31: 0.001499933039 | AE31: 6.037244277e-17 | AF31: 0.002637309376
A32: 4.843044063e-08 | B32: 2.905442253e-08 | C32: 3.5 | D32: 6.989555355e-05 | F32: 1.40826289e-07 | I32: 0 | J32: 7 | K32: 0.5589042789 | L32: 70 | M32: 70 | O32: =IF(K32="","",AVERAGE(L$26:L32)) -> 68.21428571 | P32: =IFERROR(_xlfn.STDEV.S(L$26:L32)/J32^0.5,"") -> 5.209717503 | Q32: 10.12342032 | R32: 78.33770603 | S32: 58.0908654 | T32: 66.9166667 | U32: 7 | W32: 7.768847582e-11 | X32: 1.069613056e-07 | Y32: 0.04 | Z32: 0.002130508045 | AA32: 2.299199286e-05 | AB32: 0.0008480166828 | AC32: 0.02925387643 | AD32: 0.001729661794 | AE32: 7.708453765e-17 | AF32: 0.003535178995
A33: 1.069613056e-07 | B33: 5.853086497e-08 | C33: 4 | D33: 7.325589792e-05 | F33: 1.49756328e-07 | I33: 0 | J33: 8 | K33: 0.1481507748 | L33: 50 | M33: 50 | O33: =IF(K33="","",AVERAGE(L$26:L33)) -> 65.9375 | P33: =IFERROR(_xlfn.STDEV.S(L$26:L33)/J33^0.5,"") -> 5.053673964 | Q33: 9.57458257 | R33: 75.51208257 | S33: 56.36291743 | T33: 66.9166667 | U33: 8 | W33: 9.65901847e-11 | X33: 2.149224214e-07 | Y33: 0.045 | Z33: 0.003443919747 | AA33: 2.799683108e-05 | AB33: 0.0008790185362 | AC33: 0.03565072511 | AD33: 0.002235477125 | AE33: 9.58856444e-17 | AF33: 0.004563569909
A34: 2.149224214e-07 | B34: 1.079611158e-07 | C34: 4.5 | D34: 7.679111777e-05 | F34: 1.593249266e-07 | O34: =IF(K34="","",AVERAGE(L$26:L34)) ->  | P34: =IFERROR(_xlfn.STDEV.S(L$26:L34)/J34^0.5,"") ->  | T34: 66.9166667 | U34: 9 | W34: 1.199602262e-10 | X34: 4.008203125e-07 | Y34: 0.05 | Z34: 0.005192754076 | AA34: 3.389832824e-05 | AB34: 0.0009100203895 | AC34: 0.04241522867 | AD34: 0.002779408886 | AE34: 1.16775763e-16 | AF34: 0.005698325938
A35: 4.008203125e-07 | B35: 1.858978911e-07 | C35: 5 | D35: 8.051087503e-05 | F35: 1.695829318e-07 | O35: =IF(K35="","",AVERAGE(L$26:L35)) ->  | P35: =IFERROR(_xlfn.STDEV.S(L$26:L35)/J35^0.5,"") ->  | T35: 66.9166667 | U35: 10 | W35: 1.488228222e-10 | X35: 7.037394589e-07 | Y35: 0.055 | Z35: 0.007414423703 | AA35: 4.090945127e-05 | AB35: 0.0009368043036 | AC35: 0.04957422135 | AD35: 0.003386181249 | AE35: 1.397548935e-16 | AF35: 0.006907498585
A36: 7.037394589e-07 | B36: 3.029191464e-07 | C36: 5.5 | D36: 8.44253867e-05 | F36: 1.80585653e-07 | O36: =IF(K36="","",AVERAGE(L$26:L36)) ->  | P36: =IFERROR(_xlfn.STDEV.S(L$26:L36)/J36^0.5,"") ->  | T36: 66.9166667 | U36: 11 | W36: 1.844292818e-10 | X36: 1.175525914e-06 | Y36: 0.06 | Z36: 0.01013452679 | AA36: 4.929368638e-05 | AB36: 0.0009557850302 | AC36: 0.0571791675 | AD36: 0.004054764039 | AE36: 1.648230358e-16 | AF36: 0.008164983591
A37: 1.175525914e-06 | B37: 4.717864547e-07 | C37: 6 | D37: 8.854545717e-05 | F37: 1.923932904e-07 | O37: =IF(K37="","",AVERAGE(L$26:L37)) ->  | P37: =IFERROR(_xlfn.STDEV.S(L$26:L37)/J37^0.5,"") ->  | T37: 66.9166667 | U37: 12 | W37: 2.283065613e-10 | X37: 1.88311354e-06 | Y37: 0.065 | Z37: 0.01336789705 | AA37: 5.93823631e-05 | AB37: 0.0009663298783 | AC37: 0.06530321465 | AD37: 0.004841816814 | AE37: 1.9198019e-16 | AF37: 0.009449936512
A38: 1.88311354e-06 | B38: 7.075876262e-07 | C38: 6.5 | D38: 9.288251231e-05 | F38: 2.050714075e-07 | O38: =IF(K38="","",AVERAGE(L$26:L38)) ->  | P38: =IFERROR(_xlfn.STDEV.S(L$26:L38)/J38^0.5,"") ->  | T38: 66.9166667 | U38: 13 | W38: 2.823158037e-10 | X38: 2.910977442e-06 | Y38: 0.07 | Z38: 0.01711994266 | AA38: 7.155947153e-05 | AB38: 0.0009707587145 | AC38: 0.07403550159 | AD38: 0.005739098186 | AE38: 2.21226356e-16 | AF38: 0.01074482464
A39: 2.910977442e-06 | B39: 1.027863902e-06 | C39: 7 | D39: 9.744863553e-05 | F39: 2.186914533e-07 | O39: =IF(K39="","",AVERAGE(L$26:L39)) ->  | P39: =IFERROR(_xlfn.STDEV.S(L$26:L39)/J39^0.5,"") ->  | T39: 66.9166667 | U39: 14 | W39: 3.48722821e-10 | X39: 4.363699493e-06 | Y39: 0.075 | Z39: 0.02138807192 | AA39: 8.629705967e-05 | AB39: 0.0009720240962 | AC39: 0.0834732652 | AD39: 0.006813569449 | AE39: 2.525615339e-16 | AF39: 0.01203464775
A40: 4.363699493e-06 | B40: 1.452722051e-06 | C40: 7.5 | D40: 0.0001022566058 | F40: 2.333313395e-07 | O40: =IF(K40="","",AVERAGE(L$26:L40)) ->  | P40: =IFERROR(_xlfn.STDEV.S(L$26:L40)/J40^0.5,"") ->  | T40: 66.9166667 | U40: 15 | W40: 4.302828474e-10 | X40: 6.368631194e-06 | Y40: 0.08 | Z40: 0.02616308392 | AA40: 0.0001041624513 | AB40: 0.0009724458902 | AC40: 0.09371324252 | AD40: 0.007768540553 | AE40: 2.859857237e-16 | AF40: 0.01331667856
A41: 6.368631194e-06 | B41: 2.0049317e-06 | C41: 8 | D41: 0.0001073199379 | F41: 2.490760792e-07 | O41: =IF(K41="","",AVERAGE(L$26:L41)) ->  | P41: =IFERROR(_xlfn.STDEV.S(L$26:L41)/J41^0.5,"") ->  | T41: 66.9166667 | U41: 16 | W41: 5.303423263e-10 | X41: 9.078639424e-06 | Y41: 0.085 | Z41: 0.03143045687 | AA41: 0.0001258429178 | AB41: 0.0009739221689 | AC41: 0.10484295 | AD41: 0.008838891121 | AE41: 3.214989253e-16 | AF41: 0.01459344955
A42: 9.078639424e-06 | B42: 2.71000823e-06 | C42: 8.5 | D42: 0.0001126529247 | F42: 2.660184943e-07 | O42: =IF(K42="","",AVERAGE(L$26:L42)) ->  | P42: =IFERROR(_xlfn.STDEV.S(L$26:L42)/J42^0.5,"") ->  | T42: 66.9166667 | U42: 17 | W42: 6.52960999e-10 | X42: 1.267492099e-05 | Y42: 0.09 | Z42: 0.03717150119 | AA42: 0.000152117988 | AB42: 0.0009798272838 | AC42: 0.1169333011 | AD42: 0.01000401768 | AE42: 3.591011388e-16 | AF42: 0.0158694413
A43: 1.267492099e-05 | B43: 3.59628157e-06 | C43: 9 | D43: 0.0001182706819 | F43: 2.842599988e-07 | O43: =IF(K43="","",AVERAGE(L$26:L43)) ->  | P43: =IFERROR(_xlfn.STDEV.S(L$26:L43)/J43^0.5,"") ->  | T43: 66.9166667 | U43: 18 | W43: 8.030581607e-10 | X43: 1.736987221e-05 | Y43: 0.095 | Z43: 0.04336436669 | AA43: 0.0001838895612 | AB43: 0.0009960663499 | AC43: 0.1300335368 | AD43: 0.01124949779 | AE43: 3.987923642e-16 | AF43: 0.01713549786
A44: 1.736987221e-05 | B44: 4.694951213e-06 | C44: 9.5 | D44: 0.0001241891953 | F44: 3.039114677e-07 | O44: =IF(K44="","",AVERAGE(L$26:L44)) ->  | P44: =IFERROR(_xlfn.STDEV.S(L$26:L44)/J44^0.5,"") ->  | T44: 66.9166667 | U44: 19 | W44: 9.86587645e-10 | X44: 2.341e-05 | Y44: 0.1 | Z44: 0.04998490554 | AA44: 0.0002222019585 | AB44: 0.001030231658 | AC44: 0.1441687927 | AD44: 0.01248982703 | AE44: 4.405726014e-16 | AF44: 0.01838499574
A45: 2.341e-05 | B45: 6.040127793e-06 | C45: 10 | D45: 0.0001304253699 | F45: 3.250942014e-07 | O45: =IF(K45="","",AVERAGE(L$26:L45)) ->  | P45: =IFERROR(_xlfn.STDEV.S(L$26:L45)/J45^0.5,"") ->  | T45: 66.9166667 | U45: 20 | W45: 1.210746915e-09 | X45: 3.107886155e-05 | Y45: 0.105 | Z45: 0.05700740036 | AA45: 0.0002682677804 | AB45: 0.001087595631 | AC45: 0.1593403824 | AD45: 0.01371161315 | AE45: 4.844418504e-16 | AF45: 0.01960897379
A46: 3.107886155e-05 | B46: 7.668861552e-06 | C46: 10.5 | D46: 0.0001369970829 | F46: 3.479409961e-07 | O46: =IF(K46="","",AVERAGE(L$26:L46)) ->  | P46: =IFERROR(_xlfn.STDEV.S(L$26:L46)/J46^0.5,"") ->  | T46: 66.9166667 | U46: 21 | W46: 1.484226592e-09 | X46: 4.070001957e-05 | Y46: 0.11 | Z46: 0.06440517018 | AA46: 0.0003234670814 | AB46: 0.001167314683 | AC46: 0.1755285646 | AD46: 0.01488292075 | AE46: 5.304001114e-16 | AF46: 0.02080587354
A47: 4.070001957e-05 | B47: 9.621158018e-06 | C47: 11 | D47: 0.0001439232384 | F47: 3.725973336e-07 | O47: =IF(K47="","",AVERAGE(L$26:L47)) ->  | P47: =IFERROR(_xlfn.STDEV.S(L$26:L47)/J47^0.5,"") ->  | T47: 66.9166667 | U47: 22 | W47: 1.817507863e-09 | X47: 5.264000081e-05 | Y47: 0.115 | Z47: 0.07215106824 | AA47: 0.0003893921214 | AB47: 0.001261374728 | AC47: 0.1926975141 | AD47: 0.01605010765 | AE47: 5.784473842e-16 | AF47: 0.02197140921
A48: 5.264000081e-05 | B48: 1.193998124e-05 | C48: 11.5 | D48: 0.0001512238249 | F48: 3.992227052e-07 | O48: =IF(K48="","",AVERAGE(L$26:L48)) ->  | P48: =IFERROR(_xlfn.STDEV.S(L$26:L48)/J48^0.5,"") ->  | T48: 66.9166667 | U48: 23 | W48: 2.2232165e-09 | X48: 6.731124572e-05 | Y48: 0.12 | Z48: 0.08021788587 | AA48: 0.0004678213809 | AB48: 0.001359441815 | AC48: 0.2108018897 | AD48: 0.01719669108 | AE48: 6.285836688e-16 | AF48: 0.02310285351
A49: 6.731124572e-05 | B49: 1.467124491e-05 | C49: 12 | D49: 0.0001589199767 | F49: 4.279920842e-07 | O49: =IF(K49="","",AVERAGE(L$26:L49)) ->  | P49: =IFERROR(_xlfn.STDEV.S(L$26:L49)/J49^0.5,"") ->  | T49: 66.9166667 | U49: 24 | W49: 2.716543737e-09 | X49: 8.517503738e-05 | Y49: 0.125 | Z49: 0.08857867556 | AA49: 0.0005607874091 | AB49: 0.001455399932 | AC49: 0.2297934692 | AD49: 0.01850398162 | AE49: 6.808089653e-16 | AF49: 0.02421540143
A50: 8.517503738e-05 | B50: 1.786379166e-05 | C50: 12.5 | D50: 0.0001670340377 | F50: 4.590975674e-07 | O50: =IF(K50="","",AVERAGE(L$26:L50)) ->  | P50: =IFERROR(_xlfn.STDEV.S(L$26:L50)/J50^0.5,"") ->  | T50: 66.9166667 | U50: 25 | W50: 3.315745978e-09 | X50: 0.0001067443984 | Y50: 0.13 | Z50: 0.09720700554 | AA50: 0.0006705811546 | AB50: 0.001551147153 | AC50: 0.249626906 | AD50: 0.01996991893 | AE50: 7.351232737e-16 | AF50: 0.02535054708
A51: 0.0001067443984 | B51: 2.156936097e-05 | C51: 13 | D51: 0.0001755896279 | F51: 4.927502042e-07 | O51: =IF(K51="","",AVERAGE(L$26:L51)) ->  | P51: =IFERROR(_xlfn.STDEV.S(L$26:L51)/J51^0.5,"") ->  | T51: 66.9166667 | U51: 26 | W51: 4.042737355e-09 | X51: 0.0001325869442 | Y51: 0.135 | Z51: 0.1060771565 | AA51: 0.0007997909416 | AB51: 0.001653432179 | AC51: 0.2702637938 | AD51: 0.02207971485 | AE51: 7.915265939e-16 | AF51: 0.02655309626
A52: 0.0001325869442 | B52: 2.584254586e-05 | C52: 13.5 | D52: 0.0001846117146 | F52: 5.291820383e-07 | O52: =IF(K52="","",AVERAGE(L$26:L52)) ->  | P52: =IFERROR(_xlfn.STDEV.S(L$26:L52)/J52^0.5,"") ->  | T52: 66.9166667 | U52: 27 | W52: 4.923791473e-09 | X52: 0.0001633276831 | Y52: 0.14 | Z52: 0.1151642704 | AA52: 0.0009512793733 | AB52: 0.001767105642 | AC52: 0.2916745425 | AD52: 0.02516096465 | AE52: 8.50018926e-16 | AF52: 0.02787915365
A53: 0.0001633276831 | B53: 3.074073888e-05 | C53: 14 | D53: 0.0001941266852 | F53: 5.686483872e-07 | O53: =IF(K53="","",AVERAGE(L$26:L53)) ->  | P53: =IFERROR(_xlfn.STDEV.S(L$26:L53)/J53^0.5,"") ->  | T53: 66.9166667 | U53: 28 | W53: 5.990371401e-09 | X53: 0.0001996517506 | Y53: 0.145 | Z53: 0.1244444584 | AA53: 0.001128284381 | AB53: 0.001890691261 | AC53: 0.3138380179 | AD53: 0.03020881623 | AE53: 9.1060027e-16 | AF53: 0.02938131738
A54: 0.0001996517506 | B54: 3.632406754e-05 | C54: 14.5 | D54: 0.0002041624252 | F54: 6.114303899e-07 | O54: =IF(K54="","",AVERAGE(L$26:L54)) ->  | P54: =IFERROR(_xlfn.STDEV.S(L$26:L54)/J54^0.5,"") ->  | T54: 66.9166667 | U54: 29 | W54: 7.280110074e-09 | X54: 0.0002423070703 | Y54: 0.15 | Z54: 0.1338948772 | AA54: 0.001334387467 | AB54: 0.002017651232 | AC54: 0.3367386003 | AD54: 0.03814630528 | AE54: 9.732706258e-16 | AF54: 0.03112757541
A55: 0.0002423070703 | B55: 4.265531968e-05 | C55: 15 | D55: 0.0002147483981 | F55: 6.578378568e-07 | O55: =IF(K55="","",AVERAGE(L$26:L55)) ->  | P55: =IFERROR(_xlfn.STDEV.S(L$26:L55)/J55^0.5,"") ->  | T55: 66.9166667 | U55: 30 | W55: 8.837966871e-09 | X55: 0.0002921069293 | Y55: 0.155 | Z55: 0.143493777 | AA55: 0.001573620528 | AB55: 0.002140815058 | AC55: 0.3603607735 | AD55: 0.05115740025 | AE55: 1.038029993e-15 | AF55: 0.03319292878
A56: 0.0002921069293 | B56: 4.9799859e-05 | C56: 15.5 | D56: 0.0002259157304 | F56: 7.082124607e-07 | O56: =IF(K56="","",AVERAGE(L$26:L56)) ->  | P56: =IFERROR(_xlfn.STDEV.S(L$26:L56)/J56^0.5,"") ->  | T56: 66.9166667 | U56: 31 | W56: 1.071759026e-08 | X56: 0.0003499324604 | Y56: 0.16 | Z56: 0.1532205287 | AA56: 0.001850434095 | AB56: 0.002255753902 | AC56: 0.3846823355 | AD56: 0.06969434744 | AE56: 1.104878373e-15 | AF56: 0.03566309298
A57: 0.0003499324604 | B57: 5.782553113e-05 | C57: 16 | D57: 0.0002376972987 | F57: 7.629313118e-07 | O57: =IF(K57="","",AVERAGE(L$26:L57)) ->  | P57: =IFERROR(_xlfn.STDEV.S(L$26:L57)/J57^0.5,"") ->  | T57: 66.9166667 | U57: 32 | W57: 1.298292112e-08 | X57: 0.000416735021 | Y57: 0.165 | Z57: 0.1630556328 | AA57: 0.002169828701 | AB57: 0.002360780589 | AC57: 0.4096668737 | AD57: 0.09456274273 | AE57: 1.173815764e-15 | AF57: 0.03860430268
A58: 0.000416735021 | B58: 6.680256053e-05 | C58: =C57+OFFSET(W$23,,B$11-1) -> 16.5 | D58: 0.0002501278224 | F58: 8.224109672e-07 | I58: =IF(L58<>"",0,"") ->  | J58: =IF(B$9>J57,J57+1,"") ->  | K58: =IFERROR(( MOD(( MOD( MOD( 999999999999989, MOD( PM_Index*2499997 +$J58*1800451, 7450589 ) * 4658 + 7450581 ) * 383, 99991 ) * 7440893 + MOD( MOD( 999999999999989, MOD( PM_Index*2246527 +$J58*2399993, 7450987 ) * 7580 + 7560584 ) * 17669, 7440893 )) * 1343, 4294967296 ) + 0.5 ) / 4294967296,"") ->  | M58: =IF(L58="",NA(),L58) ->  | O58: =IF(K58="","",AVERAGE(L$26:L58)) ->  | P58: =IFERROR(_xlfn.STDEV.S(L$26:L58)/J58^0.5,"") ->  | T58: 66.9166667 | U58: 33 | W58: 1.571007685e-08 | X58: 0.0004935384596 | Y58: 0.17 | Z58: 0.1729807147 | AA58: 0.002537324565 | AB58: 0.0024571605 | AC58: 0.4352566773 | AD58: 0.1247993737 | AE58: 0.003973684189 | AF58: 0.0420808445
A59: 0.0004935384596 | B59: 7.680343862e-05 | C59: 17 | D59: 0.0002632439578 | F59: 8.87111932e-07 | O59: =IF(K59="","",AVERAGE(L$26:L59)) ->  | P59: =IFERROR(_xlfn.STDEV.S(L$26:L59)/J59^0.5,"") ->  | T59: 66.9166667 | U59: 34 | W59: 1.898956247e-08 | X59: 0.000581441263 | Y59: 0.175 | Z59: 0.1829785085 | AA59: 0.002959058312 | AB59: 0.002548478885 | AC59: 0.4613670868 | AD59: 0.1598469162 | AE59: 0.009558180278 | AF59: 0.04614336849
A60: 0.000581441263 | B60: 8.790280338e-05 | C60: 17.5 | D60: 0.0002770843985 | F60: 9.575437162e-07 | O60: =IF(K60="","",AVERAGE(L$26:L60)) ->  | P60: =IFERROR(_xlfn.STDEV.S(L$26:L60)/J60^0.5,"") ->  | T60: 66.9166667 | U60: 35 | W60: 2.292886212e-08 | X60: 0.0006816185738 | Y60: 0.18 | Z60: 0.1930328332 | AA60: 0.003441759872 | AB60: 0.002641273548 | AC60: 0.4878827329 | AD60: 0.1981632001 | AE60: 0.01688999939 | AF60: 0.05084291431
A61: 0.0006816185738 | B61: 0.0001001773109 | C61: 18 | D61: 0.0002916899769 | F61: 1.034270521e-06 | O61: =IF(K61="","",AVERAGE(L$26:L61)) ->  | P61: =IFERROR(_xlfn.STDEV.S(L$26:L61)/J61^0.5,"") ->  | T61: 66.9166667 | U61: 36 | W61: 2.765547245e-08 | X61: 0.0007953240727 | Y61: 0.185 | Z61: 0.2031285614 | AA61: 0.00399289107 | AB61: 0.002741660501 | AC61: 0.5146565883 | AD61: 0.2387365949 | AE61: 0.02549327075 | AF61: 0.056204807
A62: 0.0007953240727 | B62: 0.0001137054989 | C62: 18.5 | D62: 0.0003071037717 | F62: 1.117917639e-06 | O62: =IF(K62="","",AVERAGE(L$26:L62)) ->  | P62: =IFERROR(_xlfn.STDEV.S(L$26:L62)/J62^0.5,"") ->  | T62: 66.9166667 | U62: 37 | W62: 3.332044849e-08 | X62: 0.0009238917157 | Y62: 0.19 | Z62: 0.2132515835 | AA62: 0.004620554674 | AB62: 0.002852592303 | AC62: 0.5415122875 | AD62: 0.2786651008 | AE62: 0.03517110982 | AF62: 0.06223820253
A63: 0.0009238917157 | B63: 0.000128567643 | C63: 19 | D63: 0.0003233712173 | F63: 1.209178668e-06 | O63: =IF(K63="","",AVERAGE(L$26:L63)) ->  | P63: =IFERROR(_xlfn.STDEV.S(L$26:L63)/J63^0.5,"") ->  | T63: 66.9166667 | U63: 38 | W63: 4.010254319e-08 | X63: 0.001068737321 | Y63: 0.195 | Z63: 0.2233887692 | AA63: 0.005333706604 | AB63: 0.002971116396 | AC63: 0.5682495392 | AD63: 0.3171410617 | AE63: 0.04568980034 | AF63: 0.06885816465
A64: 0.001068737321 | B64: 0.0001448456057 | C64: 19.5 | D64: 0.0003405402172 | F64: 1.308823637e-06 | O64: =IF(K64="","",AVERAGE(L$26:L64)) ->  | P64: =IFERROR(_xlfn.STDEV.S(L$26:L64)/J64^0.5,"") ->  | T64: 66.9166667 | U64: 39 | W64: 4.821303365e-08 | X64: 0.00123136 | Y64: 0.2 | Z64: 0.2335279253 | AA64: 0.006141998581 | AB64: 0.003091116767 | AC64: 0.5946525661 | AD64: 0.3529499026 | AE64: 0.05679288226 | AF64: 0.07597975712
A65: 0.00123136 | B65: 0.0001626226786 | C65: 20 | D65: 0.0003586612614 | F65: 1.417708195e-06 | O65: =IF(K65="","",AVERAGE(L$26:L65)) ->  | P65: =IFERROR(_xlfn.STDEV.S(L$26:L65)/J65^0.5,"") ->  | T65: 66.9166667 | U65: 40 | W65: 5.79013404e-08 | X65: 0.001413343418 | Y65: 0.205 | Z65: 0.2436577538 | AA65: 0.007055945584 | AB65: 0.003209219065 | AC65: 0.620500541 | AD65: 0.3862337876 | AE65: 0.06834340924 | AF65: 0.08349875771
A66: 0.001413343418 | B66: 0.0001819834182 | C66: 20.5 | D66: 0.0003777875453 | F66: 1.536783971e-06 | O66: =IF(K66="","",AVERAGE(L$26:L66)) ->  | P66: =IFERROR(_xlfn.STDEV.S(L$26:L66)/J66^0.5,"") ->  | T66: 66.9166667 | U66: 41 | W66: 6.946156146e-08 | X66: 0.001616356893 | Y66: 0.21 | Z66: 0.2537678077 | AA66: 0.008086816133 | AB66: 0.003330484818 | AC66: 0.6455788637 | AD66: 0.4172100833 | AE66: 0.08023391646 | AF66: 0.09133938614
A67: 0.001616356893 | B67: 0.0002030134748 | C67: 21 | D67: 0.0003979750929 | F67: 1.667110311e-06 | O67: =IF(K67="","",AVERAGE(L$26:L67)) ->  | P67: =IFERROR(_xlfn.STDEV.S(L$26:L67)/J67^0.5,"") ->  | T67: 66.9166667 | U67: 42 | W67: 8.324005994e-08 | X67: 0.00184215631 | Y67: 0.215 | Z67: 0.2638484481 | AA67: 0.009246877703 | AB67: 0.003469465916 | AC67: 0.6696904305 | AD67: 0.4460085916 | AE67: 0.09238962824 | AF67: 0.09941261521
A68: 0.00184215631 | B68: 0.0002257994172 | C68: 21.5 | D68: 0.0004192828817 | F68: 1.809867556e-06 | O68: =IF(K68="","",AVERAGE(L$26:L68)) ->  | P68: =IFERROR(_xlfn.STDEV.S(L$26:L68)/J68^0.5,"") ->  | T68: 66.9166667 | U68: 43 | W68: 9.964426317e-08 | X68: 0.00209258486 | Y68: 0.22 | Z68: 0.273890801 | AA68: 0.01054912388 | AB68: 0.003643455909 | AC68: 0.6926657035 | AD68: 0.47261386 | AE68: 0.1047481805 | AF68: 0.1076327294
A69: 0.00209258486 | B69: 0.00025042855 | C69: 22 | D69: 0.00044177297 | F69: 1.966372083e-06 | O69: =IF(K69="","",AVERAGE(L$26:L69)) ->  | P69: =IFERROR(_xlfn.STDEV.S(L$26:L69)/J69^0.5,"") ->  | T69: 66.9166667 | U69: 44 | W69: 1.191528533e-07 | X69: 0.002369573587 | Y69: 0.225 | Z69: 0.283886715 | AA69: 0.01200752412 | AB69: 0.003865741307 | AC69: 0.7143707138 | AD69: 0.4975172812 | AE69: 0.1172544304 | AF69: 0.1159216109
A70: 0.002369573587 | B70: 0.000276988727 | C70: 22.5 | D70: 0.0004655106255 | F70: 2.138093381e-06 | O70: =IF(K70="","",AVERAGE(L$26:L70)) ->  | P70: =IFERROR(_xlfn.STDEV.S(L$26:L70)/J70^0.5,"") ->  | T70: 66.9166667 | U70: 45 | W70: 1.423275535e-07 | X70: 0.002675141747 | Y70: 0.23 | Z70: 0.29382872 | AA70: 0.01363671479 | AB70: 0.004143070812 | AC70: 0.7347123322 | AD70: 0.520853808 | AE70: 0.1298552661 | AF70: 0.1242987403
A71: 0.002675141747 | B71: 0.0003055681593 | C71: 23 | D71: 0.0004905644551 | F71: 2.326673429e-06 | O71: =IF(K71="","",AVERAGE(L$26:L71)) ->  | P71: =IFERROR(_xlfn.STDEV.S(L$26:L71)/J71^0.5,"") ->  | T71: 66.9166667 | U71: 46 | W71: 1.698267407e-07 | X71: 0.003011396966 | Y71: 0.235 | Z71: 0.3037099874 | AA71: 0.01545234709 | AB71: 0.004481349538 | AC71: 0.7536400803 | AD71: 0.5428480185 | AE71: 0.1425054741 | AF71: 0.1327861309
A72: 0.003011396966 | B72: 0.0003362552191 | C72: 23.5 | D72: 0.0005170065352 | F72: 2.533948727e-06 | O72: =IF(K72="","",AVERAGE(L$26:L72)) ->  | P72: =IFERROR(_xlfn.STDEV.S(L$26:L72)/J72^0.5,"") ->  | T72: 66.9166667 | U72: 47 | W72: 2.02421148e-07 | X72: 0.003380535204 | Y72: 0.24 | Z72: 0.3135242913 | AA72: 0.01747076516 | AB72: 0.004889013365 | AC72: 0.7711446365 | AD72: 0.5639985165 | AE72: 0.1551736063 | AF72: 0.1414270302
A73: 0.003380535204 | B73: 0.0003691382387 | C73: 24 | D73: 0.0005449125417 | F73: 2.761975363e-06 | O73: =IF(K73="","",AVERAGE(L$26:L73)) ->  | P73: =IFERROR(_xlfn.STDEV.S(L$26:L73)/J73^0.5,"") ->  | T73: 66.9166667 | U73: 48 | W73: 2.410119506e-07 | X73: 0.003784840511 | Y73: 0.245 | Z73: 0.3232659719 | AA73: 0.01970923698 | AB73: 0.005370912922 | AC73: 0.7872535642 | AD73: 0.5842434919 | AE73: 0.1678424961 | AF73: 0.1501857883
A74: 0.003784840511 | B74: 0.0004043053066 | C74: 24.5 | D74: 0.0005743618784 | F74: 3.013057566e-06 | O74: =IF(K74="","",AVERAGE(L$26:L74)) ->  | P74: =IFERROR(_xlfn.STDEV.S(L$26:L74)/J74^0.5,"") ->  | T74: 66.9166667 | U74: 49 | W74: 2.866515719e-07 | X74: 0.00422668457 | Y74: 0.25 | Z74: 0.3329298993 | AA74: 0.02218554305 | AB74: 0.005918401435 | AC74: 0.8020249921 | AD74: 0.6040578546 | AE74: 0.180509774 | AF74: 0.1590380542
A75: 0.00422668457 | B75: 0.0004418440595 | C75: 25 | D75: 0.0006054378033 | F75: 3.289780266e-06 | O75: =IF(K75="","",AVERAGE(L$26:L75)) ->  | P75: =IFERROR(_xlfn.STDEV.S(L$26:L75)/J75^0.5,"") ->  | T75: 66.9166667 | U75: 50 | W75: 3.40567582e-07 | X75: 0.004708526041 | Y75: 0.255 | Z75: 0.3425114403 | AA75: 0.0249181885 | AB75: 0.006506382164 | AC75: 0.8155400099 | AD75: 0.6237825921 | AE75: 0.1931855788 | AF75: 0.1679678536
A76: 0.004708526041 | B76: 0.000481841471 | C76: 25.5 | D76: 0.0006382275521 | F76: 3.595046254e-06 | O76: =IF(K76="","",AVERAGE(L$26:L76)) ->  | P76: =IFERROR(_xlfn.STDEV.S(L$26:L76)/J76^0.5,"") ->  | T76: 66.9166667 | U76: 51 | W76: 4.041901152e-07 | X76: 0.005232909679 | Y76: 0.26 | Z76: 0.3520064258 | AA76: 0.02792600474 | AB76: 0.007110180165 | AC76: 0.8278944398 | AD76: 0.6436051962 | AE76: 0.2058902688 | AF76: 0.1769773294
A77: 0.005232909679 | B77: 0.0005243836378 | C77: 26 | D77: 0.0006728224558 | F77: 3.932118652e-06 | O77: =IF(K77="","",AVERAGE(L$26:L77)) ->  | P77: =IFERROR(_xlfn.STDEV.S(L$26:L77)/J77^0.5,"") ->  | T77: 66.9166667 | U77: 52 | W77: 4.791832766e-07 | X77: 0.005802465242 | Y77: 0.265 | Z77: 0.3614111201 | AA77: 0.03122851029 | AB77: 0.007720937766 | AC77: 0.8391906452 | AD77: 0.6636441368 | AE77: 0.2186469744 | AF77: 0.1860431048
A78: 0.005802465242 | B78: 0.0005695555633 | C78: 26.5 | D78: 0.000709318054 | F78: 4.304669488e-06 | O78: =IF(K78="","",AVERAGE(L$26:L78)) ->  | P78: =IFERROR(_xlfn.STDEV.S(L$26:L78)/J78^0.5,"") ->  | T78: 66.9166667 | U78: 53 | W78: 5.674810724e-07 | X78: 0.006419906181 | Y78: 0.27 | Z78: 0.3707221923 | AA78: 0.03484532331 | AB78: 0.008352785063 | AC78: 0.8495304567 | AD78: 0.6839395906 | AE78: 0.231474152 | AF78: 0.1951334259
A79: 0.006419906181 | B79: 0.0006174409387 | C79: 27 | D79: 0.0007478141986 | F79: 4.716835337e-06 | O79: =IF(K79="","",AVERAGE(L$26:L79)) ->  | P79: =IFERROR(_xlfn.STDEV.S(L$26:L79)/J79^0.5,"") ->  | T79: 66.9166667 | U79: 54 | W79: 6.713284558e-07 | X79: 0.007088028104 | Y79: 0.275 | Z79: 0.3799366884 | AA79: 0.03879655706 | AB79: 0.009025968165 | AC79: 0.8590098387 | AD79: 0.7042494669 | AE79: 0.2443846724 | AF79: 0.2042134222
A80: 0.007088028104 | B80: 0.0006681219226 | C80: 27.5 | D80: 0.0007884151492 | F80: 5.173281091e-06 | O80: =IF(K80="","",AVERAGE(L$26:L80)) ->  | P80: =IFERROR(_xlfn.STDEV.S(L$26:L80)/J80^0.5,"") ->  | T80: 66.9166667 | U80: 55 | W80: 7.93328152e-07 | X80: 0.007809707023 | Y80: 0.28 | Z80: 0.3890520055 | AA80: 0.04310220792 | AB80: 0.009756093446 | AC80: 0.8677155235 | AD80: 0.7247643477 | AE80: 0.2573849108 | AF80: 0.2133193279
A81: 0.007809707023 | B81: 0.000721678919 | C81: 28 | D81: 0.0008312296571 | F81: 5.679273171e-06 | O81: =IF(K81="","",AVERAGE(L$26:L81)) ->  | P81: =IFERROR(_xlfn.STDEV.S(L$26:L81)/J81^0.5,"") ->  | T81: 66.9166667 | U81: 56 | W81: 9.364940017e-07 | X81: 0.008587897376 | Y81: 0.285 | Z81: 0.3980658673 | AA81: 0.0477825292 | AB81: 0.01054632436 | AC81: 0.8757232535 | AD81: 0.7450464093 | AE81: 0.270475399 | AF81: 0.2224809488
A82: 0.008587897376 | B82: 0.0007781903537 | C82: 28.5 | D82: 0.0008763710343 | F82: 6.24076363e-06 | O82: =IF(K82="","",AVERAGE(L$26:L82)) ->  | P82: =IFERROR(_xlfn.STDEV.S(L$26:L82)/J82^0.5,"") ->  | T82: 66.9166667 | U82: 57 | W82: 1.104311644e-06 | X82: 0.009425629827 | Y82: 0.29 | Z82: 0.4069763011 | AA82: 0.05285716791 | AB82: 0.01139518463 | AC82: 0.8830974553 | AD82: 0.7644857888 | AE82: 0.2836514786 | AF82: 0.2317160122
A83: 0.009425629827 | B83: 0.0008377324505 | C83: 29 | D83: 0.0009239572081 | F83: 6.86448691e-06 | O83: =IF(K83="","",AVERAGE(L$26:L83)) ->  | P83: =IFERROR(_xlfn.STDEV.S(L$26:L83)/J83^0.5,"") ->  | T83: 66.9166667 | U83: 58 | W83: 1.300807454e-06 | X83: 0.01032600883 | Y83: 0.295 | Z83: 0.415781616 | AA83: 0.05834573208 | AB83: 0.01229655825 | AC83: 0.889892199 | AD83: 0.7831968353 | AE83: 0.2969063636 | AF83: 0.2409584783
A84: 0.01032600883 | B84: 0.0009003790064 | C84: 29.5 | D84: 0.0009741107555 | F84: 7.55807125e-06 | O84: =IF(K84="","",AVERAGE(L$26:L84)) ->  | P84: =IFERROR(_xlfn.STDEV.S(L$26:L84)/J84^0.5,"") ->  | T84: 66.9166667 | U84: 59 | W84: 1.530626737e-06 | X84: 0.01129221 | Y84: 0.3 | Z84: 0.4244803826 | AA84: 0.06426698671 | AB84: 0.01324960162 | AC84: 0.8961533033 | AD84: 0.800841652 | AE84: 0.3102342029 | AF84: 0.2501263329
A85: 0.01129221 | B85: 0.0009662011667 | C85: 30 | D85: 0.001026958916 | F85: 8.330167143e-06 | O85: =IF(K85="","",AVERAGE(L$26:L85)) ->  | P85: =IFERROR(_xlfn.STDEV.S(L$26:L85)/J85^0.5,"") ->  | T85: 66.9166667 | U85: 60 | W85: 1.799122311e-06 | X85: 0.0123274772 | Y85: 0.305 | Z85: 0.4330714138 | AA85: 0.07063941096 | AB85: 0.01426886663 | AC85: 0.9019208135 | AD85: 0.8175345881 | AE85: 0.3236297094 | AF85: 0.2591422374
A86: 0.0123274772 | B86: 0.0010352672 | C86: 30.5 | D86: 0.001082633582 | F86: 9.190595585e-06 | O86: =IF(K86="","",AVERAGE(L$26:L86)) ->  | P86: =IFERROR(_xlfn.STDEV.S(L$26:L86)/J86^0.5,"") ->  | T86: 66.9166667 | U86: 61 | W86: 2.112454703e-06 | X86: 0.01343511947 | Y86: 0.31 | Z86: 0.4415537469 | AA86: 0.07747992205 | AB86: 0.0153952673 | AC86: 0.9072311886 | AD86: 0.8332292858 | AE86: 0.3370877895 | AF86: 0.2679311907
A87: 0.01343511947 | B87: 0.001107642274 | C87: 31 | D87: 0.001141271254 | F87: 1.015051938e-05 | O87: =IF(K87="","",AVERAGE(L$26:L87)) ->  | P87: =IFERROR(_xlfn.STDEV.S(L$26:L87)/J87^0.5,"") ->  | T87: 66.9166667 | U87: 62 | W87: 2.477705313e-06 | X87: 0.0146185077 | Y87: 0.315 | Z87: 0.4499266264 | AA87: 0.08480453786 | AB87: 0.01667773173 | AC87: 0.9121187628 | AD87: 0.8476609904 | AE87: 0.3506042926 | AF87: 0.276407867
A88: 0.0146185077 | B88: 0.001183388231 | C88: 31.5 | D88: 0.001203012975 | F88: 1.122264132e-05 | O88: =IF(K88="","",AVERAGE(L$26:L88)) ->  | P88: =IFERROR(_xlfn.STDEV.S(L$26:L88)/J88^0.5,"") ->  | T88: 66.9166667 | U88: 63 | W88: 2.903004061e-06 | X88: 0.01588107107 | Y88: 0.32 | Z88: 0.4581894888 | AA88: 0.0926274227 | AB88: 0.01813777139 | AC88: 0.9166167095 | AD88: 0.8611830516 | AE88: 0.3641767606 | AF88: 0.2844933689
A89: =OFFSET(W88,,B$11-1) -> 0.01588107107 | B89: 0.001262563369 | C89: 32 | D89: =_xlfn.T.DIST((C89+B$22/2-B$17)/B$18,B$9-1,1)-_xlfn.T.DIST((C89-B$22/2-B$17)/B$18,B$9-1,1) -> 0.001268004217 | F89: =_xlfn.T.DIST((C89+B$22/2-B$17)/B$19,B$9-1,1)-_xlfn.T.DIST((C89-B$22/2-B$17)/B$19,B$9-1,1) -> 1.242143364e-05 | O89: =IF(K89="","",AVERAGE(L$26:L89)) ->  | P89: =IFERROR(_xlfn.STDEV.S(L$26:L89)/J89^0.5,"") ->  | T89: 66.9166667 | U89: 64 | W89: =NORMDIST(C90,100,15,1) -> 3.397673125e-06 | X89: =IFERROR(BETADIST(C90,6,3,0,100),"") -> 0.01722629329 | Y89: =C90/100 -> 0.325 | Z89: 0.4663419472 | AA89: 0.1009615846 | AB89: 0.01974311906 | AC89: 0.9207575629 | AD89: 0.8742508061 | AE89: 0.3778019698 | AF89: 0.2921313972
A90: 0.01722629329 | B90: 0.001345222216 | C90: =C89+OFFSET(W$23,,B$11-1) -> 32.5 | D90: 0.001336394735 | F90: 1.376340414e-05 | I90: =IF(L90<>"",0,"") ->  | J90: =IF(B$9>J89,J89+1,"") ->  | K90: =IFERROR(( MOD(( MOD( MOD( 999999999999989, MOD( PM_Index*2499997 +$J90*1800451, 7450589 ) * 4658 + 7450581 ) * 383, 99991 ) * 7440893 + MOD( MOD( 999999999999989, MOD( PM_Index*2246527 +$J90*2399993, 7450987 ) * 7580 + 7560584 ) * 17669, 7440893 )) * 1343, 4294967296 ) + 0.5 ) / 4294967296,"") ->  | M90: =IF(L90="",NA(),L90) ->  | O90: =IF(K90="","",AVERAGE(L$26:L90)) ->  | P90: =IFERROR(_xlfn.STDEV.S(L$26:L90)/J90^0.5,"") ->  | T90: 66.9166667 | U90: 65 | W90: 3.972388603e-06 | X90: 0.0186577086 | Y90: 0.33 | Z90: =_xlfn.LOGNORM.DIST(C91,(LN(120)+LN(10))/2,(LN(120)-LN(10))/3.29,1) -> 0.4743837778 | AA90: 0.1098179586 | AB90: 0.02142544413 | AC90: 0.924573281 | AD90: 0.8862389385 | AE90: 0.3914734724 | AF90: 0.2993679263
A91: 0.0186577086 | B91: =IF(B$12,A91-A90,"") -> 0.001431415312 | C91: 33 | D91: 0.001408338373 | F91: 1.526740498e-05 | L91: =IFERROR(VLOOKUP(K91,A$25:C$225,3),"") ->  | O91: =IF(K91="","",AVERAGE(L$26:L91)) ->  | P91: =IFERROR(_xlfn.STDEV.S(L$26:L91)/J91^0.5,"") ->  | T91: =IF($B$12,OFFSET(W$19,,B$11-1),"") -> 66.9166667 | U91: 66 | W91: 4.639362031e-06 | X91: 0.0201788976 | Y91: 0.335 | Z91: 0.482314907 | AA91: 0.119206019 | AB91: 0.02312864799 | AC91: 0.9280947239 | AD91: 0.8971968971 | AE91: 0.4051811459 | AF91: 0.3062734768
A92: 0.0201788976 | B92: 0.001521188995 | C92: 33.5 | D92: 0.001483992826 | F92: 1.695499151e-05 | O92: =IF(K92="","",AVERAGE(L$26:L92)) ->  | P92: =IFERROR(_xlfn.STDEV.S(L$26:L92)/J92^0.5,"") ->  | Q92: =IFERROR(TINV(0.1,J92-1)*P92,"") ->  | R92: =IFERROR(O92+Q92,"") ->  | S92: =IFERROR(O92-Q92,"") ->  | T92: 66.9166667 | U92: 67 | W92: 5.412543908e-06 | X92: 0.02179348278 | Y92: 0.34 | Z92: 0.4901353993 | AA92: 0.1291325648 | AB92: 0.02485526142 | AC92: 0.9313509545 | AD92: 0.907332777 | AE92: 0.4189107412 | AF92: 0.3129331797
A93: 0.02179348278 | B93: 0.001614585183 | C93: 34 | D93: 0.001563519334 | F93: 1.885083978e-05 | O93: =IF(K93="","",AVERAGE(L$26:L93)) ->  | P93: =IFERROR(_xlfn.STDEV.S(L$26:L93)/J93^0.5,"") ->  | T93: 66.9166667 | U93: 68 | W93: 6.307851555e-06 | X93: 0.02350512394 | Y93: 0.345 | Z93: 0.4978454456 | AA93: 0.1396025851 | AB93: 0.02666665542 | AC93: 0.934368706 | AD93: 0.9164024271 | AE93: 0.4326427946 | AF93: 0.3193959319
A94: 0.02350512394 | B94: 0.001711641162 | C94: 34.5 | D94: 0.001647082337 | F94: 2.098323255e-05 | O94: =IF(K94="","",AVERAGE(L$26:L94)) ->  | P94: =IFERROR(_xlfn.STDEV.S(L$26:L94)/J94^0.5,"") ->  | T94: 66.9166667 | U94: 69 | W94: 7.343423837e-06 | X94: 0.02531751332 | Y94: 0.35 | Z94: 0.5054453532 | AA94: 0.1506180201 | AB94: 0.02864845417 | AC94: 0.9371723326 | AD94: 0.9246304252 | AE94: 0.44635154 | AF94: 0.3257032273
A95: 0.02531751332 | B95: 0.001812389379 | C95: 35 | D95: 0.001734849044 | F95: 2.3384626e-05 | O95: =IF(K95="","",AVERAGE(L$26:L95)) ->  | P95: =IFERROR(_xlfn.STDEV.S(L$26:L95)/J95^0.5,"") ->  | T95: 66.9166667 | U95: 70 | W95: 8.539905471e-06 | X95: 0.02723437056 | Y95: 0.355 | Z95: 0.5129355357 | AA95: 0.1621786921 | AB95: 0.03085042934 | AC95: 0.9397840582 | AD95: 0.9318086761 | AE95: 0.4600082294 | AF95: 0.3319004563
A96: 0.02723437056 | B96: 0.001916857237 | C96: 35.5 | D96: 0.001826988947 | F96: 2.609231101e-05 | O96: =IF(K96="","",AVERAGE(L$26:L96)) ->  | P96: =IFERROR(_xlfn.STDEV.S(L$26:L96)/J96^0.5,"") ->  | T96: 66.9166667 | U96: 71 | W96: 9.920763886e-06 | X96: 0.02925943745 | Y96: 0.36 | Z96: 0.5203165038 | AA96: 0.1742810718 | AB96: 0.03327194826 | AC96: 0.9422243234 | AD96: 0.9378547661 | AE96: 0.4735844531 | AF96: 0.3380335935
A97: 0.02925943745 | B97: 0.00202506689 | C97: 36 | D97: 0.001923673251 | F97: 2.914918562e-05 | O97: =IF(K97="","",AVERAGE(L$26:L97)) ->  | P97: =IFERROR(_xlfn.STDEV.S(L$26:L97)/J97^0.5,"") ->  | T97: 66.9166667 | U97: 72 | W97: 1.151264181e-05 | X97: 0.0313964725 | Y97: 0.365 | Z97: 0.5275888569 | AA97: 0.186919568 | AB97: 0.03587104241 | AC97: 0.9445121483 | AD97: 0.9431364671 | AE97: 0.4870550979 | AF97: 0.3441160806
A98: 0.0313964725 | B98: 0.002137035049 | C98: 36.5 | D98: 0.002025074228 | F98: 3.260465824e-05 | O98: =IF(K98="","",AVERAGE(L$26:L98)) ->  | P98: =IFERROR(_xlfn.STDEV.S(L$26:L98)/J98^0.5,"") ->  | T98: 66.9166667 | U98: 73 | W98: 1.334574902e-05 | X98: 0.03364924528 | Y98: 0.37 | Z98: 0.534753275 | AA98: 0.2000851744 | AB98: 0.038620717 | AC98: 0.9466655945 | AD98: 0.9477969733 | AE98: 0.5004013047 | AF98: 0.3501418786
A99: 0.03364924528 | B99: 0.002252772785 | C99: 37 | D99: 0.002131364476 | F99: 3.651570488e-05 | O99: =IF(K99="","",AVERAGE(L$26:L99)) ->  | P99: =IFERROR(_xlfn.STDEV.S(L$26:L99)/J99^0.5,"") ->  | T99: 66.9166667 | U99: 74 | W99: 1.545429688e-05 | X99: 0.03602153063 | Y99: 0.375 | Z99: 0.5418105112 | AA99: 0.2137665055 | AB99: 0.04152244829 | AC99: 0.9487020654 | AD99: 0.9517229657 | AE99: 0.5136116692 | AF99: 0.3560930652
A100: 0.03602153063 | B100: 0.002372285347 | C100: 37.5 | D100: 0.002242716093 | F100: 4.094810749e-05 | O100: =IF(K100="","",AVERAGE(L$26:L100)) ->  | P100: =IFERROR(_xlfn.STDEV.S(L$26:L100)/J100^0.5,"") ->  | T100: 66.9166667 | U100: 75 | W100: 1.78769797e-05 | X100: 0.0385171026 | Y100: 0.38 | Z100: 0.548761385 | AA100: 0.2279484976 | AB100: 0.04462368812 | AC100: 0.9506383469 | AD100: 0.9552111341 | AE100: 0.5266834433 | AF100: 0.3620058746
A101: 0.0385171026 | B101: 0.00249557197 | C101: 38 | D101: 0.00235929975 | F101: 4.597790601e-05 | O101: =IF(K101="","",AVERAGE(L$26:L101)) ->  | P101: =IFERROR(_xlfn.STDEV.S(L$26:L101)/J101^0.5,"") ->  | T101: 66.9166667 | U101: 76 | W101: 2.065750691e-05 | X101: 0.0411397283 | Y101: 0.385 | Z101: 0.5556067756 | AA101: 0.2426142971 | AB101: 0.04798180044 | AC101: 0.9524902173 | AD101: 0.9581873062 | AE101: 0.5396194397 | AF101: 0.3679180996
A102: 0.0411397283 | B102: 0.002622625706 | C102: 38.5 | D102: 0.002481283662 | F102: 5.169310221e-05 | O102: =IF(K102="","",AVERAGE(L$26:L102)) ->  | P102: =IFERROR(_xlfn.STDEV.S(L$26:L102)/J102^0.5,"") ->  | T102: 66.9166667 | U102: 77 | W102: 2.384519071e-05 | X102: 0.04389316155 | Y102: 0.39 | Z102: 0.5623476164 | AA102: 0.2577436102 | AB102: 0.05164761142 | AC102: 0.9542717342 | AD102: 0.9607967364 | AE102: 0.5524249374 | AF102: 0.3738640264
A103: 0.04389316155 | B103: 0.002753433244 | C103: 39 | D103: 0.00260883245 | F103: 5.819566039e-05 | O103: =IF(K103="","",AVERAGE(L$26:L103)) ->  | P103: =IFERROR(_xlfn.STDEV.S(L$26:L103)/J103^0.5,"") ->  | T103: 66.9166667 | U103: 78 | W103: 2.749559373e-05 | X103: 0.0467811363 | Y103: 0.395 | Z103: 0.5689848888 | AA103: 0.2733141553 | AB103: 0.0556196448 | AC103: 0.955994489 | AD103: 0.9630157308 | AE103: 0.5651045785 | AF103: 0.3798346938
A104: 0.0467811363 | B104: 0.00288797475 | C104: 39.5 | D104: 0.002742105895 | F104: 6.560385843e-05 | O104: =IF(K104="","",AVERAGE(L$26:L104)) ->  | P104: =IFERROR(_xlfn.STDEV.S(L$26:L104)/J104^0.5,"") ->  | T104: 66.9166667 | U104: 79 | W104: 3.167124183e-05 | X104: 0.04980736 | Y104: 0.4 | Z104: 0.5755196174 | AA104: 0.2893004564 | AB104: 0.05986816409 | AC104: 0.9576670057 | AD104: 0.9650935913 | AE104: 0.5776592658 | AF104: 0.3858086729
A105: 0.04980736 | B105: 0.003026223701 | C105: 40 | D105: 0.002881257576 | F105: 7.405505185e-05 | O105: =IF(K105="","",AVERAGE(L$26:L105)) ->  | P105: =IFERROR(_xlfn.STDEV.S(L$26:L105)/J105^0.5,"") ->  | T105: 66.9166667 | U105: 80 | W105: 3.644240713e-05 | X105: 0.05297550674 | Y105: 0.405 | Z105: 0.5819528653 | AA105: 0.3056752328 | AB105: 0.06436997063 | AC105: 0.959294288 | AD105: 0.9670169258 | AE105: 0.5900860494 | AF105: 0.3917740805
A106: 0.05297550674 | B106: 0.003168146741 | C106: 40.5 | D106: 0.003026433389 | F106: 8.370892533e-05 | O106: =IF(K106="","",AVERAGE(L$26:L106)) ->  | P106: =IFERROR(_xlfn.STDEV.S(L$26:L106)/J106^0.5,"") ->  | T106: 66.9166667 | U106: 81 | W106: 4.188796689e-05 | X106: 0.05628921027 | Y106: 0.41 | Z106: 0.5882857294 | AA106: 0.3224081593 | AB106: 0.06916682203 | AC106: 0.9608777233 | AD106: 0.968737316 | AE106: 0.6023780144 | AF106: 0.3977377348
A107: 0.05628921027 | B107: 0.003313703525 | C107: 41 | D107: 0.003177769959 | F107: 9.475131866e-05 | O107: =IF(K107="","",AVERAGE(L$26:L107)) ->  | P107: =IFERROR(_xlfn.STDEV.S(L$26:L107)/J107^0.5,"") ->  | T107: 66.9166667 | U107: 82 | W107: 4.809634402e-05 | X107: 0.05975205685 | Y107: 0.415 | Z107: 0.5945193364 | AA107: 0.3394676146 | AB107: 0.07432557261 | AC107: 0.9624153287 | AD107: 0.9703546888 | AE107: 0.6145283425 | AF107: 0.4036811291
A108: 0.05975205685 | B108: 0.003462846588 | C108: 41.5 | D108: 0.003335392921 | F108: 0.00010739873 | O108: =IF(K108="","",AVERAGE(L$26:L108)) ->  | P108: =IFERROR(_xlfn.STDEV.S(L$26:L108)/J108^0.5,"") ->  | T108: 66.9166667 | U108: 83 | W108: 5.516653503e-05 | X108: 0.06336757807 | Y108: 0.42 | Z108: 0.6006548389 | AA108: 0.3568192719 | AB108: 0.07989219791 | AC108: 0.9639024202 | AD108: 0.9718608029 | AE108: 0.626534374 | AF108: 0.4095882891
A109: 0.06336757807 | B109: 0.003615521211 | C109: 42 | D109: 0.003499415093 | F109: 0.0001219036167 | O109: =IF(K109="","",AVERAGE(L$26:L109)) ->  | P109: =IFERROR(_xlfn.STDEV.S(L$26:L109)/J109^0.5,"") ->  | T109: 66.9166667 | U109: 84 | W109: 6.320923187e-05 | X109: 0.06713924336 | Y109: 0.425 | Z109: 0.6066934119 | AA109: 0.3744280049 | AB109: 0.08583907043 | AC109: 0.9653326669 | AD109: 0.9733174687 | AE109: 0.6383974065 | AF109: 0.4154344742
A110: 0.06713924336 | B110: 0.003771665297 | C110: 42.5 | D110: 0.003669934539 | F110: 0.000138560634 | O110: =IF(K110="","",AVERAGE(L$26:L110)) ->  | P110: =IFERROR(_xlfn.STDEV.S(L$26:L110)/J110^0.5,"") ->  | T110: 66.9166667 | U110: 85 | W110: 7.234804393e-05 | X110: 0.07107045262 | Y110: 0.43 | Z110: 0.6126362495 | AA110: 0.3922564956 | AB110: 0.09211325504 | AC110: 0.9666992625 | AD110: 0.9747391085 | AE110: 0.6501224933 | AF110: 0.4212405289
A111: 0.07107045262 | B111: 0.003931209261 | C111: 43 | D111: 0.003847032518 | F111: 0.0001577139762 | O111: =IF(K111="","",AVERAGE(L$26:L111)) ->  | P111: =IFERROR(_xlfn.STDEV.S(L$26:L111)/J111^0.5,"") ->  | T111: 66.9166667 | U111: 86 | W111: 8.272082683e-05 | X111: 0.07516452854 | Y111: 0.435 | Z111: 0.6184845619 | AA111: 0.4102670367 | AB111: 0.09866223839 | AC111: 0.9679960126 | AD111: 0.9761216017 | AE111: 0.6617153405 | AF111: 0.4270384017
A112: 0.07516452854 | B112: 0.00409407592 | C112: 43.5 | D112: 0.004030771341 | F112: 0.0001797660106 | O112: =IF(K112="","",AVERAGE(L$26:L112)) ->  | P112: =IFERROR(_xlfn.STDEV.S(L$26:L112)/J112^0.5,"") ->  | T112: 66.9166667 | U112: 87 | W112: 9.44811248e-05 | X112: 0.07942470894 | Y112: 0.44 | Z112: 0.6242395726 | AA112: 0.4284200482 | AB112: 0.1054950891 | AC112: 0.969218307 | AD112: 0.9774834915 | AE112: 0.6731792041 | AF112: 0.4328596514
A113: 0.07942470894 | B113: 0.004260180399 | C113: 44 | D113: 0.004221192131 | F113: 0.0002051874229 | O113: =IF(K113="","",AVERAGE(L$26:L113)) ->  | P113: =IFERROR(_xlfn.STDEV.S(L$26:L113)/J113^0.5,"") ->  | T113: 66.9166667 | U113: 88 | W113: 0.0001077997335 | X113: 0.08385413898 | Y113: 0.445 | Z113: 0.6299025156 | AA113: 0.4466759907 | AB113: 0.1126676947 | AC113: 0.9703638404 | AD113: 0.9788093251 | AE113: 0.6845089906 | AF113: 0.4386846025
A114: 0.08385413898 | B114: 0.004429430042 | C114: 44.5 | D114: 0.004418312512 | F114: 0.0002345291276 | O114: =IF(K114="","",AVERAGE(L$26:L114)) ->  | P114: =IFERROR(_xlfn.STDEV.S(L$26:L114)/J114^0.5,"") ->  | T114: 66.9166667 | U114: 89 | W114: 0.00012286639 | X114: 0.08845586332 | Y114: 0.45 | Z114: 0.6354746333 | AA114: 0.4649942479 | AB114: 0.1202964705 | AC114: 0.9714331155 | AD114: 0.9801032234 | AE114: 0.6956853572 | AF114: 0.4444978651
A115: 0.08845586332 | B115: 0.004601724336 | C115: 45 | D115: 0.004622124232 | F115: 0.0002684362295 | O115: =IF(K115="","",AVERAGE(L$26:L115)) ->  | P115: =IFERROR(_xlfn.STDEV.S(L$26:L115)/J115^0.5,"") ->  | T115: 66.9166667 | U115: 90 | W115: 0.0001398915973 | X115: 0.09323281816 | Y115: 0.455 | Z115: 0.6409571742 | AA115: 0.4833349757 | AB115: 0.1284877085 | AC115: 0.9724296363 | AD115: 0.9813311906 | AE115: 0.7066797009 | AF115: 0.450274309
A116: 0.09323281816 | B116: 0.004776954845 | C116: 45.5 | D116: 0.004832590741 | F116: 0.0003076643594 | O116: =IF(K116="","",AVERAGE(L$26:L116)) ->  | P116: =IFERROR(_xlfn.STDEV.S(L$26:L116)/J116^0.5,"") ->  | T116: 66.9166667 | U116: 91 | W116: 0.0001591085902 | X116: 0.09818782331 | Y116: 0.46 | Z116: 0.6463513906 | AA116: 0.5016574062 | AB116: 0.1373394758 | AC116: 0.973359723 | AD116: 0.9825045585 | AE116: 0.7174591471 | AF116: 0.4560162719
A117: 0.09818782331 | B117: 0.004955005147 | C117: 46 | D117: 0.005049644746 | F117: 0.0003530987451 | O117: =IF(K117="","",AVERAGE(L$26:L117)) ->  | P117: =IFERROR(_xlfn.STDEV.S(L$26:L117)/J117^0.5,"") ->  | T117: 66.9166667 | U117: 92 | W117: 0.0001807754484 | X117: 0.1033235741 | Y117: 0.465 | Z117: 0.6516585372 | AA117: 0.5199222859 | AB117: 0.1469032312 | AC117: 0.9742320608 | AD117: 0.9836913187 | AE117: 0.7279922157 | AF117: 0.4617138186
A118: 0.1033235741 | B118: 0.005135750794 | C118: 46.5 | D118: 0.005273185769 | F118: 0.0004057764082 | O118: =IF(K118="","",AVERAGE(L$26:L118)) ->  | P118: =IFERROR(_xlfn.STDEV.S(L$26:L118)/J118^0.5,"") ->  | T118: 66.9166667 | U118: 93 | W118: 0.0002051773657 | X118: 0.1086426334 | Y118: 0.47 | Z118: 0.656879869 | AA118: 0.5380904231 | AB118: 0.1572038606 | AC118: 0.9750571102 | AD118: 0.9847451865 | AE118: 0.7382544865 | AF118: 0.4673544814
A119: 0.1086426334 | B119: 0.005319059274 | C119: 47 | D119: 0.005503077727 | F119: 0.0004669119118 | O119: =IF(K119="","",AVERAGE(L$26:L119)) ->  | P119: =IFERROR(_xlfn.STDEV.S(L$26:L119)/J119^0.5,"") ->  | T119: 66.9166667 | U119: 94 | W119: 0.000232629079 | X119: 0.1141474234 | Y119: 0.475 | Z119: 0.6620166397 | AA119: 0.5561243154 | AB119: 0.1681557398 | AC119: 0.9758463479 | AD119: 0.985749606 | AE119: 0.748234241 | AF119: 0.472920338
A120: 0.1141474234 | B120: 0.005504789988 | C120: 47.5 | D120: 0.005739146573 | F120: 0.0005379270924 | O120: =IF(K120="","",AVERAGE(L$26:L120)) ->  | P120: =IFERROR(_xlfn.STDEV.S(L$26:L120)/J120^0.5,"") ->  | T120: 66.9166667 | U120: 95 | W120: 0.0002634774656 | X120: 0.1198402176 | Y120: 0.48 | Z120: 0.6670701007 | AA120: 0.5739868181 | AB120: 0.1795844571 | AC120: 0.9766113433 | AD120: 0.9866942753 | AE120: 0.757938104 | AF120: 0.4784456745
A121: 0.1198402176 | B121: 0.005692794235 | C121: 48 | D121: 0.005981178027 | F121: 0.0006204852118 | O121: =IF(K121="","",AVERAGE(L$26:L121)) ->  | P121: =IFERROR(_xlfn.STDEV.S(L$26:L121)/J121^0.5,"") ->  | T121: 66.9166667 | U121: 96 | W121: 0.0002981043127 | X121: 0.1257231328 | Y121: 0.485 | Z121: 0.6720414992 | AA121: 0.591642945 | AB121: 0.1912607673 | AC121: 0.9773626744 | AD121: 0.98761113 | AE121: 0.7673826298 | AF121: 0.4839610758
A122: 0.1257231328 | B122: 0.005882915215 | C122: =C121+OFFSET(W$23,,B$11-1) -> 48.5 | D122: 0.006228915435 | F122: 0.0007165299267 | I122: =IF(L122<>"",0,"") ->  | J122: =IF(B$9>J121,J121+1,"") ->  | K122: =IFERROR(( MOD(( MOD( MOD( 999999999999989, MOD( PM_Index*2499997 +$J122*1800451, 7450589 ) * 4658 + 7450581 ) * 383, 99991 ) * 7440893 + MOD( MOD( 999999999999989, MOD( PM_Index*2246527 +$J122*2399993, 7450987 ) * 7580 + 7560584 ) * 17669, 7440893 )) * 1343, 4294967296 ) + 0.5 ) / 4294967296,"") ->  | M122: =IF(L122="",NA(),L122) ->  | O122: =IF(K122="","",AVERAGE(L$26:L122)) ->  | P122: =IFERROR(_xlfn.STDEV.S(L$26:L122)/J122^0.5,"") ->  | T122: 66.9166667 | U122: 97 | W122: 0.0003369292657 | X122: 0.1317981209 | Y122: 0.49 | Z122: 0.6769320773 | AA122: 0.6090584284 | AB122: 0.2030581325 | AC122: 0.978108838 | AD122: 0.9885135622 | AE122: 0.7765858876 | AF122: 0.4895053087
A123: 0.1317981209 | B123: 0.006074988039 | C123: 49 | D123: 0.00648205779 | F123: 0.0008283293971 | O123: =IF(K123="","",AVERAGE(L$26:L123)) ->  | P123: =IFERROR(_xlfn.STDEV.S(L$26:L123)/J123^0.5,"") ->  | T123: 66.9166667 | U123: 98 | W123: 0.000380412959 | X123: 0.1380669606 | Y123: 0.495 | Z123: 0.6817430709 | AA123: 0.6262016224 | AB123: 0.2149584153 | AC123: 0.9788553485 | AD123: 0.9893809686 | AE123: 0.7855631662 | AF123: 0.4950680483
A124: 0.1380669606 | B124: 0.006268839756 | C124: 49.5 | D124: 0.006740257965 | F124: 0.0009585257112 | O124: =IF(K124="","",AVERAGE(L$26:L124)) ->  | P124: =IFERROR(_xlfn.STDEV.S(L$26:L124)/J124^0.5,"") ->  | T124: 66.9166667 | U124: 99 | W124: 0.0004290603332 | X124: 0.14453125 | Y124: 0.5 | Z124: 0.6864757087 | AA124: 0.6430418727 | AB124: 0.2270786637 | AC124: 0.979604115 | AD124: 0.9901494782 | AE124: 0.7943226783 | AF124: 0.5006329309
A125: 0.14453125 | B125: 0.006464289387 | C125: 50 | D125: 0.00700312119 | F125: 0.001110189569 | O125: =IF(K125="","",AVERAGE(L$26:L125)) ->  | P125: =IFERROR(_xlfn.STDEV.S(L$26:L125)/J125^0.5,"") ->  | T125: 66.9166667 | U125: 100 | W125: 0.0004834241424 | X125: 0.151192398 | Y125: 0.505 | Z125: 0.6911312109 | AA125: 0.6595514065 | AB125: 0.2395806356 | AC125: 0.9803531082 | AD125: 0.9909015051 | AE125: 0.8028628118 | AF125: 0.5061814495
A126: 0.151192398 | B126: 0.006661147981 | C126: 50.5 | D126: 0.007270203826 | F126: 0.001286879816 | O126: =IF(K126="","",AVERAGE(L$26:L126)) ->  | P126: =IFERROR(_xlfn.STDEV.S(L$26:L126)/J126^0.5,"") ->  | T126: 66.9166667 | U126: 101 | W126: 0.0005441086525 | X126: 0.1580516167 | Y126: 0.51 | Z126: 0.6957107891 | AA126: 0.6757039609 | AB126: 0.2526815549 | AC126: 0.9810964423 | AD126: 0.9916700147 | AE126: 0.8111693823 | AF126: 0.5117167213
A127: 0.1580516167 | B127: 0.006859218676 | C127: 51 | D127: 0.007541012477 | F127: 0.001492706909 | O127: =IF(K127="","",AVERAGE(L$26:L127)) ->  | P127: =IFERROR(_xlfn.STDEV.S(L$26:L127)/J127^0.5,"") ->  | T127: 66.9166667 | U127: 102 | W127: 0.0006117735325 | X127: 0.1651099134 | Y127: 0.515 | Z127: 0.7002156447 | AA127: 0.6914764069 | AB127: 0.2665128103 | AC127: 0.9818249923 | AD127: 0.992406589 | AE127: 0.8192243122 | AF127: 0.5172227718
A128: 0.1651099134 | B128: 0.007058296779 | C128: 51.5 | D128: 0.007815003479 | F128: 0.001732398661 | O128: =IF(K128="","",AVERAGE(L$26:L128)) ->  | P128: =IFERROR(_xlfn.STDEV.S(L$26:L128)/J128^0.5,"") ->  | T128: 66.9166667 | U128: 103 | W128: 0.0006871379379 | X128: 0.1723680833 | Y128: 0.52 | Z128: 0.7046469691 | AA128: 0.7068472396 | AB128: 0.2811129961 | AC128: 0.9825275138 | AD128: 0.9930669304 | AE128: 0.8270143116 | AF128: 0.5226849906
A129: 0.1723680833 | B129: 0.007258169859 | C129: 52 | D129: 0.008091582828 | F129: 0.002011365654 | O129: =IF(K129="","",AVERAGE(L$26:L129)) ->  | P129: =IFERROR(_xlfn.STDEV.S(L$26:L129)/J129^0.5,"") ->  | T129: 66.9166667 | U129: 104 | W129: 0.0007709847845 | X129: 0.1798267012 | Y129: 0.525 | Z129: 0.7090059422 | AA129: 0.7217980248 | AB129: 0.2963764528 | AC129: 0.9831920795 | AD129: 0.9936767933 | AE129: 0.834532554 | AF129: 0.5280879877
A130: 0.1798267012 | B130: 0.007458617856 | C130: 52.5 | D130: 0.008370106562 | F130: 0.002335762417 | O130: =IF(K130="","",AVERAGE(L$26:L130)) ->  | P130: =IFERROR(_xlfn.STDEV.S(L$26:L130)/J130^0.5,"") ->  | T130: 66.9166667 | U130: 105 | W130: 0.0008641652091 | X130: 0.1874861144 | Y130: 0.53 | Z130: 0.7132937325 | AA130: 0.7363121048 | AB130: 0.3122074332 | AC130: 0.9838075925 | AD130: 0.9942495699 | AE130: 0.8417803533 | AF130: 0.5334602052
A131: 0.1874861144 | B131: 0.007659413203 | C131: 53 | D131: 0.008649881657 | F131: 0.002712538804 | O131: =IF(K131="","",AVERAGE(L$26:L131)) ->  | P131: =IFERROR(_xlfn.STDEV.S(L$26:L131)/J131^0.5,"") ->  | T131: 66.9166667 | U131: 106 | W131: 0.0009676032132 | X131: 0.1953464353 | Y131: 0.535 | Z131: 0.7175114965 | AA131: 0.7503759536 | AB131: 0.3284939511 | AC131: 0.9843651709 | AD131: 0.9947986525 | AE131: 0.848768372 | AF131: 0.5388378774
A132: 0.1953464353 | B132: 0.007860320965 | C132: 53.5 | D132: 0.008930167468 | F132: 0.003149473998 | O132: =IF(K132="","",AVERAGE(L$26:L132)) ->  | P132: =IFERROR(_xlfn.STDEV.S(L$26:L132)/J132^0.5,"") ->  | T132: 66.9166667 | U132: 107 | W132: 0.001082300481 | X132: 0.2034075343 | Y132: 0.54 | Z132: 0.721660378 | AA132: 0.7639773339 | AB132: 0.3451729482 | AC132: 0.9848592922 | AD132: 0.9953652481 | AE132: 0.8555178307 | AF132: 0.5442595761
A133: 0.2034075343 | B133: 0.008061098989 | C133: 54 | D133: 0.00921017773 | F133: 0.003655183092 | O133: =IF(K133="","",AVERAGE(L$26:L133)) ->  | P133: =IFERROR(_xlfn.STDEV.S(L$26:L133)/J133^0.5,"") ->  | T133: 66.9166667 | U133: 108 | W133: 0.001209341367 | X133: 0.2116690324 | Y133: 0.545 | Z133: 0.725741508 | AA133: 0.7771067933 | AB133: 0.3621358126 | AC133: 0.9852885252 | AD133: 0.9958288263 | AE133: 0.8620545438 | AF133: 0.549716535
A134: 0.2116690324 | B134: 0.00826149808 | C134: 54.5 | D134: 0.00948908317 | F134: 0.004239083465 | O134: =IF(K134="","",AVERAGE(L$26:L134)) ->  | P134: =IFERROR(_xlfn.STDEV.S(L$26:L134)/J134^0.5,"") ->  | T134: 66.9166667 | U134: 109 | W134: 0.001349898032 | X134: 0.2201302946 | Y134: 0.55 | Z134: 0.7297560042 | AA134: 0.7897564079 | AB134: 0.3793281329 | AC134: 0.9856556775 | AD134: 0.9962501674 | AE134: 0.8684029558 | AF134: 0.5551999878
A135: 0.2201302946 | B135: 0.008461262182 | C135: 55 | D135: 0.009766014711 | F135: 0.004911305164 | O135: =IF(K135="","",AVERAGE(L$26:L135)) ->  | P135: =IFERROR(_xlfn.STDEV.S(L$26:L135)/J135^0.5,"") ->  | T135: 66.9166667 | U135: 110 | W135: 0.001505235732 | X135: 0.2287904232 | Y135: 0.555 | Z135: 0.7337049708 | AA135: 0.8019210805 | AB135: 0.3966933887 | AC135: 0.9859673724 | AD135: 0.9966560559 | AE135: 0.8745849399 | AF135: 0.5607031163
A136: 0.2287904232 | B136: 0.008660128585 | C136: 55.5 | D136: 0.01004006731 | F136: 0.005682526612 | O136: =IF(K136="","",AVERAGE(L$26:L136)) ->  | P136: =IFERROR(_xlfn.STDEV.S(L$26:L136)/J136^0.5,"") ->  | T136: 66.9166667 | U136: 111 | W136: 0.001676718227 | X136: 0.2376482513 | Y136: 0.56 | Z136: 0.7375894982 | AA136: 0.813597312 | AB136: 0.4142912639 | AC136: 0.9862331829 | AD136: 0.9970289788 | AE136: 0.8806185977 | AF136: 0.5662399465
A137: 0.2376482513 | B137: 0.008857828141 | C137: 56 | D137: 0.01031030442 | F137: 0.006563714596 | O137: =IF(K137="","",AVERAGE(L$26:L137)) ->  | P137: =IFERROR(_xlfn.STDEV.S(L$26:L137)/J137^0.5,"") ->  | T137: 66.9166667 | U137: 112 | W137: 0.0018658133 | X137: 0.2467023368 | Y137: 0.565 | Z137: 0.7414106629 | AA137: 0.8247843299 | AB137: 0.4322250979 | AC137: 0.986464509 | AD137: 0.9973905698 | AE137: 0.8865159056 | AF137: 0.571815933
A138: 0.2467023368 | B138: 0.009054085502 | C138: 56.5 | D138: 0.010575763 | F138: 0.007565746238 | O138: =IF(K138="","",AVERAGE(L$26:L138)) ->  | P138: =IFERROR(_xlfn.STDEV.S(L$26:L138)/J138^0.5,"") ->  | T138: 66.9166667 | U138: 113 | W138: 0.002074098364 | X138: 0.2559509562 | Y138: 0.57 | Z138: 0.7451695271 | AA138: 0.8354827709 | AB138: 0.4506657173 | AC138: 0.9866733789 | AD138: 0.9977068331 | AE138: 0.8922803613 | AF138: 0.5774306864
A139: 0.2559509562 | B139: 0.009248619377 | C139: 57 | D139: 0.01083545923 | F139: 0.008698891536 | O139: =IF(K139="","",AVERAGE(L$26:L139)) ->  | P139: =IFERROR(_xlfn.STDEV.S(L$26:L139)/J139^0.5,"") ->  | T139: 66.9166667 | U139: 114 | W139: 0.002303266132 | X139: 0.265392099 | Y139: 0.575 | Z139: 0.7488671387 | AA139: 0.8456958816 | AB139: 0.4696139658 | AC139: 0.9868712968 | AD139: 0.9979592257 | AE139: 0.8979091603 | AF139: 0.5830838169
A140: 0.265392099 | B140: 0.009441142803 | C140: 57.5 | D140: 0.0110883946 | F140: 0.00997213904 | O140: =IF(K140="","",AVERAGE(L$26:L140)) ->  | P140: =IFERROR(_xlfn.STDEV.S(L$26:L140)/J140^0.5,"") ->  | T140: 66.9166667 | U140: 115 | W140: 0.00255513033 | X140: 0.2750234624 | Y140: 0.58 | Z140: 0.7525045314 | AA140: 0.855428088 | AB140: 0.4889099833 | AC140: 0.9870682777 | AD140: 0.9981817433 | AE140: 0.9033953712 | AF140: 0.5888152602
A141: 0.2750234624 | B141: 0.009631363437 | C141: 58 | D141: 0.01133356271 | F141: 0.01139235566 | O141: =IF(K141="","",AVERAGE(L$26:L141)) ->  | P141: =IFERROR(_xlfn.STDEV.S(L$26:L141)/J141^0.5,"") ->  | T141: 66.9166667 | U141: 116 | W141: 0.002831631414 | X141: 0.2848424463 | Y141: 0.585 | Z141: 0.7560827242 | AA141: 0.8646859338 | AB141: 0.5082437513 | AC141: 0.9872722152 | AD141: 0.9983888082 | AE141: 0.9087289361 | AF141: 0.5946696272
A142: 0.2848424463 | B142: 0.009818983864 | C142: 58.5 | D142: 0.01156995629 | F142: 0.01296328566 | O142: =IF(K142="","",AVERAGE(L$26:L142)) ->  | P142: =IFERROR(_xlfn.STDEV.S(L$26:L142)/J142^0.5,"") ->  | T142: 66.9166667 | U142: 117 | W142: 0.003134842261 | X142: 0.2948461482 | Y142: 0.59 | Z142: 0.7596027215 | AA142: 0.8734769401 | AB142: 0.5274153396 | AC142: 0.9874886042 | AD142: 0.9985701188 | AE142: 0.9138976688 | AF142: 0.6006917239
A143: 0.2948461482 | B143: 0.01000370193 | C143: 59 | D143: 0.01179657481 | F143: 0.01468441432 | O143: =IF(K143="","",AVERAGE(L$26:L143)) ->  | P143: =IFERROR(_xlfn.STDEV.S(L$26:L143)/J143^0.5,"") ->  | T143: 66.9166667 | U143: 118 | W143: 0.003466973803 | X143: 0.3050313593 | Y143: 0.595 | Z143: 0.7630655133 | AA143: 0.8818105938 | AB143: 0.5462840799 | AC143: 0.9877205912 | AD143: 0.9987473087 | AE143: 0.9188896818 | AF143: 0.6068603161
A144: 0.3050313593 | B144: 0.01018521107 | C144: 59.5 | D144: 0.01201243224 | F144: 0.01654974889 | O144: =IF(K144="","",AVERAGE(L$26:L144)) ->  | P144: =IFERROR(_xlfn.STDEV.S(L$26:L144)/J144^0.5,"") ->  | T144: 66.9166667 | U144: 119 | W144: 0.003830380568 | X144: 0.31539456 | Y144: 0.6 | Z144: 0.7664720747 | AA144: 0.8896971792 | AB144: 0.5647940844 | AC144: 0.9879692551 | AD144: 0.9989049253 | AE144: 0.9236958114 | AF144: 0.6131341046
A145: 0.31539456 | B145: 0.01036320072 | C145: 60 | D145: 0.01221656508 | F145: 0.01854660174 | O145: =IF(K145="","",AVERAGE(L$26:L145)) ->  | P145: =IFERROR(_xlfn.STDEV.S(L$26:L145)/J145^0.5,"") ->  | T145: 66.9166667 | U145: 120 | W145: 0.004227566069 | X145: 0.3259319167 | Y145: 0.605 | Z145: 0.7698233663 | AA145: 0.8971484237 | AB145: 0.5828797643 | AC145: 0.9882340277 | AD145: 0.9990460591 | AE145: 0.9283096182 | AF145: 0.6194719849
A146: 0.3259319167 | B146: 0.01053735667 | C146: 60.5 | D146: 0.0124080405 | F146: 0.02065449506 | O146: =IF(K146="","",AVERAGE(L$26:L146)) ->  | P146: =IFERROR(_xlfn.STDEV.S(L$26:L146)/J146^0.5,"") ->  | T146: 66.9166667 | U146: 121 | W146: 0.004661188024 | X146: 0.3366392781 | Y146: 0.61 | Z146: 0.7731203343 | AA146: 0.9041766453 | AB146: 0.600638132 | AC146: 0.9885131801 | AD146: 0.9991408351 | AE146: 0.9327273866 | AF146: 0.6258449306
A147: 0.3366392781 | B147: 0.01070736145 | C147: 61 | D147: 0.01258596447 | F147: 0.02284433818 | O147: =IF(K147="","",AVERAGE(L$26:L147)) ->  | P147: =IFERROR(_xlfn.STDEV.S(L$26:L147)/J147^0.5,"") ->  | T147: 66.9166667 | U147: 122 | W147: 0.005134063327 | X147: 0.3475121729 | Y147: 0.615 | Z147: 0.7763639101 | AA147: 0.9107956576 | AB147: 0.6182292585 | AC147: 0.9888042981 | AD147: 0.9992263395 | AE147: 0.9369479563 | AF147: 0.6322139801
A148: 0.3475121729 | B148: 0.01087289482 | C148: 61.5 | D148: 0.01274948984 | F148: 0.02507804939 | O148: =IF(K148="","",AVERAGE(L$26:L148)) ->  | P148: =IFERROR(_xlfn.STDEV.S(L$26:L148)/J148^0.5,"") ->  | T148: 66.9166667 | U148: 123 | W148: 0.005649172756 | X148: 0.3585458071 | Y148: 0.62 | Z148: 0.7795550107 | AA148: 0.9170196408 | AB148: 0.6358336715 | AC148: 0.9891046694 | AD148: 0.9993015422 | AE148: 0.940972552 | AF148: 0.6385354965
A149: 0.3585458071 | B149: 0.01103363417 | C149: 62 | D149: 0.01289782409 | F149: 0.0273087962 | O149: =IF(K149="","",AVERAGE(L$26:L149)) ->  | P149: =IFERROR(_xlfn.STDEV.S(L$26:L149)/J149^0.5,"") ->  | T149: 66.9166667 | U149: 124 | W149: 0.006209665326 | X149: 0.3697350621 | Y149: 0.625 | Z149: 0.7826945385 | AA149: 0.9228638953 | AB149: 0.6534496838 | AC149: 0.9894115464 | AD149: 0.9993685035 | AE149: 0.9448038014 | AF149: 0.6447611675
A150: 0.3697350621 | B150: 0.01118925502 | C150: 62.5 | D150: 0.0130302369 | F150: 0.02948200248 | O150: =IF(K150="","",AVERAGE(L$26:L150)) ->  | P150: =IFERROR(_xlfn.STDEV.S(L$26:L150)/J150^0.5,"") ->  | T150: 66.9166667 | U150: 125 | W150: 0.00681886227 | X150: 0.3810744936 | Y150: 0.63 | Z150: 0.7857833818 | AA150: 0.9283439511 | AB150: 0.6710051687 | AC150: 0.9897222636 | AD150: 0.9994220725 | AE150: 0.9484447508 | AF150: 0.6509194349
A151: 0.3810744936 | B151: 0.01133943149 | C151: 63 | D151: 0.01314606717 | F151: 0.03153721215 | O151: =IF(K151="","",AVERAGE(L$26:L151)) ->  | P151: =IFERROR(_xlfn.STDEV.S(L$26:L151)/J151^0.5,"") ->  | T151: 66.9166667 | U151: 126 | W151: 0.00748026056 | X151: 0.3925583304 | Y151: 0.635 | Z151: 0.7888224144 | AA151: 0.9334760064 | AB151: 0.6883535527 | AC151: 0.990034248 | AD151: 0.9994591588 | AE151: 0.9518985918 | AF151: 0.6570630917
A152: 0.3925583304 | B152: 0.01148383683 | C152: 63.5 | D152: 0.01324472952 | F152: 0.03341080717 | O152: =IF(K152="","",AVERAGE(L$26:L152)) ->  | P152: =IFERROR(_xlfn.STDEV.S(L$26:L152)/J152^0.5,"") ->  | T152: 66.9166667 | U152: 127 | W152: 0.008197535925 | X152: 0.4041804744 | Y152: 0.64 | Z152: 0.7918124962 | AA152: 0.93827616 | AB152: 0.7054115317 | AC152: 0.9903449624 | AD152: 0.9994910941 | AE152: 0.955168387 | AF152: 0.6632449308
A153: =OFFSET(W152,,B$11-1) -> 0.4041804744 | B153: 0.01162214393 | C153: 64 | D153: =_xlfn.T.DIST((C153+B$22/2-B$17)/B$18,B$9-1,1)-_xlfn.T.DIST((C153-B$22/2-B$17)/B$18,B$9-1,1) -> 0.01332572015 | F153: =_xlfn.T.DIST((C153+B$22/2-B$17)/B$19,B$9-1,1)-_xlfn.T.DIST((C153-B$22/2-B$17)/B$19,B$9-1,1) -> 0.03503946023 | O153: =IF(K153="","",AVERAGE(L$26:L153)) ->  | P153: =IFERROR(_xlfn.STDEV.S(L$26:L153)/J153^0.5,"") ->  | T153: 66.9166667 | U153: 128 | W153: =NORMDIST(C154,100,15,1) -> 0.008974545296 | X153: =IFERROR(BETADIST(C154,6,3,0,100),"") -> 0.4159345003 | Y153: =C154/100 -> 0.645 | Z153: 0.7947544728 | AA153: 0.9427608643 | AB153: 0.7221183672 | AC153: 0.9906518149 | AD153: 0.9995209692 | AE153: 0.9582568766 | AF153: 0.6694704069
A154: 0.4159345003 | B154: 0.01175402594 | C154: =C153+OFFSET(W$23,,B$11-1) -> 64.5 | D154: 0.01338862194 | F154: 0.03636407608 | I154: =IF(L154<>"",0,"") ->  | J154: =IF(B$9>J153,J153+1,"") ->  | K154: =IFERROR(( MOD(( MOD( MOD( 999999999999989, MOD( PM_Index*2499997 +$J154*1800451, 7450589 ) * 4658 + 7450581 ) * 383, 99991 ) * 7440893 + MOD( MOD( 999999999999989, MOD( PM_Index*2246527 +$J154*2399993, 7450987 ) * 7580 + 7560584 ) * 17669, 7440893 )) * 1343, 4294967296 ) + 0.5 ) / 4294967296,"") ->  | M154: =IF(L154="",NA(),L154) ->  | O154: =IF(K154="","",AVERAGE(L$26:L154)) ->  | P154: =IFERROR(_xlfn.STDEV.S(L$26:L154)/J154^0.5,"") ->  | T154: 66.9166667 | U154: 129 | W154: 0.009815328629 | X154: 0.4278136571 | Y154: 0.65 | Z154: =_xlfn.LOGNORM.DIST(C155,(LN(120)+LN(10))/2,(LN(120)-LN(10))/3.29,1) -> 0.7976491759 | AA154: 0.9469461155 | AB154: 0.7385350085 | AC154: 0.9909520715 | AD154: 0.9995508442 | AE154: 0.961166285 | AF154: 0.6757480916
A155: 0.4278136571 | B155: =IF(B$12,A155-A154,"") -> 0.01187915676 | C155: 65 | D155: 0.01343310875 | F155: 0.03733386292 | L155: =IFERROR(VLOOKUP(K155,A$25:C$225,3),"") ->  | O155: =IF(K155="","",AVERAGE(L$26:L155)) ->  | P155: =IFERROR(_xlfn.STDEV.S(L$26:L155)/J155^0.5,"") ->  | T155: =IF($B$12,OFFSET(W$19,,B$11-1),"") -> 66.9166667 | U155: 130 | W155: 0.01072411002 | X155: 0.4398108688 | Y155: 0.655 | Z155: 0.8004974235 | AA155: 0.9508480368 | AB155: 0.7547251464 | AC155: 0.9912428071 | AD155: 0.9995765986 | AE155: 0.9638987802 | AF155: 0.6820918161
A156: 0.4398108688 | B156: 0.01199721176 | C156: 65.5 | D156: 0.01345894873 | F156: 0.03791010357 | O156: =IF(K156="","",AVERAGE(L$26:L156)) ->  | P156: =IFERROR(_xlfn.STDEV.S(L$26:L156)/J156^0.5,"") ->  | Q156: =IFERROR(TINV(0.1,J156-1)*P156,"") ->  | R156: =IFERROR(O156+Q156,"") ->  | S156: =IFERROR(O156-Q156,"") ->  | T156: 66.9166667 | U156: 131 | W156: 0.01170529808 | X156: 0.4519187371 | Y156: 0.66 | Z156: 0.8033000198 | AA156: 0.9544821843 | AB156: 0.770721681 | AC156: 0.9915209244 | AD156: 0.9996002926 | AE156: 0.9664569332 | AF156: 0.688544633
A157: 0.4519187371 | B157: 0.01210786828 | C157: 66 | D157: 0.01346600678 | F157: 0.03806918536 | O157: =IF(K157="","",AVERAGE(L$26:L157)) ->  | P157: =IFERROR(_xlfn.STDEV.S(L$26:L157)/J157^0.5,"") ->  | T157: 66.9166667 | U157: 132 | W157: 0.01276348546 | X157: 0.4641295435 | Y157: 0.665 | Z157: 0.8060577558 | AA157: 0.9578640011 | AB157: 0.7864073534 | AC157: 0.9917832689 | AD157: 0.9996250167 | AE157: 0.9688441612 | AF157: 0.6951063476
A158: 0.4641295435 | B158: 0.0122108064 | C158: 66.5 | D158: 0.01345424593 | F158: 0.03780451031 | O158: =IF(K158="","",AVERAGE(L$26:L158)) ->  | P158: =IFERROR(_xlfn.STDEV.S(L$26:L158)/J158^0.5,"") ->  | T158: 66.9166667 | U158: 133 | W158: 0.01390344751 | X158: 0.476435253 | Y158: 0.67 | Z158: 0.8087714085 | AA158: 0.9610082046 | AB158: 0.8016486659 | AC158: 0.9920268117 | AD158: 0.9996518013 | AE158: 0.9710651709 | AF158: 0.7017648817
A159: 0.476435253 | B159: 0.01230570954 | C159: 67 | D159: 0.01342372777 | F159: 0.03712703701 | O159: =IF(K159="","",AVERAGE(L$26:L159)) ->  | P159: =IFERROR(_xlfn.STDEV.S(L$26:L159)/J159^0.5,"") ->  | T159: 66.9166667 | U159: 134 | W159: 0.01513014001 | X159: 0.4888275182 | Y159: 0.675 | Z159: 0.8114417424 | AA159: 0.9639292708 | AB159: 0.8163144406 | AC159: 0.9922488735 | AD159: 0.9996754953 | AE159: 0.9731267161 | AF159: 0.7085087416
A160: 0.4888275182 | B160: 0.01239226519 | C160: 67.5 | D160: 0.01337461175 | F160: 0.03606438254 | O160: =IF(K160="","",AVERAGE(L$26:L160)) ->  | P160: =IFERROR(_xlfn.STDEV.S(L$26:L160)/J160^0.5,"") ->  | T160: 66.9166667 | U160: 135 | W160: 0.01644869582 | X160: 0.5012976839 | Y160: 0.68 | Z160: 0.8140695082 | AA160: 0.9666410076 | AB160: 0.8303766282 | AC160: 0.9924473622 | AD160: 0.9996960987 | AE160: 0.9750383554 | AF160: 0.7153796163
A161: 0.5012976839 | B161: 0.01247016566 | C161: 68 | D161: 0.01330715355 | F161: 0.03465860296 | O161: =IF(K161="","",AVERAGE(L$26:L161)) ->  | P161: =IFERROR(_xlfn.STDEV.S(L$26:L161)/J161^0.5,"") ->  | T161: 66.9166667 | U161: 136 | W161: 0.01786442056 | X161: 0.5138367927 | Y161: 0.685 | Z161: 0.8166554443 | AA161: 0.969156905 | AB161: 0.8437995871 | AC161: 0.9926209967 | AD161: 0.9997105212 | AE161: 0.9768118958 | AF161: 0.7224108179
A162: 0.5138367927 | B162: 0.01253910876 | C162: 68.5 | D162: 0.01322170242 | F162: 0.03296293889 | O162: =IF(K162="","",AVERAGE(L$26:L162)) ->  | P162: =IFERROR(_xlfn.STDEV.S(L$26:L162)/J162^0.5,"") ->  | T162: 66.9166667 | U162: 137 | W162: 0.01938278709 | X162: 0.5264355913 | Y162: 0.69 | Z162: 0.8192002759 | AA162: 0.9714896868 | AB162: 0.8565753033 | AC162: 0.9927694931 | AD162: 0.9997239134 | AE162: 0.978460837 | AF162: 0.7296229961
A163: 0.5264355913 | B163: 0.01259879867 | C163: 69 | D163: 0.01311869758 | F163: 0.03103792723 | O163: =IF(K163="","",AVERAGE(L$26:L163)) ->  | P163: =IFERROR(_xlfn.STDEV.S(L$26:L163)/J163^0.5,"") ->  | T163: 66.9166667 | U163: 138 | W163: 0.02100942884 | X163: 0.539084538 | Y163: 0.695 | Z163: 0.821704716 | AA163: 0.9736517634 | AB163: 0.8686234249 | AC163: 0.9928936871 | AD163: 0.999739366 | AE163: 0.9799993475 | AF163: 0.7369582928
A164: 0.539084538 | B164: 0.01264894667 | C164: 69.5 | D164: 0.01299866373 | F164: 0.02894732371 | O164: =IF(K164="","",AVERAGE(L$26:L164)) ->  | P164: =IFERROR(_xlfn.STDEV.S(L$26:L164)/J164^0.5,"") ->  | T164: 66.9166667 | U164: 139 | W164: 0.02275013195 | X164: 0.55177381 | Y164: 0.7 | Z164: 0.8241694647 | AA164: 0.9756547324 | AB164: 0.8798821592 | AC164: 0.9929955698 | AD164: 0.9997496678 | AE164: 0.9814412412 | AF164: 0.7443705387
A165: 0.55177381 | B165: 0.01268927201 | C165: 70 | D165: 0.01286220576 | F165: 0.02675425413 | O165: =IF(K165="","",AVERAGE(L$26:L165)) ->  | P165: =IFERROR(_xlfn.STDEV.S(L$26:L165)/J165^0.5,"") ->  | T165: 66.9166667 | U165: 140 | W165: 0.02461082609 | X165: 0.5644933127 | Y165: 0.705 | Z165: 0.8265952103 | AA165: 0.9775096082 | AB165: 0.8902932986 | AC165: 0.9930782492 | AD165: 0.9997579092 | AE165: 0.9827985509 | AF165: 0.7518135642
A166: 0.5644933127 | B166: 0.01271950274 | C166: 70.5 | D166: 0.01271000271 | F166: 0.0245179271 | O166: =IF(K166="","",AVERAGE(L$26:L166)) ->  | P166: =IFERROR(_xlfn.STDEV.S(L$26:L166)/J166^0.5,"") ->  | T166: 66.9166667 | U166: 141 | W166: 0.02659757402 | X166: 0.5772326894 | Y166: 0.71 | Z166: 0.8289826287 | AA166: 0.9792265998 | AB166: 0.8999133635 | AC166: 0.9931458524 | AD166: 0.9997692411 | AE166: 0.9840801016 | AF166: 0.7592657456
A167: 0.5772326894 | B167: 0.01273937663 | C167: 71 | D167: 0.01254280113 | F167: 0.02229112331 | O167: =IF(K167="","",AVERAGE(L$26:L167)) ->  | P167: =IFERROR(_xlfn.STDEV.S(L$26:L167)/J167^0.5,"") ->  | T167: 66.9166667 | U167: 142 | W167: 0.02871655982 | X167: 0.5899813314 | Y167: 0.715 | Z167: 0.8313323841 | AA167: 0.9808153776 | AB167: 0.9088191204 | AC167: 0.99320338 | AD167: 0.9997816032 | AE167: 0.9852917204 | AF167: 0.7666910436
A168: 0.5899813314 | B168: 0.01274864204 | C168: 71.5 | D168: 0.01236140791 | F168: 0.02011854993 | O168: =IF(K168="","",AVERAGE(L$26:L168)) ->  | P168: =IFERROR(_xlfn.STDEV.S(L$26:L168)/J168^0.5,"") ->  | T168: 66.9166667 | U168: 143 | W168: 0.03097407571 | X168: 0.6027283903 | Y168: 0.72 | Z168: 0.8336451288 | AA168: 0.9822849136 | AB168: 0.9170759474 | AC168: 0.9932565296 | AD168: 0.9997939652 | AE168: 0.9864364457 | AF168: 0.7740588733
A169: 0.6027283903 | B169: 0.01274705888 | C169: 72 | D169: 0.01216668266 | F169: 0.01803603642 | O169: =IF(K169="","",AVERAGE(L$26:L169)) ->  | P169: =IFERROR(_xlfn.STDEV.S(L$26:L169)/J169^0.5,"") ->  | T169: 66.9166667 | U169: 144 | W169: 0.03337650758 | X169: 0.6154627899 | Y169: 0.725 | Z169: 0.8359215037 | AA169: 0.9836438026 | AB169: 0.9246543188 | AC169: 0.993311479 | AD169: 0.9998052972 | AE169: 0.9875153897 | AF169: 0.7813497538
A170: 0.6154627899 | B170: 0.01273439957 | C170: 72.5 | D170: 0.01195952989 | F170: 0.01607046439 | O170: =IF(K170="","",AVERAGE(L$26:L170)) ->  | P170: =IFERROR(_xlfn.STDEV.S(L$26:L170)/J170^0.5,"") ->  | T170: 66.9166667 | U170: 145 | W170: 0.03593031911 | X170: 0.6281732399 | Y170: 0.73 | Z170: 0.8381621382 | AA170: 0.9849000249 | AB170: 0.9315234437 | AC170: 0.9933746275 | AD170: 0.9998145687 | AE170: 0.9885286008 | AF170: 0.7886303095
A171: 0.6281732399 | B171: 0.01271045003 | C171: 73 | D171: 0.01174089084 | F171: 0.01424027349 | O171: =IF(K171="","",AVERAGE(L$26:L171)) ->  | P171: =IFERROR(_xlfn.STDEV.S(L$26:L171)/J171^0.5,"") ->  | T171: 66.9166667 | U171: 146 | W171: 0.03864203446 | X171: 0.6408482506 | Y171: 0.735 | Z171: 0.8403676504 | AA171: 0.9860612572 | AB171: 0.9376860638 | AC171: 0.993452287 | AD171: 0.9998238403 | AE171: 0.9894759338 | AF171: 0.7959665803
A172: 0.6408482506 | B172: 0.01267501072 | C172: 73.5 | D172: 0.01151173541 | F172: 0.01255636785 | O172: =IF(K172="","",AVERAGE(L$26:L172)) ->  | P172: =IFERROR(_xlfn.STDEV.S(L$26:L172)/J172^0.5,"") ->  | T172: 66.9166667 | U172: 147 | W172: 0.04151821969 | X172: 0.6534761483 | Y172: 0.74 | Z172: 0.8425386476 | AA172: 0.987134664 | AB172: 0.9432271706 | AC172: 0.993550335 | AD172: 0.9998331118 | AE172: 0.9903579208 | AF172: 0.8034197358
A173: 0.6534761483 | B173: 0.01262789768 | C173: 74 | D173: 0.011273054 | F173: 0.01102325474 | O173: =IF(K173="","",AVERAGE(L$26:L173)) ->  | P173: =IFERROR(_xlfn.STDEV.S(L$26:L173)/J173^0.5,"") ->  | T173: 66.9166667 | U173: 148 | W173: 0.04456546276 | X173: 0.6660450919 | Y173: 0.745 | Z173: 0.844675726 | AA173: 0.9881270836 | AB173: 0.9482562196 | AC173: 0.9936738407 | AD173: 0.9998403231 | AE173: 0.9911756899 | AF173: 0.8109864644
A174: 0.6660450919 | B174: 0.01256894359 | C174: 74.5 | D174: 0.01102584956 | F174: 0.009640271918 | O174: =IF(K174="","",AVERAGE(L$26:L174)) ->  | P174: =IFERROR(_xlfn.STDEV.S(L$26:L174)/J174^0.5,"") ->  | T174: 66.9166667 | U174: 149 | W174: 0.04779035227 | X174: 0.6785430908 | Y174: 0.75 | Z174: 0.8467794713 | AA174: 0.9890448214 | AB174: 0.9528942655 | AC174: 0.9938266743 | AD174: 0.9998454739 | AE174: 0.9919308854 | AF174: 0.8186492332
A175: 0.6785430908 | B175: 0.01249799893 | C175: 75 | D175: 0.01077112981 | F175: 0.008402792536 | O175: =IF(K175="","",AVERAGE(L$26:L175)) ->  | P175: =IFERROR(_xlfn.STDEV.S(L$26:L175)/J175^0.5,"") ->  | T175: 66.9166667 | U175: 150 | W175: 0.05119945492 | X175: 0.6909580239 | Y175: 0.755 | Z175: 0.8488504584 | AA175: 0.9898938481 | AB175: 0.9572229257 | AC175: 0.9940111135 | AD175: 0.999851655 | AE175: 0.9926256834 | AF175: 0.8263833017
A176: 0.6909580239 | B176: 0.01241493306 | C176: 75.5 | D176: 0.01050989985 | F176: 0.007303331458 | O176: =IF(K176="","",AVERAGE(L$26:L176)) ->  | P176: =IFERROR(_xlfn.STDEV.S(L$26:L176)/J176^0.5,"") ->  | T176: 66.9166667 | U176: 151 | W176: 0.0547992917 | X176: 0.7032776593 | Y176: 0.76 | Z176: 0.8508892521 | AA176: 0.9906796203 | AB176: 0.9612845903 | AC176: 0.994227519 | AD176: 0.999857836 | AE176: 0.9932628078 | AF176: 0.8341797087
A177: 0.7032776593 | B177: 0.01231963545 | C177: 76 | D177: 0.01024315511 | F177: 0.006332507527 | O177: =IF(K177="","",AVERAGE(L$26:L177)) ->  | P177: =IFERROR(_xlfn.STDEV.S(L$26:L177)/J177^0.5,"") ->  | T177: 66.9166667 | U177: 152 | W177: 0.05859631304 | X177: 0.7154896762 | Y177: 0.765 | Z177: 0.852896407 | AA177: 0.9914072167 | AB177: 0.965065551 | AC177: 0.9944741481 | AD177: 0.9998629869 | AE177: 0.9938456115 | AF177: 0.8419821548
A178: 0.7154896762 | B178: 0.01221201684 | C178: 76.5 | D178: 0.009971874788 | F178: 0.00547984211 | O178: =IF(K178="","",AVERAGE(L$26:L178)) ->  | P178: =IFERROR(_xlfn.STDEV.S(L$26:L178)/J178^0.5,"") ->  | T178: 66.9166667 | U178: 153 | W178: 0.06259687279 | X178: 0.7275816867 | Y178: 0.77 | Z178: 0.8548724675 | AA178: 0.9920811742 | AB178: 0.9685343842 | AC178: 0.9947471799 | AD178: 0.9998691679 | AE178: 0.9943781564 | AF178: 0.849733756
A179: 0.7275816867 | B179: 0.01209201048 | C179: 77 | D179: 0.009697015798 | F179: 0.004734392945 | O179: =IF(K179="","",AVERAGE(L$26:L179)) ->  | P179: =IFERROR(_xlfn.STDEV.S(L$26:L179)/J179^0.5,"") ->  | T179: 66.9166667 | U179: 154 | W179: 0.06680720127 | X179: 0.7395412601 | Y179: 0.775 | Z179: 0.8568179683 | AA179: 0.9927056937 | AB179: 0.9716569246 | AC179: 0.9950409416 | AD179: 0.9998743188 | AE179: 0.9948651573 | AF179: 0.8573904858
A180: 0.7395412601 | B180: 0.01195957341 | C180: 77.5 | D180: 0.009419507268 | F180: 0.004085234889 | O180: =IF(K180="","",AVERAGE(L$26:L180)) ->  | P180: =IFERROR(_xlfn.STDEV.S(L$26:L180)/J180^0.5,"") ->  | T180: 66.9166667 | U180: 155 | W180: 0.07123337741 | X180: 0.7513559478 | Y180: 0.78 | Z180: 0.8587334345 | AA180: 0.9932846252 | AB180: 0.9744331722 | AC180: 0.9953483294 | AD180: 0.9998804998 | AE180: 0.9953119253 | AF180: 0.8649655911
A181: 0.7513559478 | B181: 0.01181468773 | C181: 78 | D181: 0.009140245641 | F181: 0.003521806351 | O181: =IF(K181="","",AVERAGE(L$26:L181)) ->  | P181: =IFERROR(_xlfn.STDEV.S(L$26:L181)/J181^0.5,"") ->  | T181: 66.9166667 | U181: 156 | W181: 0.07588130017 | X181: 0.7630133097 | Y181: 0.785 | Z181: 0.8606193815 | AA181: 0.9938215848 | AB181: 0.9768977141 | AC181: 0.9956614145 | AD181: 0.9998866809 | AE181: 0.9957235703 | AF181: 0.8724797215
A182: 0.7630133097 | B182: 0.01165736194 | C182: 78.5 | D182: 0.008860090377 | F182: 0.003034143312 | O182: =IF(K182="","",AVERAGE(L$26:L182)) ->  | P182: =IFERROR(_xlfn.STDEV.S(L$26:L182)/J182^0.5,"") ->  | T182: 66.9166667 | U182: 157 | W182: 0.08075665923 | X182: 0.774500942 | Y182: 0.79 | Z182: 0.8624763154 | AA182: 0.9943198856 | AB182: 0.9791260514 | AC182: 0.9959722082 | AD182: 0.9998908016 | AE182: 0.9961042024 | AF182: 0.879962293
A183: 0.774500942 | B183: 0.01148763231 | C183: 79 | D183: 0.008579860275 | F183: 0.002613023047 | O183: =IF(K183="","",AVERAGE(L$26:L183)) ->  | P183: =IFERROR(_xlfn.STDEV.S(L$26:L183)/J183^0.5,"") ->  | T183: 66.9166667 | U183: 158 | W183: 0.08586490526 | X183: 0.7858065063 | Y183: 0.795 | Z183: 0.8643047332 | AA183: 0.9947825851 | AB183: 0.9811951615 | AC183: 0.9962734616 | AD183: 0.9998949223 | AE183: 0.9964565862 | AF183: 0.8873864221
A184: 0.7858065063 | B184: 0.01130556424 | C184: 79.5 | D184: 0.008300330415 | F184: 0.002250038105 | O184: =IF(K184="","",AVERAGE(L$26:L184)) ->  | P184: =IFERROR(_xlfn.STDEV.S(L$26:L184)/J184^0.5,"") ->  | T184: 66.9166667 | U184: 159 | W184: 0.09121121973 | X184: 0.79691776 | Y184: 0.8 | Z184: 0.8661051228 | AA184: 0.9952123956 | AB184: 0.9831653609 | AC184: 0.9965593793 | AD184: 0.9998980128 | AE184: 0.9967817934 | AF184: 0.8947425633
A185: 0.79691776 | B185: 0.01111125372 | C185: 80 | D185: 0.008022229703 | F185: 0.00193761852 | O185: =IF(K185="","",AVERAGE(L$26:L185)) ->  | P185: =IFERROR(_xlfn.STDEV.S(L$26:L185)/J185^0.5,"") ->  | T185: 66.9166667 | U185: 160 | W185: 0.09680048459 | X185: 0.8078225888 | Y185: 0.805 | Z185: 0.8678779632 | AA185: 0.9956117987 | AB185: 0.9850598483 | AC185: 0.9968261211 | AD185: 0.9999011033 | AE185: 0.9970795743 | AF185: 0.9020073396
A186: 0.8078225888 | B186: 0.01090482877 | C186: =C185+OFFSET(W$23,,B$11-1) -> 80.5 | D186: 0.007746239009 | F186: 0.001669017287 | I186: =IF(L186<>"",0,"") ->  | J186: =IF(B$9>J185,J185+1,"") ->  | K186: =IFERROR(( MOD(( MOD( MOD( 999999999999989, MOD( PM_Index*2499997 +$J186*1800451, 7450589 ) * 4658 + 7450581 ) * 383, 99991 ) * 7440893 + MOD( MOD( 999999999999989, MOD( PM_Index*2246527 +$J186*2399993, 7450987 ) * 7580 + 7560584 ) * 17669, 7440893 )) * 1343, 4294967296 ) + 0.5 ) / 4294967296,"") ->  | M186: =IF(L186="",NA(),L186) ->  | O186: =IF(K186="","",AVERAGE(L$26:L186)) ->  | P186: =IFERROR(_xlfn.STDEV.S(L$26:L186)/J186^0.5,"") ->  | T186: 66.9166667 | U186: 161 | W186: 0.1026372518 | X186: 0.8185090397 | Y186: 0.81 | Z186: 0.8696237248 | AA186: 0.9959829483 | AB186: 0.9868817872 | AC186: 0.9970720647 | AD186: 0.999905224 | AE186: 0.997348728 | AF186: 0.909142179
A187: 0.8185090397 | B187: 0.01068645091 | C187: 81 | D187: 0.00747298987 | F187: 0.001438271177 | O187: =IF(K187="","",AVERAGE(L$26:L187)) ->  | P187: =IFERROR(_xlfn.STDEV.S(L$26:L187)/J187^0.5,"") ->  | T187: 66.9166667 | U187: 162 | W187: 0.1087257132 | X187: 0.8289653564 | Y187: 0.815 | Z187: 0.8713428693 | AA187: 0.9963277714 | AB187: 0.98860355 | AC187: 0.9972977972 | AD187: 0.9999093447 | AE187: 0.9975879811 | AF187: 0.9160788988
A188: 0.8289653564 | B188: 0.01045631672 | C188: 81.5 | D188: 0.007203063724 | F188: 0.00124014628 | O188: =IF(K188="","",AVERAGE(L$26:L188)) ->  | P188: =IFERROR(_xlfn.STDEV.S(L$26:L188)/J188^0.5,"") ->  | T188: 66.9166667 | U188: 163 | W188: 0.1150696702 | X188: 0.8391800158 | Y188: 0.82 | Z188: 0.8730358501 | AA188: 0.9966479556 | AB188: 0.9901764195 | AC188: 0.9975058069 | AD188: 0.9999134654 | AE188: 0.9977968662 | AF188: 0.9227450304
A189: 0.8391800158 | B189: 0.0102146594 | C189: 82 | D189: 0.00693699164 | F189: 0.001070075325 | O189: =IF(K189="","",AVERAGE(L$26:L189)) ->  | P189: =IFERROR(_xlfn.STDEV.S(L$26:L189)/J189^0.5,"") ->  | T189: 66.9166667 | U189: 164 | W189: 0.1216725046 | X189: 0.8491417661 | Y189: 0.825 | Z189: 0.8747031122 | AA189: 0.9969450586 | AB189: 0.9915423991 | AC189: 0.997699901 | AD189: 0.9999175861 | AE189: 0.9979759232 | AF189: 0.9290550531
A190: 0.8491417661 | B190: 0.009961750318 | C190: 82.5 | D190: 0.006675254513 | F190: 0.0009240918684 | O190: =IF(K190="","",AVERAGE(L$26:L190)) ->  | P190: =IFERROR(_xlfn.STDEV.S(L$26:L190)/J190^0.5,"") ->  | T190: 66.9166667 | U190: 165 | W190: 0.1285371493 | X190: 0.8588396668 | Y190: 0.83 | Z190: 0.8763450927 | AA190: 0.9972204445 | AB190: 0.9926818754 | AC190: 0.997884474 | AD190: 0.9999217068 | AE190: 0.9981269011 | AF190: 0.9349692262
A191: 0.8588396668 | B191: 0.009697900687 | C191: 83 | D191: 0.006418283667 | F191: 0.0007987649183 | O191: =IF(K191="","",AVERAGE(L$26:L191)) ->  | P191: =IFERROR(_xlfn.STDEV.S(L$26:L191)/J191^0.5,"") ->  | T191: 66.9166667 | U191: 166 | W191: 0.1356660609 | X191: 0.86826313 | Y191: 0.835 | Z191: 0.8779622205 | AA191: 0.9974753663 | AB191: 0.9936237413 | AC191: 0.9980637485 | AD191: 0.999928918 | AE191: 0.9982524836 | AF191: 0.9404349515
A192: 0.86826313 | B192: 0.009423463204 | C192: 83.5 | D192: 0.006166461835 | F192: 0.000691136331 | O192: =IF(K192="","",AVERAGE(L$26:L192)) ->  | P192: =IFERROR(_xlfn.STDEV.S(L$26:L192)/J192^0.5,"") ->  | T192: 66.9166667 | U192: 167 | W192: 0.1430611922 | X192: 0.8774019638 | Y192: 0.84 | Z192: 0.879554917 | AA192: 0.9977109731 | AB192: 0.9944274696 | AC192: 0.9982411112 | AD192: 0.9999350991 | AE192: 0.9983560154 | AF192: 0.9454265144
A193: 0.8774019638 | B193: 0.009138833757 | C193: 84 | D193: 0.005920124461 | F193: 0.0005986624257 | O193: =IF(K193="","",AVERAGE(L$26:L193)) ->  | P193: =IFERROR(_xlfn.STDEV.S(L$26:L193)/J193^0.5,"") ->  | T193: 66.9166667 | U193: 168 | W193: 0.1507239666 | X193: 0.8862464169 | Y193: 0.845 | Z193: 0.8811235956 | AA193: 0.9979283938 | AB193: 0.9951360834 | AC193: 0.9984186104 | AD193: 0.9999412801 | AE193: 0.9984415585 | AF193: 0.949929499
A194: 0.8862464169 | B194: 0.008844453155 | C194: 84.5 | D194: 0.005679561288 | F194: 0.0005191605925 | O194: =IF(K194="","",AVERAGE(L$26:L194)) ->  | P194: =IFERROR(_xlfn.STDEV.S(L$26:L194)/J194^0.5,"") ->  | T194: 66.9166667 | U194: 169 | W194: 0.1586552539 | X194: 0.8947872258 | Y194: 0.85 | Z194: 0.8826686622 | AA194: 0.9981286951 | AB194: 0.9957637127 | AC194: 0.9985966804 | AD194: 0.9999454008 | AE194: 0.9985139485 | AF194: 0.9539598797
A195: 0.8947872258 | B195: 0.008540808901 | C195: 85 | D195: 0.005445018185 | F195: 0.0004507612036 | O195: =IF(K195="","",AVERAGE(L$26:L195)) ->  | P195: =IFERROR(_xlfn.STDEV.S(L$26:L195)/J195^0.5,"") ->  | T195: 66.9166667 | U195: 170 | W195: 0.1668553479 | X195: 0.9030156628 | Y195: 0.855 | Z195: 0.8841905156 | AA195: 0.9983129079 | AB195: 0.9963084596 | AC195: 0.9987741578 | AD195: 0.9999515818 | AE195: 0.9985786015 | AF195: 0.9575511634
A196: 0.9030156628 | B196: 0.008228437003 | C196: 85.5 | D196: 0.005216699167 | F196: 0.0003918648125 | O196: =IF(K196="","",AVERAGE(L$26:L196)) ->  | P196: =IFERROR(_xlfn.STDEV.S(L$26:L196)/J196^0.5,"") ->  | T196: 66.9166667 | U196: 171 | W196: 0.1753239449 | X196: 0.9109235866 | Y196: 0.86 | Z196: 0.8856895471 | AA196: 0.9984819964 | AB196: 0.9967806579 | AC196: 0.9989485598 | AD196: 0.9999577629 | AE196: 0.9986413202 | AF196: 0.9607555586
A197: 0.9109235866 | B197: 0.007907923809 | C197: 86 | D197: 0.004994768572 | F197: 0.0003411044229 | O197: =IF(K197="","",AVERAGE(L$26:L197)) ->  | P197: =IFERROR(_xlfn.STDEV.S(L$26:L197)/J197^0.5,"") ->  | T197: 66.9166667 | U197: 172 | W197: 0.1840601253 | X197: 0.9185034945 | Y197: 0.865 | Z197: 0.8871661408 | AA197: 0.9986368873 | AB197: 0.9972064588 | AC197: 0.999116538 | AD197: 0.9999649741 | AE197: 0.9987082299 | AF197: 0.9636244945
A198: 0.9185034945 | B198: 0.007579907901 | C198: 86.5 | D198: 0.004779353359 | F198: 0.0002973124813 | O198: =IF(K198="","",AVERAGE(L$26:L198)) ->  | P198: =IFERROR(_xlfn.STDEV.S(L$26:L198)/J198^0.5,"") ->  | T198: 66.9166667 | U198: 173 | W198: 0.1930623371 | X198: 0.9257485765 | Y198: 0.87 | Z198: 0.8886206739 | AA198: 0.9987784699 | AB198: 0.9976143336 | AC198: 0.9992744188 | AD198: 0.9999690948 | AE198: 0.9987857135 | AF198: 0.9662279073
A199: 0.9257485765 | B199: 0.007245082001 | C199: 87 | D199: 0.004570545482 | F199: 0.0002594921822 | O199: =IF(K199="","",AVERAGE(L$26:L199)) ->  | P199: =IFERROR(_xlfn.STDEV.S(L$26:L199)/J199^0.5,"") ->  | T199: 66.9166667 | U199: 174 | W199: 0.202328381 | X199: 0.9326527715 | Y199: 0.875 | Z199: 0.8900535169 | AA199: 0.9989076278 | AB199: 0.9980122961 | AC199: 0.9994187447 | AD199: 0.9999732155 | AE199: 0.9988786632 | AF199: 0.9686222912
A200: 0.9326527715 | B200: 0.006904194939 | C200: 87.5 | D200: 0.004368404317 | F200: 0.0002267926491 | O200: =IF(K200="","",AVERAGE(L$26:L200)) ->  | P200: =IFERROR(_xlfn.STDEV.S(L$26:L200)/J200^0.5,"") ->  | T200: 66.9166667 | U200: 175 | W200: 0.2118553986 | X200: 0.9392108251 | Y200: 0.88 | Z200: 0.8914650332 | AA200: 0.9990251995 | AB200: 0.9983849511 | AC200: 0.999546746 | AD200: 0.999976306 | AE200: 0.9989887313 | AF200: 0.9708619977
A201: 0.9392108251 | B201: 0.006558053639 | C201: 88 | D201: 0.004172959112 | F201: 0.0001984875571 | O201: =IF(K201="","",AVERAGE(L$26:L201)) ->  | P201: =IFERROR(_xlfn.STDEV.S(L$26:L201)/J201^0.5,"") ->  | T201: 66.9166667 | U201: 176 | W201: 0.2216398635 | X201: 0.9454183503 | Y201: 0.885 | Z201: 0.89285558 | AA201: 0.9991320151 | AB201: 0.9987061471 | AC201: 0.9996566775 | AD201: 0.9999793965 | AE201: 0.9991145797 | AF201: 0.9729737153
A202: 0.9454183503 | B202: 0.006207525159 | C202: 88.5 | D202: 0.003984211424 | F202: 0.0001739567818 | O202: =IF(K202="","",AVERAGE(L$26:L202)) ->  | P202: =IFERROR(_xlfn.STDEV.S(L$26:L202)/J202^0.5,"") ->  | T202: 66.9166667 | U202: 177 | W202: 0.2316775746 | X202: 0.951271889 | Y202: 0.89 | Z202: 0.8942255077 | AA202: 0.9992288759 | AB202: 0.9989613325 | AC202: 0.9997479494 | AD202: 0.9999804267 | AE202: 0.9992521305 | AF202: 0.9749691327
A203: 0.951271889 | B203: 0.005853538758 | C203: 89 | D203: 0.003802137534 | F203: 0.0001526706895 | O203: =IF(K203="","",AVERAGE(L$26:L203)) ->  | P203: =IFERROR(_xlfn.STDEV.S(L$26:L203)/J203^0.5,"") ->  | T203: 66.9166667 | U203: 178 | W203: 0.2419636522 | X203: 0.956768977 | Y203: 0.895 | Z203: 0.8955751603 | AA203: 0.9993165599 | AB203: 0.9991551468 | AC203: 0.9998210806 | AD203: 0.9999814569 | AE203: 0.9993947185 | AF203: 0.9768521459
A204: 0.956768977 | B204: 0.005497088011 | C204: 89.5 | D204: 0.003626690807 | F204: 0.0001341767171 | O204: =IF(K204="","",AVERAGE(L$26:L204)) ->  | P204: =IFERROR(_xlfn.STDEV.S(L$26:L204)/J204^0.5,"") ->  | T204: 66.9166667 | U204: 179 | W204: 0.2524925375 | X204: 0.96190821 | Y204: 0.9 | Z204: 0.8969048759 | AA204: 0.9993957947 | AB204: 0.9993048836 | AC204: 0.9998775212 | AD204: 0.9999814569 | AE204: 0.9995332445 | AF204: 0.9786219757
... 21 more rows

Sheet PopMean Ws
B1: Worksheet: Computing 90% Confidence Intervals with Small Samples
B2: The "t-stat" is used for small samples. Note that two excel formulas are introduced here that give the same answers as the steps in the book: VAR() and TINV(). This will slightly simplify the calculation. You can use this spreadsheet to compute ranges for larger samples, too. Just add however many rows you need and don't forget to change the references in the cells to capture all the new rows. See how close the answers would be if you just used the "Mathless" table. This sheet will also calculate an estimate of the underlying distribution using a t-distribution. One will notice from the previous example that this may or ay not be a good assumption.
B3: 90% Confidence Interval Calculations (by steps described in book)
B4: Average of Sample Values (step 1.a in book) | D4: =AVERAGE(C18:C117) -> 27.10356937
B5: Population Variance | D5: =VAR(C18:C117) -> 57.07136857
B6: SD of the estimate of the mean | D6: =SQRT(D5/COUNT(C18:C117)) -> 1.689250848
B7: t-stat using Excel's "Tinv()" formula (same answer as step 3 in book) | D7: =TINV(0.1,COUNT(C18:C117)-1) -> 1.729132812
B8: Sample error (step 4 in book) | D8: =D7*D6 -> 2.920939069
B9: SD | D9: =_xlfn.STDEV.S(C18:C117) -> 7.554559456
B10: Sample size | D10: =COUNT(C18:C1001) -> 20
B12: Computing bounds for 90% CI (step 5 in book)
B13: Upper bound | D13: =D4+D8 -> 30.02450844
B14: Lower bound | D14: =D4-D8 -> 24.1826303
B16: Data | D16: Chart Data | F16: Std Error for Estimate of Mean (Normalized) | G16: cpf for Sample | H16: Incremental P | I16: Sample | J16: Error of the mean | K16: Confidence Interval Bars | M16: Estimate of Distribution | N16: Estimate of Distribution | O16: Error of the Mean
B17: Data Point | C17: Sample Value | D17: Min | E17: =MIN(C18:C117) -> 14 | F17: -4.2 | G17: =NORMDIST(F17+0.05,0,1,1) -> 1.662376373e-05 | K17: =D14 -> 24.1826303 | L17: 0 | M17: =E17-(E19*100) -> -3.1875
A18: 0 | B18: 1 | C18: 19.60341451 | D18: Max | E18: =MAX(C18:C117) -> 41.5 | F18: -4.1 | G18: =NORMDIST(F18+0.05,0,1,1) -> 2.560881647e-05 | H18: =(G18-G17) -> 8.985052744e-06 | I18: =D$4+F18*D$6 -> 20.17764089 | K18: =D14 -> 24.1826303 | L18: =_xlfn.T.DIST(((K18+2*E19)-D$4)/D$6,D$10-1,1)-_xlfn.T.DIST((K18-D$4)/D$6,D$10-1,1) -> 0.02178687124 | M18: =M17+$E$19 -> -3.015625 | N18: =_xlfn.T.DIST((M19-D$4)/D$9,D$10-1,1)-_xlfn.T.DIST((M17-D$4)/D$9,D$10-1,1) -> 4.104815415e-05 | O18: =_xlfn.T.DIST((M19-D$4)/D$6,D$10-1,1)-_xlfn.T.DIST((M17-D$4)/D$6,D$10-1,1) -> 2.612624929e-14
A19: 0 | B19: 2 | C19: 14 | D19: Increment | E19: =(E18-E17)/160 -> 0.171875 | F19: -4 | G19: =NORMDIST(F19+0.05,0,1,1) -> 3.90755966e-05 | H19: =(G19-G18) -> 1.346678012e-05 | I19: 20.34656597 | J19: =_xlfn.T.DIST((I19-D$4)/D$6,D$10-1,1)-_xlfn.T.DIST((I18-D$4)/D$6,D$10-1,1) -> 7.822297032e-05 | K19: =D13 -> 30.02450844 | L19: 0 | M19: -2.84375 | N19: =_xlfn.T.DIST((M20-D$4)/D$9,D$10-1,1)-_xlfn.T.DIST((M18-D$4)/D$9,D$10-1,1) -> 4.323798252e-05 | O19: =_xlfn.T.DIST((M20-D$4)/D$6,D$10-1,1)-_xlfn.T.DIST((M18-D$4)/D$6,D$10-1,1) -> 2.910552513e-14
A20: 0 | B20: 3 | C20: 29.77796994 | F20: -3.9 | G20: =NORMDIST(F20+0.05,0,1,1) -> 5.905891242e-05 | H20: =(G20-G19) -> 1.998331582e-05 | I20: 20.51549106 | J20: 9.830871461e-05 | K20: =D13 -> 30.02450844 | L20: =L18 -> 0.02178687124 | M20: -2.671875 | N20: 4.554334619e-05 | O20: 3.244240022e-14
A21: 0 | B21: 4 | C21: 19 | F21: -3.8 | G21: 8.84172852e-05 | H21: =(G21-G20) -> 2.935837278e-05 | I21: 20.68441614 | J21: 0.0001234813702 | M21: -2.5 | N21: 4.797018242e-05 | O21: 3.618194861e-14
A22: 0 | B22: 5 | C22: 22.47266207 | F22: -3.7 | G22: 0.0001311201544 | H22: =(G22-G21) -> 4.270286922e-05 | I22: 20.85334123 | J22: =_xlfn.T.DIST((I22-D$4)/D$6,D$10-1,1)-_xlfn.T.DIST((I21-D$4)/D$6,D$10-1,1) -> 0.0001549857457 | M22: -2.328125 | N22: 5.052471882e-05 | O22: 4.037519788e-14
A23: 0 | B23: 6 | C23: 36 | F23: -3.6 | G23: =NORMDIST(F23+0.05,0,1,1) -> 0.0001926155756 | H23: 6.149542122e-05 | I23: 21.02226631 | J23: 0.0001943514317 | M23: -2.15625 | N23: 5.32134863e-05 | O23: 4.507995168e-14
A24: 0 | B24: 7 | C24: 26.24873078 | F24: -3.5 | G24: 0.0002802932768 | H24: 8.767770118e-05 | I24: =D$4+F24*D$6 -> 21.1911914 | J24: 0.0002434499141 | M24: -1.984375 | N24: 5.604333247e-05 | O24: 5.036173067e-14
A25: 0 | B25: 8 | C25: 32.49631261 | F25: -3.4 | G25: =NORMDIST(F25+0.05,0,1,1) -> 0.0004040578019 | H25: 0.000123764525 | I25: 21.36011648 | J25: 0.0003045600619 | M25: -1.8125 | N25: 5.902143563e-05 | O25: 5.629485005e-14
A26: 0 | B26: 9 | C26: 17 | F26: -3.3 | G26: 0.0005770250424 | H26: 0.0001729672405 | I26: 21.52904157 | J26: 0.0003804420315 | M26: -1.640625 | N26: 6.215531913e-05 | O26: 6.296365408e-14
A27: 0 | B27: 10 | C27: 35 | F27: -3.2 | G27: 0.0008163523128 | H27: 0.0002393272704 | I27: 21.69796665 | J27: 0.0004744190759 | M27: -1.46875 | N27: 6.545286631e-05 | O27: 7.046393153e-14
A28: 0 | B28: 11 | C28: 26.44677252 | F28: -3.1 | G28: 0.001144206831 | H28: 0.0003278545182 | I28: 21.86689174 | J28: 0.0005904659598 | M28: -1.296875 | N28: 6.892233597e-05 | O28: 7.890453964e-14
A29: 0 | B29: 12 | C29: 39 | F29: -3 | G29: 0.001588869647 | H29: =(G29-G28) -> 0.0004446628163 | I29: 22.03581682 | J29: 0.000733301618 | M29: -1.125 | N29: 7.257237831e-05 | O29: 8.840926864e-14
A30: 0 | B30: 13 | C30: 41.5 | F30: -2.9 | G30: 0.002185961455 | H30: 0.0005970918075 | I30: 22.20474191 | J30: 0.0009084823083 | M30: -0.953125 | N30: 7.641205142e-05 | O30: 9.911898403e-14
A31: 0 | B31: 14 | C31: 22.85143994 | F31: -2.8 | G31: 0.002979763235 | H31: 0.0007938017801 | I31: 22.37366699 | J31: 0.00112248979 | M31: -0.78125 | N31: 8.045083832e-05 | O31: 1.111940895e-13
A32: 0 | B32: 15 | C32: 30.26941439 | F32: -2.7 | G32: 0.004024588543 | H32: 0.001044825308 | I32: 22.54259208 | J32: 0.001382806994 | M32: -0.609375 | N32: 8.469866448e-05 | O32: 1.248173609e-13
A33: 0 | B33: 16 | C33: 34 | F33: -2.6 | G33: 0.005386145954 | H33: 0.001361557411 | I33: 22.71151716 | J33: 0.001697971311 | M33: -0.4375 | N33: 8.916591597e-05 | O33: 1.401972091e-13
A34: 0 | B34: 17 | C34: 23.50836979 | F34: -2.5 | G34: 0.007142810735 | H34: 0.001756664781 | I34: 22.88044225 | J34: 0.002077593089 | M34: -0.265625 | N34: 9.386345808e-05 | O34: 1.575714395e-13
A35: 0 | B35: 18 | C35: 22.52725565 | F35: -2.4 | G35: 0.009386705535 | H35: 0.0022438948 | I35: 23.04936733 | J35: 0.002532324436 | M35: -0.09375 | N35: 9.880265447e-05 | O35: 1.772115872e-13
A36: 0 | B36: 19 | C36: 21.82083612 | F36: -2.3 | G36: 0.01222447266 | H36: 0.00283776712 | I36: 23.21829242 | J36: 0.003073761211 | M36: 0.078125 | N36: 0.0001039953869 | O36: 1.994279196e-13
A37: 0 | B37: 20 | C37: 28.548209 | F37: -2.2 | G37: 0.01577760739 | H37: 0.003553134736 | I37: 23.3872175 | J37: 0.003714259591 | M37: 0.25 | N37: 0.0001094540757 | O37: 2.245752129e-13
A38: 0 | B38: 21 | F38: -2.1 | G38: 0.02018221541 | H38: 0.004404608015 | I38: 23.55614258 | J38: 0.004466648299 | M38: 0.421875 | N38: 0.0001151917001 | O38: 2.530594282e-13
A39: 0 | B39: 22 | F39: -2 | G39: 0.02558805952 | H39: 0.005405844116 | I39: 23.72506767 | J39: 0.005343819071 | M39: 0.59375 | N39: 0.0001212218199 | O39: 2.853454329e-13
A40: 0 | B40: 23 | F40: -1.9 | G40: 0.0321567748 | H40: 0.006568715274 | I40: 23.89399275 | J40: 0.006358181849 | M40: 0.765625 | N40: 0.0001275585973 | O40: 3.219659365e-13
A41: 0 | B41: 24 | F41: -1.8 | G41: 0.04005915686 | H41: 0.007902382068 | I41: 24.06291784 | J41: 0.007520978011 | M41: 0.9375 | N41: 0.0001342168191 | O41: 3.635318429e-13
A42: 0 | B42: 25 | F42: -1.7 | G42: 0.04947146803 | H42: 0.00941231117 | I42: 24.23184292 | J42: 0.00884145524 | M42: 1.109375 | N42: 0.0001412119196 | O42: 4.107442496e-13
A43: 0 | B43: 26 | F43: -1.6 | G43: 0.060570758 | H43: 0.01109928997 | I43: 24.40076801 | J43: 0.0103259213 | M43: 1.28125 | N43: 0.0001485600037 | O43: 4.644083692e-13
A44: 0 | B44: 27 | F44: -1.5 | G44: 0.07352925961 | H44: 0.01295850161 | I44: 24.56969309 | J44: 0.01197671078 | M44: 1.453125 | N44: 0.0001562778709 | O44: 5.254496932e-13
A45: 0 | B45: 28 | F45: -1.4 | G45: 0.08850799144 | H45: 0.01497873183 | I45: 24.73861818 | J45: 0.01379111779 | M45: 1.625 | N45: 0.0001643830395 | O45: 5.949327739e-13
A46: 0 | B46: 29 | F46: -1.3 | G46: 0.1056497737 | H46: 0.01714178223 | I46: 24.90754326 | J46: 0.01576036698 | M46: 1.796875 | N46: 0.0001728937706 | O46: 6.74083067e-13
A47: 0 | B47: 30 | F47: -1.2 | G47: 0.1250719356 | H47: 0.01942216197 | I47: 25.07646835 | J47: 0.01786871251 | M47: 1.96875 | N47: 0.0001818290938 | O47: 7.64312354e-13
A48: 0 | B48: 31 | F48: -1.1 | G48: 0.1468590564 | H48: 0.02178712074 | I48: 25.24539343 | J48: 0.02009276744 | M48: 2.140625 | N48: 0.000191208832 | O48: 8.672483549e-13
A49: 0 | B49: 32 | F49: -1 | G49: 0.1710561263 | H49: 0.02419706993 | I49: 25.41431852 | J49: 0.02240117036 | M49: 2.3125 | N49: 0.0002010536268 | O49: 9.84769252e-13
A50: 0 | B50: 33 | F50: -0.9 | G50: 0.1976625431 | H50: 0.02660641681 | I50: =D$4+F50*D$6 -> 25.5832436 | J50: 0.02475468974 | M50: 2.484375 | N50: 0.000211384965 | O50: 1.119043972e-12
A51: 0 | B51: 34 | F51: -0.8 | G51: 0.2266273524 | H51: 0.02896480925 | I51: 25.75216869 | J51: =_xlfn.T.DIST((I51-D$4)/D$6,D$10-1,1)-_xlfn.T.DIST((I50-D$4)/D$6,D$10-1,1) -> 0.02710684712 | M51: 2.65625 | N51: 0.0002222252035 | O51: 1.272579226e-12
A52: 0 | B52: 35 | F52: -0.7 | G52: 0.2578461108 | H52: 0.03121875843 | I52: 25.92109377 | J52: 0.02940510679 | M52: 2.828125 | N52: 0.0002335975966 | O52: 1.448274492e-12
A53: 0 | B53: 36 | F53: -0.6 | G53: 0.2911596868 | H53: 0.03331357598 | I53: 26.09001886 | J53: 0.03159263386 | M53: 3 | N53: 0.0002455263214 | O53: 1.649486327e-12
A54: 0 | B54: 37 | F54: -0.5 | G54: 0.3263552203 | H54: 0.0351955335 | I54: 26.25894394 | J54: 0.03361056767 | M54: 3.171875 | N54: 0.0002580365043 | O54: 1.880103674e-12
A55: 0 | B55: 38 | F55: -0.4 | G55: 0.3631693488 | H55: 0.03681412854 | I55: 26.42786903 | J55: 0.03540069904 | M55: 3.34375 | N55: 0.0002711542472 | O55: 2.1446361e-12
A56: 0 | B56: 39 | F56: -0.3 | G56: 0.4012936743 | H56: 0.03812432549 | I56: 26.59679411 | J56: 0.03690838548 | M56: 3.515625 | N56: 0.0002849066538 | O56: 2.448317295e-12
A57: 0 | B57: 40 | F57: -0.2 | G57: 0.4403823076 | H57: 0.03908863331 | I57: 26.7657192 | J57: 0.03808549544 | M57: 3.6875 | N57: 0.0002993218548 | O57: 2.797226571e-12
A58: 0 | B58: 41 | F58: -0.1 | G58: 0.4800611942 | H58: 0.03967888653 | I58: 26.93464428 | J58: 0.03889314927 | M58: 3.859375 | N58: 0.0003144290343 | O58: 3.198431618e-12
A59: 0 | B59: 42 | F59: 0 | G59: 0.5199388058 | H59: 0.03987761168 | I59: 27.10356937 | J59: 0.03930402512 | M59: 4.03125 | N59: 0.0003302584543 | O59: 3.660156401e-12
A60: 0 | B60: 43 | F60: 0.1 | G60: 0.5596176924 | H60: 0.03967888653 | I60: 27.27249445 | J60: 0.03930402512 | M60: 4.203125 | N60: 0.0003468414796 | O60: 4.191978793e-12
A61: 0 | B61: 44 | F61: 0.2 | G61: 0.5987063257 | H61: 0.03908863331 | I61: 27.44141954 | J61: 0.03889314927 | M61: 4.375 | N61: 0.0003642106019 | O61: 4.80506343e-12
A62: 0 | B62: 45 | F62: 0.3 | G62: 0.6368306512 | H62: 0.03812432549 | I62: 27.61034462 | J62: 0.03808549544 | M62: 4.546875 | N62: 0.0003823994631 | O62: 5.512436332e-12
A63: 0 | B63: 46 | F63: 0.4 | G63: 0.6736447797 | H63: 0.03681412854 | I63: 27.77926971 | J63: 0.03690838548 | M63: 4.71875 | N63: 0.0004014428779 | O63: 6.329309066e-12
A64: 0 | B64: 47 | F64: 0.5 | G64: 0.7088403132 | H64: 0.0351955335 | I64: 27.94819479 | J64: 0.03540069904 | M64: 4.890625 | N64: 0.0004213768548 | O64: 7.273461782e-12
A65: 0 | B65: 48 | F65: 0.6 | G65: 0.7421538892 | H65: 0.03331357598 | I65: 28.11711988 | J65: 0.03361056767 | M65: 5.0625 | N65: 0.0004422386171 | O65: 8.365696213e-12
A66: 0 | B66: 49 | F66: 0.7 | G66: 0.7733726476 | H66: 0.03121875843 | I66: 28.28604496 | J66: 0.03159263386 | M66: 5.234375 | N66: 0.0004640666217 | O66: 9.630371971e-12
A67: 0 | B67: 50 | F67: 0.8 | G67: 0.8023374569 | H67: 0.02896480925 | I67: 28.45497005 | J67: 0.02940510679 | M67: 5.40625 | N67: 0.0004869005765 | O67: 1.109604205e-11
A68: 0 | B68: 51 | F68: 0.9 | G68: 0.8289438737 | H68: 0.02660641681 | I68: 28.62389513 | J68: 0.02710684712 | M68: 5.578125 | N68: 0.000510781457 | O68: 1.279620665e-11
A69: 0 | B69: 52 | F69: 1 | G69: 0.8531409436 | H69: 0.02419706993 | I69: 28.79282021 | J69: 0.02475468974 | M69: 5.75 | N69: 0.0005357515199 | O69: 1.47702082e-11
A70: 0 | B70: 53 | F70: 1.1 | G70: 0.8749280644 | H70: 0.02178712074 | I70: 28.9617453 | J70: 0.02240117036 | M70: 5.921875 | N70: 0.0005618543161 | O70: 1.70642952e-11
A71: 0 | B71: 54 | F71: 1.2 | G71: 0.8943502263 | H71: 0.01942216197 | I71: 29.13067038 | J71: 0.02009276744 | M71: 6.09375 | N71: 0.0005891347002 | O71: 1.973288778e-11
A72: 0 | B72: 55 | F72: 1.3 | G72: 0.9114920086 | H72: 0.01714178223 | I72: 29.29959547 | J72: 0.01786871251 | M72: 6.265625 | N72: 0.0006176388386 | O72: 2.284008507e-11
A73: 0 | B73: 56 | F73: 1.4 | G73: 0.9264707404 | H73: 0.01497873183 | I73: 29.46852055 | J73: 0.01576036698 | M73: 6.4375 | N73: 0.0006474142148 | O73: 2.646146214e-11
A74: 0 | B74: 57 | F74: 1.5 | G74: 0.939429242 | H74: 0.01295850161 | I74: 29.63744564 | J74: 0.01379111779 | M74: 6.609375 | N74: 0.0006785096317 | O74: 3.068621452e-11
A75: 0 | B75: 58 | F75: 1.6 | G75: 0.950528532 | H75: 0.01109928997 | I75: 29.80637072 | J75: 0.01197671078 | M75: 6.78125 | N75: 0.0007109752108 | O75: 3.561972013e-11
A76: 0 | B76: 59 | F76: 1.7 | G76: 0.9599408431 | H76: 0.00941231117 | I76: 29.97529581 | J76: 0.0103259213 | M76: 6.953125 | N76: 0.0007448623887 | O76: 4.138660316e-11
A77: 0 | B77: 60 | F77: 1.8 | G77: 0.9678432252 | H77: 0.007902382068 | I77: 30.14422089 | J77: 0.00884145524 | M77: 7.125 | N77: 0.0007802239098 | O77: 4.813440201e-11
A78: 0 | B78: 61 | F78: 1.9 | G78: 0.9744119405 | H78: 0.006568715274 | I78: 30.31314598 | J78: 0.007520978011 | M78: 7.296875 | N78: 0.000817113815 | O78: 5.603796523e-11
A79: 0 | B79: 62 | F79: 2 | G79: 0.9798177846 | H79: 0.005405844116 | I79: 30.48207106 | J79: 0.006358181849 | M79: 7.46875 | N79: 0.0008555874266 | O79: 6.530472542e-11
A80: 0 | B80: 63 | F80: 2.1 | G80: 0.9842223926 | H80: 0.004404608015 | I80: 30.65099615 | J80: 0.005343819071 | M80: 7.640625 | N80: 0.0008957013294 | O80: 7.618103357e-11
A81: 0 | B81: 64 | F81: 2.2 | G81: 0.9877755273 | H81: 0.003553134736 | I81: 30.81992123 | J81: 0.004466648299 | M81: 7.8125 | N81: 0.0009375133466 | O81: 8.895977509e-11
A82: 0 | B82: 65 | F82: 2.3 | G82: =NORMDIST(F82+0.05,0,1,1) -> 0.9906132945 | H82: 0.00283776712 | I82: =D$4+F82*D$6 -> 30.98884632 | J82: 0.003714259591 | M82: =M81+$E$19 -> 7.984375 | N82: 0.0009810825112 | O82: 1.039895371e-10
A83: 0 | B83: 66 | F83: 2.4 | G83: 0.9928571893 | H83: =(G83-G82) -> 0.0022438948 | I83: 31.1577714 | J83: =_xlfn.T.DIST((I83-D$4)/D$6,D$10-1,1)-_xlfn.T.DIST((I82-D$4)/D$6,D$10-1,1) -> 0.003073761211 | M83: 8.15625 | N83: =_xlfn.T.DIST((M84-D$4)/D$9,D$10-1,1)-_xlfn.T.DIST((M82-D$4)/D$9,D$10-1,1) -> 0.001026469032 | O83: =_xlfn.T.DIST((M84-D$4)/D$6,D$10-1,1)-_xlfn.T.DIST((M82-D$4)/D$6,D$10-1,1) -> 1.216856554e-10
A84: 0 | B84: 67 | F84: 2.5 | G84: 0.994613854 | H84: 0.001756664781 | I84: 31.32669649 | J84: 0.002532324436 | M84: 8.328125 | N84: 0.001073734256 | O84: 1.425435405e-10
A85: 0 | B85: 68 | F85: 2.6 | G85: 0.9959754115 | H85: 0.001361557411 | I85: 31.49562157 | J85: 0.002077593089 | M85: 8.5 | N85: 0.001122940622 | O85: 1.671547725e-10
A86: 0 | B86: 69 | F86: 2.7 | G86: 0.9970202368 | H86: 0.001044825308 | I86: 31.66454666 | J86: 0.001697971311 | M86: 8.671875 | N86: 0.001174151611 | O86: 1.962265602e-10
A87: 0 | B87: 70 | F87: 2.8 | G87: 0.9978140385 | H87: 0.0007938017801 | I87: 31.83347174 | J87: 0.001382806994 | M87: 8.84375 | N87: 0.001227431689 | O87: 2.306052965e-10
A88: 0 | B88: 71 | F88: 2.9 | G88: 0.9984111304 | H88: 0.0005970918075 | I88: 32.00239683 | J88: 0.00112248979 | M88: 9.015625 | N88: 0.001282846245 | O88: 2.713051028e-10
A89: 0 | B89: 72 | F89: 3 | G89: 0.9988557932 | H89: 0.0004446628163 | I89: 32.17132191 | J89: 0.0009084823083 | M89: 9.1875 | N89: 0.001340461519 | O89: 3.195424608e-10
A90: 0 | B90: 73 | F90: 3.1 | G90: 0.9991836477 | H90: 0.0003278545182 | I90: 32.340247 | J90: 0.000733301618 | M90: 9.359375 | N90: 0.001400344528 | O90: 3.767782775e-10
A91: 0 | B91: 74 | F91: 3.2 | G91: 0.999422975 | H91: 0.0002393272704 | I91: 32.50917208 | J91: 0.0005904659598 | M91: 9.53125 | N91: 0.00146256298 | O91: 4.447690386e-10
A92: 0 | B92: 75 | F92: 3.3 | G92: 0.9995959422 | H92: 0.0001729672405 | I92: 32.67809717 | J92: 0.0004744190759 | M92: 9.703125 | N92: 0.00152718518 | O92: 5.256290864e-10
A93: 0 | B93: 76 | F93: 3.4 | G93: 0.9997197067 | H93: 0.000123764525 | I93: 32.84702225 | J93: 0.0003804420315 | M93: 9.875 | N93: 0.001594279938 | O93: 6.21906531e-10
A94: 0 | B94: 77 | F94: 3.5 | G94: 0.9998073844 | H94: 8.767770118e-05 | I94: 33.01594734 | J94: 0.0003045600619 | M94: 10.046875 | N94: 0.001663916452 | O94: 7.366758884e-10
A95: 0 | B95: 78 | F95: 3.6 | G95: 0.9998688798 | H95: 6.149542122e-05 | I95: 33.18487242 | J95: 0.0002434499141 | M95: 10.21875 | N95: 0.0017361642 | O95: 8.736512646e-10
A96: 0 | B96: 79 | F96: 3.7 | G96: 0.9999115827 | H96: 4.270286922e-05 | I96: 33.35379751 | J96: 0.0001943514317 | M96: 10.390625 | N96: 0.001811092813 | O96: 1.037324808e-09
A97: 0 | B97: 80 | F97: 3.8 | G97: 0.9999409411 | H97: 2.935837278e-05 | I97: 33.52272259 | J97: 0.0001549857457 | M97: 10.5625 | N97: 0.001888771941 | O97: 1.233136272e-09
A98: 0 | B98: 81 | F98: 3.9 | G98: 0.9999609244 | H98: 1.998331582e-05 | I98: 33.69164767 | J98: 0.0001234813702 | M98: 10.734375 | N98: 0.001969271115 | O98: 1.46768093e-09
A99: 0 | B99: 82 | F99: 4 | G99: 0.9999743912 | H99: 1.346678012e-05 | I99: 33.86057276 | J99: 9.830871461e-05 | M99: 10.90625 | N99: 0.002052659594 | O99: 1.748964814e-09
A100: 0 | B100: 83 | F100: 4.1 | G100: 0.9999833762 | H100: 8.985052744e-06 | I100: 34.02949784 | J100: 7.822297032e-05 | M100: 11.078125 | N100: 0.002139006205 | O100: 2.086718444e-09
A101: 0 | B101: 84 | F101: 4.2 | G101: 0.9999893115 | H101: 5.935237955e-06 | I101: 34.19842293 | J101: 6.221496225e-05 | M101: 11.25 | N101: 0.002228379178 | O101: 2.492782887e-09
A102: 0 | B102: 85 | J102: -0.9997573418 | M102: 11.421875 | N102: 0.002320845968 | O102: 2.981585421e-09
A103: 0 | B103: 86 | M103: 11.59375 | N103: 0.002416473064 | O103: 3.570726289e-09
A104: 0 | B104: 87 | M104: 11.765625 | N104: 0.002515325798 | O104: 4.28170337e-09
A105: 0 | B105: 88 | M105: 11.9375 | N105: 0.002617468137 | O105: 5.140808241e-09
A106: 0 | B106: 89 | M106: 12.109375 | N106: 0.002722962473 | O106: 6.180235521e-09
A107: 0 | B107: 90 | M107: 12.28125 | N107: 0.002831869394 | O107: 7.439457875e-09
A108: 0 | B108: 91 | M108: 12.453125 | N108: 0.002944247459 | O108: 8.96693234e-09
A109: 0 | B109: 92 | M109: 12.625 | N109: 0.003060152954 | O109: 1.082222032e-08
A110: 0 | B110: 93 | M110: 12.796875 | N110: 0.003179639648 | O110: 1.307862459e-08
A111: 0 | B111: 94 | M111: 12.96875 | N111: 0.003302758532 | O111: 1.582647335e-08
A112: 0 | B112: 95 | M112: 13.140625 | N112: 0.003429557562 | O112: 1.917721455e-08
A113: 0 | B113: 96 | M113: 13.3125 | N113: 0.003560081383 | O113: 2.326852666e-08
A114: 0 | B114: 97 | M114: 13.484375 | N114: 0.003694371058 | O114: 2.827070503e-08
A115: 0 | B115: 98 | M115: 13.65625 | N115: 0.003832463783 | O115: 3.439465132e-08
A116: 0 | B116: 99 | M116: 13.828125 | N116: 0.003974392602 | O116: 4.190187936e-08
A117: 0 | B117: 100 | M117: 14 | N117: 0.004120186113 | O117: 5.111705979e-08
M118: 14.171875 | N118: 0.004269868174 | O118: 6.244376416e-08
M119: 14.34375 | N119: 0.004423457606 | O119: 7.638424493e-08
M120: 14.515625 | N120: 0.004580967891 | O120: 9.356431084e-08
M121: 14.6875 | N121: 0.004742406873 | O121: 1.147646403e-07
M122: 14.859375 | N122: 0.004907776459 | O122: 1.409602361e-07
M123: 15.03125 | N123: 0.005077072315 | O123: 1.733701829e-07
M124: 15.203125 | N124: 0.005250283574 | O124: 2.135204503e-07
M125: 15.375 | N125: 0.00542739254 | O125: 2.633232283e-07
M126: 15.546875 | N126: 0.005608374402 | O126: 3.251772204e-07
M127: 15.71875 | N127: 0.00579319695 | O127: 4.020945213e-07
M128: 15.890625 | N128: 0.005981820302 | O128: 4.978612288e-07
M129: 16.0625 | N129: 0.006174196639 | O129: 6.17240876e-07
M130: 16.234375 | N130: 0.00637026995 | O130: 7.662322285e-07
M131: 16.40625 | N131: 0.006569975791 | O131: 9.52396116e-07
M132: 16.578125 | N132: 0.006773241056 | O132: 1.185269921e-06
M133: 16.75 | N133: 0.006979983762 | O133: 1.476893365e-06
M134: 16.921875 | N134: 0.007190112853 | O134: 1.842475567e-06
M135: 17.09375 | N135: 0.007403528024 | O135: 2.301241359e-06
M136: 17.265625 | N136: 0.007620119559 | O136: 2.877504924e-06
M137: 17.4375 | N137: 0.0078397682 | O137: 3.602031503e-06
M138: 17.609375 | N138: 0.008062345025 | O138: 4.513763811e-06
M139: 17.78125 | N139: 0.008287711366 | O139: 5.662009673e-06
M140: 17.953125 | N140: 0.008515718745 | O140: 7.109212129e-06
M141: 18.125 | N141: 0.008746208835 | O141: 8.934453915e-06
M142: 18.296875 | N142: 0.008979013458 | O142: 1.12378861e-05
M143: 18.46875 | N143: 0.009213954603 | O143: 1.414631709e-05
M144: 18.640625 | N144: 0.00945084449 | O144: 1.78202547e-05
M145: 18.8125 | N145: 0.009689485648 | O145: 2.246276273e-05
M146: =M145+$E$19 -> 18.984375 | N146: 0.009929671044 | O146: 2.833057495e-05
M147: 19.15625 | N147: =_xlfn.T.DIST((M148-D$4)/D$9,D$10-1,1)-_xlfn.T.DIST((M146-D$4)/D$9,D$10-1,1) -> 0.01017118423 | O147: =_xlfn.T.DIST((M148-D$4)/D$6,D$10-1,1)-_xlfn.T.DIST((M146-D$4)/D$6,D$10-1,1) -> 3.574800725e-05
M148: 19.328125 | N148: 0.01041379956 | O148: 4.512432173e-05
M149: 19.5 | N149: 0.01065728236 | O149: 5.697532789e-05
M150: 19.671875 | N150: 0.01090138927 | O150: 7.195015316e-05
M151: 19.84375 | N151: 0.01114586848 | O151: 9.086427734e-05
M152: 20.015625 | N152: 0.0113904601 | O152: 0.0001147400972
M153: 20.1875 | N153: 0.01163489652 | O153: 0.00014485646
M154: 20.359375 | N154: 0.01187890283 | O154: 0.0001828087657
M155: 20.53125 | N155: 0.01212219727 | O155: 0.0002305813637
M156: 20.703125 | N156: 0.01236449171 | O156: 0.0002906340349
M157: 20.875 | N157: 0.01260549217 | O157: 0.0003660043115
M158: 21.046875 | N158: 0.01284489938 | O158: 0.0004604271895
M159: 21.21875 | N159: 0.01308240935 | O159: 0.0005784733721
M160: 21.390625 | N160: 0.01331771402 | O160: 0.0007257064492
M161: 21.5625 | N161: 0.01355050188 | O161: 0.0009088582876
M162: 21.734375 | N162: 0.01378045868 | O162: 0.001136020254
M163: 21.90625 | N163: 0.0140072681 | O163: 0.001416845624
M164: 22.078125 | N164: 0.01423061251 | O164: 0.001762755524
M165: 22.25 | N165: 0.01445017371 | O165: 0.002187136976
M166: 22.421875 | N166: 0.01466563373 | O166: 0.002705517023
M167: 22.59375 | N167: 0.01487667556 | O167: 0.003335691616
M168: 22.765625 | N168: 0.01508298404 | O168: 0.004097782169
M169: 22.9375 | N169: 0.01528424661 | O169: 0.005014186864
M170: 23.109375 | N170: 0.01548015418 | O170: 0.006109388537
M171: 23.28125 | N171: 0.01567040192 | O171: 0.007409577211
M172: 23.453125 | N172: 0.01585469016 | O172: 0.008942044242
M173: 23.625 | N173: 0.01603272515 | O173: 0.01073430797
M174: 23.796875 | N174: 0.01620421995 | O174: 0.01281293914
M175: 23.96875 | N175: 0.01636889523 | O175: 0.01520206965
M176: 24.140625 | N176: 0.01652648007 | O176: 0.01792159115
M177: 24.3125 | N177: 0.01667671277 | O177: 0.0209850814
M178: 24.484375 | N178: 0.01681934165 | O178: 0.02439753454
M179: 24.65625 | N179: 0.01695412575 | O179: 0.02815301502
M180: 24.828125 | N180: 0.01708083563 | O180: 0.03223239943
M181: 25 | N181: 0.017199254 | O181: 0.03660141019
M182: 25.171875 | N182: 0.01730917647 | O182: 0.04120917389
M183: 25.34375 | N183: 0.01741041213 | O183: 0.04598754589
M184: 25.515625 | N184: 0.01750278417 | O184: 0.05085142697
M185: 25.6875 | N185: 0.01758613043 | O185: 0.05570024983
M186: 25.859375 | N186: 0.01766030394 | O186: 0.06042073454
M187: 26.03125 | N187: 0.01772517336 | O187: 0.06489090342
M188: 26.203125 | N188: 0.0177806234 | O188: 0.06898521813
M189: 26.375 | N189: 0.01782655523 | O189: 0.07258056792
M190: 26.546875 | N190: 0.01786288677 | O190: 0.07556271575
M191: 26.71875 | N191: 0.01788955294 | O191: 0.07783271725
M192: 26.890625 | N192: 0.01790650593 | O192: 0.07931278254
M193: 27.0625 | N193: 0.01791371528 | O193: 0.07995106475
M194: 27.234375 | N194: 0.01791116804 | O194: 0.07972493397
M195: 27.40625 | N195: 0.0178988688 | O195: 0.0786424261
M196: 27.578125 | N196: 0.01787683964 | O196: 0.07674172697
M197: 27.75 | N197: 0.0178451201 | O197: 0.07408874171
M198: 27.921875 | N198: 0.01780376703 | O198: 0.07077298182
M199: 28.09375 | N199: 0.01775285441 | O199: 0.06690215512
M200: 28.265625 | N200: 0.01769247311 | O200: 0.06259594626
M201: 28.4375 | N201: 0.01762273061 | O201: 0.05797951911
M202: 28.609375 | N202: 0.0175437506 | O202: 0.05317725403
... 418 more rows

Sheet Data
A1: Data for the Worksheets
A2: Instructions: This page contains data that is on the designated worksheets so the user can use them to see the original results or reset the worksheets after using them.
A3: Population Mean Worksheet
A4: Sample Value | B4: Survey Results: Case Example (Hours spent per week)
A6: 19.60341451 | B6: 3.2
A7: 14 | B7: 5.8
A8: 29.77796994 | B8: 6.5
A9: 19 | B9: 6.5
A10: 22.47266207 | B10: 7.1
A11: 36 | B11: 7.5
A12: 26.24873078 | B12: 8.4
A13: 32.49631261 | B13: 8.9
A14: 17 | B14: 9
A15: 35 | B15: 9.5
A16: 26.44677252 | B16: 10.1
A17: 39 | B17: 10.2
A18: 41.5 | B18: 10.5
A19: 22.85143994 | B19: 11.3
A20: 30.26941439 | B20: 12.2
A21: 34
A22: 23.50836979
A23: 22.52725565
A24: 21.82083612
A25: 28.548209
